Workbook

Sheet Maquette
A2: VARIABLES A SAISIR
A3: Année | B3: 2023
A4: Budget | B4: rectificatif
A5: N° budget | B5: n° 2

Sheet récap
B1: EPSCP - synthèse des documents budgétaires
B4: Intitulé du tableau | C4: Périmètre | D4: Soumission au CA
A6: 1 | B6: Tableau des emplois | C6: Budget de l'établissement | D6: Pour vote
A7: 2 | B7: Tableau des autorisations budgétaires | C7: Budget de l'établissement (3) = (1)+(2) | D7: Pour vote. Pour les SIE, le vote relève du CA de l'établissement de rattachement
C8: Budget établissement principal (1)
C9: Fondation universitaire (2)
A10: 3 | B10: Tableau des dépenses par destination et recettes par origine | C10: Budget de l'établissement | D10: Pour information
C11: Budget établissement principal
A12: 4 | B12: Tableau d'équilibre financier | C12: Budget de l'établissement | D12: Pour vote
A13: 5 | B13: Tableau des opération pour compte de tiers | C13: Budget de l'établissement | D13: Pour information
A14: 6 | B14: Tableau de situation patrimoniale (tableau compte de résultat - tableau de financement) | C14: Budget de l'établissement (3) = (1)+(2) | D14: Pour vote
C15: Budget établissement principal (1)
C16: Fondation universitaire (2)
A17: 7 | B17: Tableau présentant le plan de trésorerie | C17: Budget de l'établissement | D17: Pour information
A18: 8 | B18: Tableau des opérations liées aux recettes fléchées | C18: Budget de l'établissement | D18: Pour information
C19: Budget établissement principal
A20: 9 | B20: Tableau des opérations pluriannuelles | C20: Budget de l'établissement | D20: Pour vote
A21: 10 | B21: Tableau détaillé des opérations pluriannuelles et programmation | C21: Budget de l'établissement | D21: Pour information
A22: 11 | B22: Tableau retraçant les moyens des unités mixtes de recherche | D22: Pour information
A23: Annexe 5 | B23: Tableau de synthèse | C23: Budget de l'établissement
A24: Annexe 14 | B24: Plan d'actions achats prévisionnel | C24: Budget de l'établissement
A25: Annexe 15 | B25: Annexe immobilière | C25: Budget de l'établissement

Sheet 1-tab emplois_ETAB
B1: Tableau 1 - Université de Bretagne Sud (0561718N) : Etablissement principal + Fondation
B2: ="Tableau des emplois présenté par l’établissement à l’appui du budget "&Maquette!B4&" "&Maquette!B5&" "&Maquette!B3 -> Tableau des emplois présenté par l’établissement à l’appui du budget rectificatif n° 2 2023
B4: POUR VOTE DE L'ORGANE DÉLIBÉRANT
G5: (A) | L5: (B) | P5: ( C ) = (A) + (B)
F6: Emplois sous plafond Etat * | K6: Emplois financés hors SCSP | P6: Global
B7: Catégories d'emplois | C7: Nature des emplois | F7: En ETPT | K7: En ETPT
B8: Enseignants, enseignants-chercheurs, chercheurs | C8: Permanents | D8: Titulaires | F8: 371 | N8: 0 | P8: =F8 -> 371
D9: CDI | F9: 7 | K9: 4.5 | P9: =F9+K9 -> 11.5
C10: Non permanents | D10: CDD | F10: 72.25 | K10: 89.5 | P10: =F10+K10 -> 161.75
B11: S/total EC | F11: =SUM(F8:I10) -> 450.25 | K11: =SUM(K9:N10) -> 94 | P11: =SUM(P8:P10) -> 544.25
B13: Elèves fonctionnaires stagiaires des écoles nationales supérieures (ENS) | P13: =F13 -> 0
B15: BIATSS (personnels de bibliothèques, ingénieurs, administratifs, techniques et de service) | C15: Permanents | D15: Titulaires | F15: 283 | P15: =F15 -> 283
D16: CDI | F16: 22 | K16: 18 | P16: =K16+F16 -> 40
C17: Non permanents | D17: CDD | F17: 65.75 | K17: 132 | P17: =K17+F17 -> 197.75
B18: S/total Biatss | F18: =SUM(F15:I17) -> 370.75 | K18: =SUM(K16:N17) -> 150 | P18: =SUM(P15:P17) -> 520.75
B19: Totaux | F19: =F11+F13+F18 -> 821 | J19: (1) | K19: =K11+K18 -> 244 | P19: =P11+P13+P18 -> 1065
F20: =IF(F19>F21,"! Nombre total d'emplois sous plafond > à la notification de l'Etat","") ->  | P20: Plafond global des emplois voté par le CA ** | Q20: (2)
B21: Rappel du plafond des emplois fixé par l'Etat | F21: 843 | J21: (3)
B22: Note sur les modalités de renseignement du tableau
B23: Ce tableau doit être annexé au budget de l'établissement et, en cas de modification, aux budgets rectificatifs. Les chiffres qu'il contient doivent être exprimés en équivalents temps plein travaillés (ETPT). Le guide de décompte des emplois élaboré par la DAF et la DGESIP précise les régles de décompte des emplois en ETPT en fonction des catégories de personnel.
B24: Seul est soumis au vote du conseil d'administration le plafond global des emplois (case annotée (2))
B25: Le nombre total d'emplois sous plafond Etat (case annotée (1)) ne peut être supérieur au plafond des emplois Etat qui a été notifié à l'établissement et rappelé en case (3)
B26: * : cf. article R719-54 du code de l'éducation : "plafond d'emplois fixé par l'État relatif aux emplois financés par l'État" ** : cf. article R719-54 du code de l'éducation : "plafond d'autorisation de l'ensemble des emplois rémunérés par l'établissement"

Sheet 2-tab_aut_budg_ETAB
B1: Tableau 2 - Université de Bretagne Sud (0561718N) : Etablissement principal + Fondation
B2: ="Autorisations budgétaires - Budget consolidé "&Maquette!B4&" "&Maquette!B5&" "&Maquette!B3 -> Autorisations budgétaires - Budget consolidé rectificatif n° 2 2023
B5: POUR VOTE DE L'ORGANE DÉLIBÉRANT
B8: Dépenses | N8: Recettes
C9: Exécution N-1 | E9: Budget initial (a) | G9: Nouveau BR | I9: Somme des BR (yc nouveau BR) (b) | K9: TOTAL : dernier budget modifié (c) = (a) + (b) | N9: Exécution N-1 | O9: Budget initial (d) | P9: Nouveau BR | Q9: Somme des BR (yc nouveau BR) (e) | R9: TOTAL : dernier budget modifié (f) = (d) + (e)
C10: AE | D10: CP | E10: AE | F10: CP | G10: AE | H10: CP | I10: AE | J10: CP | K10: AE | L10: CP | N10: Montants | O10: Montants | P10: Montants | Q10: Montants | R10: Montants
B11: Personnel | C11: ='2-tab_aut_budg_PRINC'!C11+'2-tab_aut_budg_FU'!C11 -> 74453544.58 | D11: ='2-tab_aut_budg_PRINC'!D11+'2-tab_aut_budg_FU'!D11 -> 74437711.08 | E11: ='2-tab_aut_budg_PRINC'!E11+'2-tab_aut_budg_FU'!E11 -> 79962268 | F11: ='2-tab_aut_budg_PRINC'!F11+'2-tab_aut_budg_FU'!F11 -> 79962268 | G11: ='2-tab_aut_budg_PRINC'!G11+'2-tab_aut_budg_FU'!G11 -> 0 | H11: ='2-tab_aut_budg_PRINC'!H11+'2-tab_aut_budg_FU'!H11 -> 0 | I11: ='2-tab_aut_budg_PRINC'!I11+'2-tab_aut_budg_FU'!I11 -> 634143.03 | J11: ='2-tab_aut_budg_PRINC'!J11+'2-tab_aut_budg_FU'!J11 -> 634143.03 | K11: =E11+I11 -> 80596411.03 | L11: =F11+J11 -> 80596411.03 | N11: =SUM(N12:N16) -> 90626521 | O11: =SUM(O12:O16) -> 98798595.96 | P11: =SUM(P12:P16) -> -376112.02 | Q11: 2945334.58 | R11: =O11+Q11 -> 101743930.5 | S11: Recettes globalisées
B12: dont contributions employeur au CAS Pension | E12: ='2-tab_aut_budg_PRINC'!E12+'2-tab_aut_budg_FU'!E12 -> 20016600 | F12: ='2-tab_aut_budg_PRINC'!F12+'2-tab_aut_budg_FU'!F12 -> 20016600 | G12: ='2-tab_aut_budg_PRINC'!G12+'2-tab_aut_budg_FU'!G12 -> 0 | H12: ='2-tab_aut_budg_PRINC'!H12+'2-tab_aut_budg_FU'!H12 -> 0 | I12: ='2-tab_aut_budg_PRINC'!I12+'2-tab_aut_budg_FU'!I12 -> 0 | J12: ='2-tab_aut_budg_PRINC'!J12+'2-tab_aut_budg_FU'!J12 -> 0 | K12: =E12+I12 -> 20016600 | L12: =F12+J12 -> 20016600 | N12: ='2-tab_aut_budg_PRINC'!N12+'2-tab_aut_budg_FU'!N12 -> 68012462 | O12: =+'2-tab_aut_budg_PRINC'!O12+'2-tab_aut_budg_FU'!O12 -> 69245984 | P12: ='2-tab_aut_budg_PRINC'!P12+'2-tab_aut_budg_FU'!P12 -> 693952 | Q12: ='2-tab_aut_budg_PRINC'!Q12+'2-tab_aut_budg_FU'!Q12 -> 925195 | R12: =O12+Q12 -> 70171179 | S12: Subvention pour charges de service public
K13: 0 | L13: 0 | N13: ='2-tab_aut_budg_PRINC'!N13+'2-tab_aut_budg_FU'!N13 -> 1917931.15 | O13: =+'2-tab_aut_budg_PRINC'!O13+'2-tab_aut_budg_FU'!O13 -> 2024516.6 | P13: ='2-tab_aut_budg_PRINC'!P13+'2-tab_aut_budg_FU'!P13 -> 173773 | Q13: ='2-tab_aut_budg_PRINC'!Q13+'2-tab_aut_budg_FU'!Q13 -> 1304330.33 | R13: 3328846.93 | S13: Autres financements de l'Etat
K14: 0 | L14: 0 | N14: ='2-tab_aut_budg_PRINC'!N14+'2-tab_aut_budg_FU'!N14 -> 473570.35 | O14: =+'2-tab_aut_budg_PRINC'!O14+'2-tab_aut_budg_FU'!O14 -> 626184 | P14: ='2-tab_aut_budg_PRINC'!P14+'2-tab_aut_budg_FU'!P14 -> 55168.61 | Q14: ='2-tab_aut_budg_PRINC'!Q14+'2-tab_aut_budg_FU'!Q14 -> 55168.61 | R14: 681352.61 | S14: Fiscalité affectée
B15: Fonctionnement et intervention | C15: ='2-tab_aut_budg_PRINC'!C15+'2-tab_aut_budg_FU'!C15 -> 12840939.11 | D15: ='2-tab_aut_budg_PRINC'!D15+'2-tab_aut_budg_FU'!D15 -> 11888797.76 | E15: ='2-tab_aut_budg_PRINC'!E15+'2-tab_aut_budg_FU'!E15 -> 15692811.45 | F15: ='2-tab_aut_budg_PRINC'!F15+'2-tab_aut_budg_FU'!F15 -> 15152611 | G15: ='2-tab_aut_budg_PRINC'!G15+'2-tab_aut_budg_FU'!G15 -> -1067545.04 | H15: ='2-tab_aut_budg_PRINC'!H15+'2-tab_aut_budg_FU'!H15 -> -1491418.04 | I15: ='2-tab_aut_budg_PRINC'!I15+'2-tab_aut_budg_FU'!I15 -> 686023.01 | J15: ='2-tab_aut_budg_PRINC'!J15+'2-tab_aut_budg_FU'!J15 -> 529062.84 | K15: 16378834.46 | L15: 15681673.84 | N15: ='2-tab_aut_budg_PRINC'!N15+'2-tab_aut_budg_FU'!N15 -> 6837311.08 | O15: =+'2-tab_aut_budg_PRINC'!O15+'2-tab_aut_budg_FU'!O15 -> 10106891.23 | P15: ='2-tab_aut_budg_PRINC'!P15+'2-tab_aut_budg_FU'!P15 -> -1101172.1 | Q15: ='2-tab_aut_budg_PRINC'!Q15+'2-tab_aut_budg_FU'!Q15 -> -572351.49 | R15: 9534539.74 | S15: Autres financements publics
K16: 0 | L16: 0 | N16: ='2-tab_aut_budg_PRINC'!N16+'2-tab_aut_budg_FU'!N16 -> 13385246.42 | O16: =+'2-tab_aut_budg_PRINC'!O16+'2-tab_aut_budg_FU'!O16 -> 16795020.13 | P16: ='2-tab_aut_budg_PRINC'!P16+'2-tab_aut_budg_FU'!P16 -> -197833.53 | Q16: ='2-tab_aut_budg_PRINC'!Q16+'2-tab_aut_budg_FU'!Q16 -> 1232992.13 | R16: 18028012.26 | S16: Recettes propres
K17: 0 | L17: 0
K18: 0 | L18: 0 | N18: =SUM(N19:N21) -> 2221464 | O18: =SUM(O19:O21) -> 0 | P18: 325885.69 | Q18: 437115.69 | R18: 437115.69 | S18: Recettes fléchées **
K19: 0 | L19: 0 | P19: ='2-tab_aut_budg_PRINC'!P19+'2-tab_aut_budg_FU'!P19 -> 0 | Q19: ='2-tab_aut_budg_PRINC'!Q19+'2-tab_aut_budg_FU'!Q19 -> 0 | R19: 0 | S19: Financements de l'Etat fléchés
B20: Investissement | C20: ='2-tab_aut_budg_PRINC'!C20+'2-tab_aut_budg_FU'!C20 -> 6585960.8 | D20: ='2-tab_aut_budg_PRINC'!D20+'2-tab_aut_budg_FU'!D20 -> 6413571.39 | E20: ='2-tab_aut_budg_PRINC'!E20+'2-tab_aut_budg_FU'!E20 -> 8959911.8 | F20: ='2-tab_aut_budg_PRINC'!F20+'2-tab_aut_budg_FU'!F20 -> 7991911.8 | G20: ='2-tab_aut_budg_PRINC'!G20+'2-tab_aut_budg_FU'!G20 -> -1874059.38 | H20: ='2-tab_aut_budg_PRINC'!H20+'2-tab_aut_budg_FU'!H20 -> -1472200.38 | I20: ='2-tab_aut_budg_PRINC'!I20+'2-tab_aut_budg_FU'!I20 -> -644781.54 | J20: ='2-tab_aut_budg_PRINC'!J20+'2-tab_aut_budg_FU'!J20 -> 462330.12 | K20: 8315130.26 | L20: 8454241.92 | N20: ='2-tab_aut_budg_PRINC'!N20+'2-tab_aut_budg_FU'!N20 -> 2221464 | P20: ='2-tab_aut_budg_PRINC'!P20+'2-tab_aut_budg_FU'!P20 -> 325885.69 | Q20: ='2-tab_aut_budg_PRINC'!Q20+'2-tab_aut_budg_FU'!Q20 -> 437115.69 | R20: 437115.69 | S20: Autres financements publics fléchés
K21: 0 | L21: 0 | P21: ='2-tab_aut_budg_PRINC'!P21+'2-tab_aut_budg_FU'!P21 -> 0 | Q21: ='2-tab_aut_budg_PRINC'!Q21+'2-tab_aut_budg_FU'!Q21 -> 0 | R21: 0 | S21: Recettes propres fléchées
K22: 0 | L22: 0
B23: Enveloppes* destinées à des contrats de recherche | G23: =G24+G25+G26 -> 0 | H23: 0 | I23: 0 | J23: 0 | K23: 0 | L23: 0
B24: Personnel | K24: =E24+I24 -> 0 | L24: =F24+J24 -> 0
B25: Fonctionnement | K25: 0 | L25: 0
B26: Investissement | K26: 0 | L26: 0
B28: TOTAL DES DÉPENSES | C28: =C20+C15+C11+C23 -> 93880444.49 | D28: =D20+D15+D11+D23 -> 92740080.23 | E28: =E20+E15+E11+E23 -> 104614991.2 | F28: =F20+F15+F11+F23 -> 103106790.8 | G28: -2941604.42 | H28: -2963618.42 | I28: 675384.5 | J28: 1625535.99 | K28: 105290375.8 | L28: 104732326.8 | N28: =N11+N18 -> 92847985 | O28: 98798595.96 | P28: =P11+P18 -> -50226.33 | Q28: =Q11+Q18 -> 3382450.27 | R28: =R11+R18 -> 102181046.2 | S28: TOTAL DES RECETTES
B30: Solde budgétaire (excédent) | D30: =IF(N28-D28>=0,N28-D28,0) -> 107904.77 | F30: =IF(O28-F28>=0,O28-F28,0) -> 0 | H30: =IF(P28-H28>=0,P28-H28,0) -> 2913392.09 | J30: =IF(Q28-J28>=0,Q28-J28,0) -> 1756914.28 | L30: =IF(R28-L28>=0,R28-L28,0) -> 0 | N30: =IF(D28-N28>0,D28-N28,0) -> 0 | O30: =IF(F28-O28>0,F28-O28,0) -> 4308194.84 | P30: =IF(H28-P28>0,H28-P28,0) -> 0 | Q30: =IF(J28-Q28>0,J28-Q28,0) -> 0 | R30: =IF(L28-R28>0,L28-R28,0) -> 2551280.56 | S30: Solde budgétaire (déficit)
B32: * Chaque enveloppe peut être détaillée en fonction des besoins des organismes.
B33: ** Montant issu du tableau "Opérations sur recettes fléchées" (tableau 8)
E36: ="BI : Différence charges de personnel entre tableau 2 et tableau 6 est de : "&'6-tab CR_TF_ETAB'!C9-ROUND('2-tab_aut_budg_ETAB'!F11+'2-tab_aut_budg_ETAB'!F24,-1) -> BI : Différence charges de personnel entre tableau 2 et tableau 6 est de : -839583
E37: ="Budget BI+BR : Différence charges de personnel entre tableau 2 et tableau 6 est de : "&'6-tab CR_TF_ETAB'!F9-ROUND('2-tab_aut_budg_ETAB'!L11+'2-tab_aut_budg_ETAB'!L24,-1) -> Budget BI+BR : Différence charges de personnel entre tableau 2 et tableau 6 est de : -839579,969999999

Sheet 2-tab_aut_budg_PRINC
B1: Tableau 2 - Université de Bretagne Sud (0561718N) : Etablissement principal
B2: ="Autorisations budgétaires - Budget "&Maquette!B4&" "&Maquette!B5&" "&Maquette!B3 -> Autorisations budgétaires - Budget rectificatif n° 2 2023
B5: POUR VOTE DE L'ORGANE DÉLIBÉRANT
B8: Dépenses | N8: Recettes
C9: Exécution N-1 | E9: Budget initial (a) | G9: Nouveau BR | I9: Somme des BR (yc nouveau BR) (b) | K9: TOTAL : dernier budget modifié (c) = (a) + (b) | N9: Exécution N-1 | O9: Budget initial (d) | P9: Nouveau BR | Q9: Somme des BR (yc nouveau BR) (e) | R9: TOTAL : dernier budget modifié (f) = (d) + (e)
C10: AE | D10: CP | E10: AE | F10: CP | G10: AE | H10: CP | I10: AE | J10: CP | K10: AE | L10: CP | N10: Montants | O10: Montants | P10: Montants | Q10: Montants | R10: Montants
B11: Personnel | C11: 74348490.9 | D11: 74332657.4 | E11: 79729668 | F11: 79729668 | G11: 64065.34 | H11: 64065.34 | I11: =629948.57+G11 -> 694013.91 | J11: =629948.57+H11 -> 694013.91 | K11: =E11+I11 -> 80423681.91 | L11: =F11+J11 -> 80423681.91 | N11: =SUM(N12:N16) -> 90300588.68 | O11: =SUM(O12:O16) -> 98351237.96 | P11: =SUM(P12:P16) -> -277112.02 | Q11: 3063787.9 | R11: =O11+Q11 -> 101415025.9 | S11: Recettes globalisées
B12: dont contributions employeur au CAS Pension | C12: 19889158.25 | D12: 19889158.25 | E12: 20016600 | F12: 20016600 | G12: 0 | H12: 0 | K12: =E12+I12 -> 20016600 | L12: 20016600 | N12: 68012462 | O12: 69245984 | P12: 693952 | Q12: =231243+P12 -> 925195 | R12: =O12+Q12 -> 70171179 | S12: Subvention pour charges de service public
C13: 0 | D13: 0 | K13: 0 | L13: 0 | N13: 1897410.83 | O13: 2024516.6 | P13: 173773 | Q13: =1151077.65+P13 -> 1324850.65 | R13: 3349367.25 | S13: Autres financements de l'Etat
C14: 0 | D14: 0 | K14: 0 | L14: 0 | N14: 473570.35 | O14: 626184 | P14: 55168.61 | Q14: =P14 -> 55168.61 | R14: 681352.61 | S14: Fiscalité affectée
B15: Fonctionnement et intervention | C15: 12728316.2 | D15: 11771498.43 | E15: 15467811.45 | F15: 14932611 | G15: -1010875.38 | H15: -1439748.38 | I15: =1749264.05+G15 -> 738388.67 | J15: =2016176.88+H15 -> 576428.5 | K15: =E15+I15 -> 16206200.12 | L15: =F15+J15 -> 15509039.5 | N15: 6778311.08 | O15: 10047891.23 | P15: -1051172.1 | Q15: =527753.61+P15 -> -523418.49 | R15: 9524472.74 | S15: Autres financements publics
K16: 0 | L16: 0 | N16: 13138834.42 | O16: 16406662.13 | P16: -148833.53 | Q16: =1430825.66+P16 -> 1281992.13 | R16: 17688654.26 | S16: Recettes propres
K17: 0 | L17: 0
K18: 0 | L18: 0 | N18: =SUM(N19:N21) -> 2221464 | O18: =SUM(O19:O21) -> 0 | P18: 325885.69 | Q18: 437115.69 | R18: 437115.69 | S18: Recettes fléchées **
K19: 0 | L19: 0 | R19: 0 | S19: Financements de l'Etat fléchés
B20: Investissement | C20: 6584973.14 | D20: 6412893.39 | E20: 8898911.8 | F20: 7935911.8 | G20: -1821513.38 | H20: -1425201.38 | I20: =1229277.84+G20 -> -592235.54 | J20: =1934530.5+H20 -> 509329.12 | K20: 8306676.26 | L20: =F20+J20 -> 8445240.92 | N20: 2221464 | P20: 325885.69 | Q20: =111230+P20 -> 437115.69 | R20: 437115.69 | S20: Autres financements publics fléchés
K21: 0 | L21: 0 | R21: 0 | S21: Recettes propres fléchées
K22: 0 | L22: 0
B23: Enveloppes* destinées à des contrats de recherche | C23: =C24+C25+C26 -> 0 | D23: =D24+D25+D26 -> 0 | E23: =E24+E25+E26 -> 0 | F23: =F24+F25+F26 -> 0 | G23: 0 | H23: 0 | I23: 0 | J23: 0 | K23: 0 | L23: 0
B24: Personnel | K24: 0 | L24: 0
B25: Fonctionnement | K25: 0 | L25: 0
B26: Investissement | K26: 0 | L26: 0
B28: TOTAL DES DÉPENSES | C28: =C20+C15+C11+C23 -> 93661780.24 | D28: =D20+D15+D11+D23 -> 92517049.22 | E28: =E20+E15+E11+E23 -> 104096391.2 | F28: =F20+F15+F11+F23 -> 102598190.8 | G28: -2768323.42 | H28: -2800884.42 | I28: 840167.04 | J28: 1779771.53 | K28: =K20+K15+K11+K23 -> 104936558.3 | L28: =L20+L15+L11+L23 -> 104377962.3 | N28: =N11+N18 -> 92522052.68 | O28: 98351237.96 | P28: =P11+P18 -> 48773.67 | Q28: =Q11+Q18 -> 3500903.59 | R28: =R11+R18 -> 101852141.5 | S28: TOTAL DES RECETTES
B30: Solde budgétaire (excédent) | D30: =IF(N28-D28>=0,N28-D28,0) -> 5003.46 | F30: =IF(O28-F28>=0,O28-F28,0) -> 0 | H30: =IF(P28-H28>=0,P28-H28,0) -> 2849658.09 | J30: =IF(Q28-J28>=0,Q28-J28,0) -> 1721132.06 | L30: =IF(R28-L28>=0,R28-L28,0) -> 0 | N30: =IF(D28-N28>0,D28-N28,0) -> 0 | O30: =IF(F28-O28>0,F28-O28,0) -> 4246952.84 | P30: =IF(H28-P28>0,H28-P28,0) -> 0 | Q30: =IF(J28-Q28>0,J28-Q28,0) -> 0 | R30: =IF(L28-R28>0,L28-R28,0) -> 2525820.78 | S30: Solde budgétaire (déficit)
B32: * Chaque enveloppe peut être détaillée en fonction des besoins des organismes.
B33: ** Montant issu du tableau "Opérations sur recettes fléchées" (tableau 8)
E36: ="BI : Différence charges de personnel entre tableau 2 et tableau 6 est de : "&'6-tab CR_TF_PRINC'!C9-ROUND('2-tab_aut_budg_PRINC'!F11+'2-tab_aut_budg_PRINC'!F24,-1) -> BI : Différence charges de personnel entre tableau 2 et tableau 6 est de : -837164
E37: ="Budget BI+BR : Différence charges de personnel entre tableau 2 et tableau 6 est de : "&'6-tab CR_TF_PRINC'!F9-ROUND('2-tab_aut_budg_PRINC'!L11+'2-tab_aut_budg_PRINC'!L24,-1) -> Budget BI+BR : Différence charges de personnel entre tableau 2 et tableau 6 est de : -837799,969999999

Sheet 2-tab_aut_budg_FU
B1: Tableau 2 - Université de Bretagne Sud (0561718N) : Fondation
B2: ="Autorisations budgétaires - Budget "&Maquette!B4&" "&Maquette!B5&" "&Maquette!B3 -> Autorisations budgétaires - Budget rectificatif n° 2 2023
B5: POUR VOTE DE L'ORGANE DÉLIBÉRANT
B8: Dépenses | N8: Recettes
C9: Exécution N-1 | E9: Budget initial (a) | G9: Nouveau BR | I9: Somme des BR (yc nouveau BR) (b) | K9: TOTAL : dernier budget modifié (c) = (a) + (b) | N9: Exécution N-1 | O9: Budget initial (d) | P9: Nouveau BR | Q9: Somme des BR (yc nouveau BR) (e) | R9: TOTAL : dernier budget modifié (f) = (d) + (e)
C10: AE | D10: CP | E10: AE | F10: CP | G10: AE | H10: CP | I10: AE | J10: CP | K10: AE | L10: CP | N10: Montants | O10: Montants | P10: Montants | Q10: Montants | R10: Montants
B11: Personnel | C11: 105053.68 | D11: 105053.68 | E11: 232600 | F11: 232600 | G11: -64065.34 | H11: -64065.34 | I11: =4194.46+G11 -> -59870.88 | J11: =4194.46+H11 -> -59870.88 | K11: =E11+I11 -> 172729.12 | L11: =F11+J11 -> 172729.12 | N11: =SUM(N12:N16) -> 325932.32 | O11: =SUM(O12:O16) -> 447358 | P11: =SUM(P12:P16) -> -99000 | Q11: -118453.32 | R11: =O11+Q11 -> 328904.68 | S11: Recettes globalisées
B12: dont contributions employeur au CAS Pension | G12: 0 | H12: 0 | K12: =E12+I12 -> 0 | L12: 0 | N12: 0 | R12: =O12+Q12 -> 0 | S12: Subvention pour charges de service public
K13: 0 | L13: 0 | N13: 20520.32 | Q13: =-20520.32 -> -20520.32 | R13: -20520.32 | S13: Autres financements de l'Etat
K14: 0 | L14: 0 | N14: 0 | R14: 0 | S14: Fiscalité affectée
B15: Fonctionnement et intervention | C15: 112622.91 | D15: 117299.33 | E15: 225000 | F15: 220000 | G15: -56669.66 | H15: -51669.66 | I15: =4304+G15 -> -52365.66 | J15: =4304+H15 -> -47365.66 | K15: 172634.34 | L15: 172634.34 | N15: 59000 | O15: 59000 | P15: -50000 | Q15: =1067+P15 -> -48933 | R15: 10067 | S15: Autres financements publics
K16: 0 | L16: 0 | N16: 246412 | O16: 388358 | P16: -49000 | Q16: =P16 -> -49000 | R16: 339358 | S16: Recettes propres
K17: 0 | L17: 0
K18: 0 | L18: 0 | N18: =SUM(N19:N21) -> 0 | O18: =SUM(O19:O21) -> 0 | P18: 0 | Q18: 0 | R18: 0 | S18: Recettes fléchées **
K19: 0 | L19: 0 | R19: 0 | S19: Financements de l'Etat fléchés
B20: Investissement | C20: 987.66 | D20: 678 | E20: 61000 | F20: 56000 | G20: -52546 | H20: -46999 | I20: =G20 -> -52546 | J20: =H20 -> -46999 | K20: 8454 | L20: 9001 | R20: 0 | S20: Autres financements publics fléchés
K21: 0 | L21: 0 | R21: 0 | S21: Recettes propres fléchées
K22: 0 | L22: 0
B23: Enveloppes* destinées à des contrats de recherche | C23: =C24+C25+C26 -> 0 | D23: =D24+D25+D26 -> 0 | E23: =E24+E25+E26 -> 0 | F23: =F24+F25+F26 -> 0 | G23: 0 | H23: 0 | I23: 0 | J23: 0 | K23: 0 | L23: 0
B24: Personnel | K24: 0 | L24: 0
B25: Fonctionnement | K25: 0 | L25: 0
B26: Investissement | K26: 0 | L26: 0
B28: TOTAL DES DÉPENSES | C28: =C20+C15+C11+C23 -> 218664.25 | D28: =D20+D15+D11+D23 -> 223031.01 | E28: =E20+E15+E11+E23 -> 518600 | F28: =F20+F15+F11+F23 -> 508600 | G28: -173281 | H28: -162734 | I28: -164782.54 | J28: -154235.54 | K28: =K20+K15+K11+K23 -> 353817.46 | L28: =L20+L15+L11+L23 -> 354364.46 | N28: =N11+N18 -> 325932.32 | O28: 447358 | P28: =P11+P18 -> -99000 | Q28: =Q11+Q18 -> -118453.32 | R28: =R11+R18 -> 328904.68 | S28: TOTAL DES RECETTES
B30: Solde budgétaire (excédent) | D30: =IF(N28-D28>=0,N28-D28,0) -> 102901.31 | F30: =IF(O28-F28>=0,O28-F28,0) -> 0 | H30: =IF(P28-H28>=0,P28-H28,0) -> 63734 | J30: =IF(Q28-J28>=0,Q28-J28,0) -> 35782.22 | L30: =IF(R28-L28>=0,R28-L28,0) -> 0 | N30: =IF(D28-N28>0,D28-N28,0) -> 0 | O30: =IF(F28-O28>0,F28-O28,0) -> 61242 | P30: =IF(H28-P28>0,H28-P28,0) -> 0 | Q30: =IF(J28-Q28>0,J28-Q28,0) -> 0 | R30: =IF(L28-R28>0,L28-R28,0) -> 25459.78 | S30: Solde budgétaire (déficit)
B32: * Chaque enveloppe peut être détaillée en fonction des besoins des organismes.
B33: ** Montant issu du tableau "Opérations sur recettes fléchées" (tableau 8)
E35: ="Exécution N-1 : Différence charges de personnel entre tableau 2 et tableau 6 est de : "&'6-tab CR_TF_FU'!B9-ROUND('2-tab_aut_budg_FU'!D11+'2-tab_aut_budg_FU'!D24,-1) -> Exécution N-1 : Différence charges de personnel entre tableau 2 et tableau 6 est de : -1470,63
E36: ="BI : Différence charges de personnel entre tableau 2 et tableau 6 est de : "&'6-tab CR_TF_FU'!C9-ROUND('2-tab_aut_budg_FU'!F11+'2-tab_aut_budg_FU'!F24,-1) -> BI : Différence charges de personnel entre tableau 2 et tableau 6 est de : -2419
E37: ="Budget BI+BR : Différence charges de personnel entre tableau 2 et tableau 6 est de : "&'6-tab CR_TF_FU'!F9-ROUND('2-tab_aut_budg_FU'!L11+'2-tab_aut_budg_FU'!L24,-1) -> Budget BI+BR : Différence charges de personnel entre tableau 2 et tableau 6 est de : -1780

Sheet 3-tab_destination_origine_ETAB
B1: Tableau 3 - Université de Bretagne Sud (0561718N) : Etablissement principal + Fondation
B2: ="Dépenses par destination et recettes par origine - Budget consolidé "&Maquette!B4&" "&Maquette!B5&" "&Maquette!B3 -> Dépenses par destination et recettes par origine - Budget consolidé rectificatif n° 2 2023
B4: POUR INFORMATION DE L'ORGANE DÉLIBÉRANT
B5: Tableau des dépenses par destination (obligatoire)
B6: Budget | C6: Dépenses de l’organisme
C7: Personnel | E7: Fonctionnement et intervention | G7: Investissement | I7: Total
C8: AE = CP | E8: AE | F8: CP | G8: AE | H8: CP | I8: AE | J8: CP
B9: Formation initiale et continue (d) = (a) + (b) + (c) | C9: =SUM(C10:C12) -> 46380510.76 | D9: =SUM(D10:D12) -> 46380510.76 | E9: 4353045.01 | F9: 3628982.52 | G9: 1560327.39 | H9: 1602090.63 | I9: =C9+E9+G9 -> 52293883.16 | J9: =D9+F9+H9 -> 51611583.91
B10: D101 - Formation initiale et continue de niveau Licence (a) | C10: 34024414.74 | D10: 34024414.74 | E10: 2740983.99 | F10: 2064874.28 | G10: 1111482.36 | H10: 1142566.57 | I10: =C10+E10+G10 -> 37876881.09 | J10: =D10+F10+H10 -> 37231855.59
B11: D102 - Formation initiale et continue de niveau Master (b) | C11: 11171913.12 | D11: 11171913.12 | E11: 1373234.85 | F11: 1324900.16 | G11: 448845.03 | H11: 459524.06 | I11: 12993993 | J11: 12956337.34
B12: D103 - Formation initiale et continue de niveau Doctorat (c) | C12: 1184182.9 | D12: 1184182.9 | E12: 238826.17 | F12: 239208.08 | G12: 0 | H12: 0 | I12: 1423009.07 | J12: 1423390.98
B13: D105 - Bibliothèques et documentation | C13: 1804158 | D13: 1804158 | E13: 487664 | F13: 487664 | G13: 20000 | H13: 20000 | I13: 2311822 | J13: 2311822
B14: D106 - Recherche universitaire en sciences de la vie, biotechnologie et santé | C14: 1427792.12 | D14: 1427792.12 | E14: 285166.06 | F14: 301471.91 | G14: 383150.23 | H14: 383150.23 | I14: 2096108.41 | J14: 2112414.26
B15: D107 - Recherche universitaire en mathématiques, sciences et techniques de l'information et de la communication, micro et nanotechnologies | C15: 6523994.22 | D15: 6523994.22 | E15: 837710.84 | F15: 828685.26 | G15: 345494.46 | H15: 400142.67 | I15: 7707199.52 | J15: 7752822.15
B16: D108 - Recherche universitaire en physique, chimie et sciences pour l'ingénieur | C16: 7091645.2 | D16: 7091645.2 | E16: 1860769.02 | F16: 2020928.95 | G16: 1624636 | H16: 1480067.88 | I16: 10577050.22 | J16: 10592642.03
B17: D109 - Recherche universitaire en physique nucléaire et des hautes énergies | C17: 0 | D17: 0 | E17: 0 | F17: 0 | G17: 0 | H17: 0 | I17: 0 | J17: 0
B18: D110 - Recherche universitaire en sciences de la terre, de l'univers et de l'environnement | C18: 711456.46 | D18: 711456.46 | E18: 188585.58 | F18: 192655.27 | G18: 77905.83 | H18: 77905.83 | I18: 977947.87 | J18: 982017.56
B19: D111 - Recherche universitaire en sciences de l'homme et de la société | C19: 5663412.56 | D19: 5663412.56 | E19: 655743.6 | F19: 685894.16 | G19: 13492.68 | H19: 15758.46 | I19: 6332648.84 | J19: 6365065.18
B20: D112 - Recherche universitaire interdisciplinaire et transversale | C20: 301893.47 | D20: 301893.47 | E20: 345662.12 | F20: 345028.63 | G20: 3530 | H20: 3530 | I20: 651085.59 | J20: 650452.1
B21: D113 - Diffusion des savoirs et musées | I21: 0 | J21: 0
B22: D114 - Immobilier | C22: 2284568.64 | D22: 2284568.64 | E22: 4451595 | F22: 4451595 | G22: 3040253.3 | H22: 3309487.51 | I22: 9776416.94 | J22: 10045651.15
B23: D115 - Pilotage et support | C23: 6824255.6 | D23: 6824255.6 | E23: 1930326.1 | F23: 2034422.41 | G23: 632956.55 | H23: 635154.61 | I23: 9387538.25 | J23: 9493832.62
B24: Étudiants (h) = (e) + (f) + (g) | C24: =SUM(C25:C27) -> 1582724 | D24: =SUM(D25:D27) -> 1582724 | E24: 982567.13 | F24: 704346.18 | G24: 613383.82 | H24: 526954.1 | I24: 3178674.95 | J24: 2814024.28
B25: D201 - Aides directes aux étudiants (e) | C25: 0 | D25: 0 | E25: 545305.66 | F25: 256576.4 | G25: 0 | H25: 0 | I25: 545305.66 | J25: 256576.4
B26: D202 - Aides indirectes (f) | C26: 0 | D26: 0 | E26: 2376.4 | F26: 2376.4 | G26: 11520 | H26: 11520 | I26: 13896.4 | J26: 13896.4
B27: D203 - Santé des étudiants et activités associatives, culturelles et sportives (g) | C27: 1582724 | D27: 1582724 | E27: 434885.07 | F27: 445393.38 | G27: 601863.82 | H27: 515434.1 | I27: 2619472.89 | J27: 2543551.48
B28: Total | C28: =SUM(C10:C24) -> 80596411.03 | D28: =SUM(D10:D24) -> 80596411.03 | E28: 16378834.46 | F28: 15681674.29 | G28: 8315130.26 | H28: 8454241.92 | I28: =C28+E28+G28 -> 105290375.7 | J28: =D28+F28+H28 -> 104732327.2
H30: SOLDE BUDGETAIRE (excédent) | J30: =IF(K50>J28,K50-J28,0) -> 0
B32: Tableau des recettes par origine (obligatoire)
B34: Budget | C34: Recettes de l'organisme
C35: Recettes globalisées | H35: Recettes fléchées | K35: Total
C36: Subvention pour charges de service public | D36: Autres financements de l'Etat | E36: Fiscalité affectée | F36: Autres financements publics | G36: Recettes propres | H36: Financements de l'Etat fléchés | I36: Autres financements publics fléchés | J36: Recettes propres fléchées
B37: Subvention pour charges de service public | C37: 70171179 | D37: 0 | E37: 0 | F37: 0 | G37: 0 | H37: 0 | I37: 0 | J37: 0 | K37: =C37 -> 70171179
B38: Droits d'inscription | C38: 0 | D38: 0 | E38: 0 | F38: 0 | G38: 1249018 | H38: 0 | I38: 0 | J38: 0 | K38: =SUM(G38:J38) -> 1249018
B39: Formation continue, diplômes propres et VAE | C39: 0 | D39: 0 | E39: 0 | F39: 0 | G39: 8294046.64 | H39: 0 | I39: 0 | J39: 0 | K39: =SUM(G39:J39) -> 8294046.64
B40: Taxe d'apprentissage | C40: 0 | D40: 0 | E40: 0 | F40: 0 | G40: 523000 | H40: 0 | I40: 0 | J40: 0 | K40: =SUM(G40:J40) -> 523000
B41: Contrats et prestations de recherche hors ANR | C41: 0 | D41: 0 | E41: 0 | F41: 0 | G41: 1651327.85 | H41: 0 | I41: 0 | J41: 0 | K41: =SUM(G41:J41) -> 1651327.85
B42: Valorisation | C42: 0 | D42: 0 | E42: 0 | F42: 0 | G42: 1172329.74 | H42: 0 | I42: 0 | J42: 0 | K42: =SUM(G42:J42) -> 1172329.74
B43: ANR investissements d'avenir | C43: 0 | D43: 0 | E43: 0 | F43: 76803.44 | G43: 0 | H43: 0 | I43: 0 | J43: 0 | K43: =SUM(F43,H43:J43) -> 76803.44
B44: ANR hors investissements d'avenir | C44: 0 | D44: 0 | E44: 0 | F44: 2327031.45 | G44: 0 | H44: 0 | I44: 437115.69 | J44: 0 | K44: =SUM(F44,H44:J44) -> 2764147.14
B45: Subventions d'exploitation et financement des actifs - Région | C45: 0 | D45: 0 | E45: 0 | F45: 2409231.14 | G45: 0 | H45: 0 | I45: 0 | J45: 0 | K45: =SUM(F45,H45:J45) -> 2409231.14
B46: Subventions d'exploitation et financement des actifs - Union Européenne | C46: 0 | D46: 0 | E46: 0 | F46: 3229789.9 | G46: 0 | H46: 0 | I46: 0 | J46: 0 | K46: =SUM(F46,H46:J46) -> 3229789.9
B47: Subventions d'exploitation et financement des actifs - Autres | C47: 0 | D47: 3328846.93 | E47: 0 | F47: 1489683.81 | G47: 28363.42 | H47: 0 | I47: 0 | J47: 0 | K47: =SUM(D47,F47:J47) -> 4846894.16
B48: Fondations - fonds propres, réserves, dons et legs | C48: 0 | D48: 0 | E48: 0 | F48: 0 | G48: 200933 | H48: 0 | I48: 0 | J48: 0 | K48: =SUM(D48,F48:J48) -> 200933
B49: Autres recettes | C49: 0 | D49: 0 | E49: 681352.61 | F49: 2000 | G49: 4908993.61 | H49: 0 | I49: 0 | J49: 0 | K49: =SUM(E49:J49) -> 5592346.22
B50: Total | C50: =C37 -> 70171179 | D50: =SUM(D47:D48) -> 3328846.93 | E50: =E49 -> 681352.61 | F50: =SUM(F43:F49) -> 9534539.74 | G50: =SUM(G38:G42,G47:G49) -> 18028012.26 | H50: =SUM(H38:H49) -> 0 | I50: =SUM(I38:I49) -> 437115.69 | J50: 0 | K50: =SUM(K37:K49) -> 102181046.2
B52: La liste des destination est susceptible d'être modifiée par le ministre chargé de l'enseignement supérieur | I52: SOLDE BUDGETAIRE (déficit) | K52: =IF(J28>K50,J28-K50,0) -> 2551281.01

Sheet 3-tab_destination_origine_PRINC
B1: Tableau 3 - Université de Bretagne Sud (0561718N) : Etablissement principal
B2: ="Dépenses par destination et recettes par origine - Budget "&Maquette!B4&" "&Maquette!B5&" "&Maquette!B3 -> Dépenses par destination et recettes par origine - Budget rectificatif n° 2 2023
B4: POUR INFORMATION DE L'ORGANE DÉLIBÉRANT
B5: Tableau des dépenses par destination (obligatoire)
B6: Budget | C6: Dépenses de l’organisme
C7: Personnel | E7: Fonctionnement et intervention | G7: Investissement | I7: Total
C8: AE = CP | E8: AE | F8: CP | G8: AE | H8: CP | I8: AE | J8: CP
B9: Formation initiale et continue (d) = (a) + (b) + (c) | C9: =SUM(C10:C12) -> 46384028.98 | D9: =SUM(D10:D12) -> 46384028.98 | E9: 4353045.01 | F9: 3628982.52 | G9: 1560327.39 | H9: 1602090.63 | I9: =C9+E9+G9 -> 52297401.38 | J9: =D9+F9+H9 -> 51615102.13
B10: D101 - Formation initiale et continue de niveau Licence (a) | C10: 34024414.74 | D10: 34024414.74 | E10: 2740983.99 | F10: 2064874.28 | G10: 1111482.36 | H10: 1142566.57 | I10: =C10+E10+G10 -> 37876881.09 | J10: 37231855.59
B11: D102 - Formation initiale et continue de niveau Master (b) | C11: 11171913.12 | D11: 11171913.12 | E11: 1373234.85 | F11: 1324900.16 | G11: 448845.03 | H11: 459524.06 | I11: 12993993 | J11: 12956337.34
B12: D103 - Formation initiale et continue de niveau Doctorat (c) | C12: 1187701.12 | D12: 1187701.12 | E12: 238826.17 | F12: 239208.08 | G12: 0 | H12: 0 | I12: 1426527.29 | J12: 1426909.2
B13: D105 - Bibliothèques et documentation | C13: 1804158 | D13: 1804158 | E13: 487664 | F13: 487664 | G13: 20000 | H13: 20000 | I13: 2311822 | J13: 2311822
B14: D106 - Recherche universitaire en sciences de la vie, biotechnologie et santé | C14: 1427792.12 | D14: 1427792.12 | E14: 285166.06 | F14: 301471.91 | G14: 383150.23 | H14: 383150.23 | I14: 2096108.41 | J14: 2112414.26
B15: D107 - Recherche universitaire en mathématiques, sciences et techniques de l'information et de la communication, micro et nanotechnologies | C15: 6346602.98 | D15: 6346602.98 | E15: 769576.5 | F15: 760550.92 | G15: 339194.46 | H15: 393295.67 | I15: 7455373.94 | J15: 7500449.57
B16: D108 - Recherche universitaire en physique, chimie et sciences pour l'ingénieur | C16: 7091645.2 | D16: 7091645.2 | E16: 1860769.02 | F16: 2020928.95 | G16: 1624636 | H16: 1480067.88 | I16: 10577050.22 | J16: 10592642.03
B17: D109 - Recherche universitaire en physique nucléaire et des hautes énergies | C17: 0 | D17: 0 | E17: 0 | F17: 0 | G17: 0 | H17: 0 | I17: 0 | J17: 0
B18: D110 - Recherche universitaire en sciences de la terre, de l'univers et de l'environnement | C18: 711456.46 | D18: 711456.46 | E18: 188585.58 | F18: 192655.27 | G18: 77905.83 | H18: 77905.83 | I18: 977947.87 | J18: 982017.56
B19: D111 - Recherche universitaire en sciences de l'homme et de la société | C19: 5663412.56 | D19: 5663412.56 | E19: 587743.6 | F19: 617894.16 | G19: 13492.68 | H19: 15758.46 | I19: 6264648.84 | J19: 6297065.18
B20: D112 - Recherche universitaire interdisciplinaire et transversale | C20: 301893.47 | D20: 301893.47 | E20: 345662.12 | F20: 345028.63 | G20: 3530 | H20: 3530 | I20: 651085.59 | J20: 650452.1
B21: D113 - Diffusion des savoirs et musées | I21: 0 | J21: 0
B22: D114 - Immobilier | C22: 2284568.64 | D22: 2284568.64 | E22: 4451595 | F22: 4451595 | G22: 3040253.3 | H22: 3309487.51 | I22: 9776416.94 | J22: 10045651.15
B23: D115 - Pilotage et support | C23: 6825399.5 | D23: 6825399.5 | E23: 1893826.1 | F23: 1997922.41 | G23: 630802.55 | H23: 633000.61 | I23: 9350028.15 | J23: 9456322.52
B24: Étudiants (h) = (e) + (f) + (g) | C24: =SUM(C25:C27) -> 1582724 | D24: =SUM(D25:D27) -> 1582724 | E24: 982567.13 | F24: 704346.18 | G24: 613383.82 | H24: 526954.1 | I24: 3178674.95 | J24: 2814024.28
B25: D201 - Aides directes aux étudiants (e) | C25: 0 | D25: 0 | E25: 545305.66 | F25: 256576.4 | G25: 0 | H25: 0 | I25: 545305.66 | J25: 256576.4
B26: D202 - Aides indirectes (f) | C26: 0 | D26: 0 | E26: 2376.4 | F26: 2376.4 | G26: 11520 | H26: 11520 | I26: 13896.4 | J26: 13896.4
B27: D203 - Santé des étudiants et activités associatives, culturelles et sportives (g) | C27: 1582724 | D27: 1582724 | E27: 434885.07 | F27: 445393.38 | G27: 601863.82 | H27: 515434.1 | I27: 2619472.89 | J27: 2543551.48
B28: Total | C28: =SUM(C10:C24) -> 80423681.91 | D28: =SUM(D10:D24) -> 80423681.91 | E28: 16206200.12 | F28: 15509039.95 | G28: 8306676.26 | H28: 8445240.92 | I28: =C28+E28+G28 -> 104936558.3 | J28: =D28+F28+H28 -> 104377962.8
H30: SOLDE BUDGETAIRE (excédent) | J30: =IF(K50>J28,K50-J28,0) -> 0
B32: Tableau des recettes par origine (obligatoire)
B34: Budget | C34: Recettes de l'organisme
C35: Recettes globalisées | H35: Recettes fléchées | K35: Total
C36: Subvention pour charges de service public | D36: Autres financements de l'Etat | E36: Fiscalité affectée | F36: Autres financements publics | G36: Recettes propres | H36: Financements de l'Etat fléchés | I36: Autres financements publics fléchés | J36: Recettes propres fléchées
B37: Subvention pour charges de service public | C37: 70171179 | D37: 0 | E37: 0 | F37: 0 | G37: 0 | H37: 0 | I37: 0 | J37: 0 | K37: =C37 -> 70171179
B38: Droits d'inscription | C38: 0 | D38: 0 | E38: 0 | F38: 0 | G38: 1249018 | H38: 0 | I38: 0 | J38: 0 | K38: =SUM(G38:J38) -> 1249018
B39: Formation continue, diplômes propres et VAE | C39: 0 | D39: 0 | E39: 0 | F39: 0 | G39: 8294046.64 | H39: 0 | I39: 0 | J39: 0 | K39: =SUM(G39:J39) -> 8294046.64
B40: Taxe d'apprentissage | C40: 0 | D40: 0 | E40: 0 | F40: 0 | G40: 523000 | H40: 0 | I40: 0 | J40: 0 | K40: 523000
B41: Contrats et prestations de recherche hors ANR | C41: 0 | D41: 0 | E41: 0 | F41: 0 | G41: 1651327.85 | H41: 0 | I41: 0 | J41: 0 | K41: 1651327.85
B42: Valorisation | C42: 0 | D42: 0 | E42: 0 | F42: 0 | G42: 1172329.74 | H42: 0 | I42: 0 | J42: 0 | K42: 1172329.74
B43: ANR investissements d'avenir | C43: 0 | D43: 0 | E43: 0 | F43: 76803.44 | G43: 0 | H43: 0 | I43: 0 | J43: 0 | K43: =SUM(F43,H43:J43) -> 76803.44
B44: ANR hors investissements d'avenir | C44: 0 | D44: 0 | E44: 0 | F44: 2327031.45 | G44: 0 | H44: 0 | I44: 437115.69 | J44: 0 | K44: =SUM(F44,H44:J44) -> 2764147.14
B45: Subventions d'exploitation et financement des actifs - Région | C45: 0 | D45: 0 | E45: 0 | F45: 2408164.14 | G45: 0 | H45: 0 | I45: 0 | J45: 0 | K45: 2408164.14
B46: Subventions d'exploitation et financement des actifs - Union Européenne | C46: 0 | D46: 0 | E46: 0 | F46: 3229789.9 | G46: 0 | H46: 0 | I46: 0 | J46: 0 | K46: 3229789.9
B47: Subventions d'exploitation et financement des actifs - Autres | C47: 0 | D47: 3349367.25 | E47: 0 | F47: 1480683.81 | G47: 28363.42 | H47: 0 | I47: 0 | J47: 0 | K47: =SUM(D47,F47:J47) -> 4858414.48
B48: Fondations - fonds propres, réserves, dons et legs | C48: 0 | D48: 0 | E48: 0 | F48: 0 | G48: 0 | H48: 0 | I48: 0 | J48: 0 | K48: =SUM(D48,F48:J48) -> 0
B49: Autres recettes | C49: 0 | D49: 0 | E49: 681352.61 | F49: 2000 | G49: 4770568.61 | H49: 0 | I49: 0 | J49: 0 | K49: =SUM(E49:J49) -> 5453921.22
B50: Total | C50: =C37 -> 70171179 | D50: =SUM(D47:D48) -> 3349367.25 | E50: =E49 -> 681352.61 | F50: =SUM(F43:F49) -> 9524472.74 | G50: =SUM(G38:G42,G47:G49) -> 17688654.26 | H50: =SUM(H38:H49) -> 0 | I50: =SUM(I38:I49) -> 437115.69 | J50: 0 | K50: =SUM(K37:K49) -> 101852141.5
B52: La liste des destination est susceptible d'être modifiée par le ministre chargé de l'enseignement supérieur | I52: SOLDE BUDGETAIRE (déficit) | K52: =IF(J28>K50,J28-K50,0) -> 2525821.23

Sheet 3-tab_destination_origine_AGR (hidden)
B1: Tableau 3 - Université de Bretagne Sud (0561718N) : Etablissement principal + Fondation
B2: ="Dépenses par destination et recettes par origine - Budget agrégé "&Maquette!B4&" "&Maquette!B5&" "&Maquette!B3 -> Dépenses par destination et recettes par origine - Budget agrégé rectificatif n° 2 2023
B4: POUR INFORMATION DE L'ORGANE DÉLIBÉRANT
B5: Tableau des dépenses par destination (obligatoire)
B6: Budget | C6: Dépenses de l’organisme
C7: Personnel | E7: Fonctionnement et intervention | G7: Investissement | I7: Total
C8: AE = CP | E8: AE | F8: CP | G8: AE | H8: CP | I8: AE | J8: CP
B9: Formation initiale et continue (d) = (a) + (b) + (c) | C9: =SUM(C10:C12) -> 0 | D9: =SUM(D10:D12) -> 0 | E9: 0 | F9: 0 | G9: 0 | H9: 0 | I9: =C9+E9+G9 -> 0 | J9: =D9+F9+H9 -> 0
B10: D101 - Formation initiale et continue de niveau Licence (a) | I10: =C10+E10+G10 -> 0 | J10: 0
B11: D102 - Formation initiale et continue de niveau Master (b) | I11: 0 | J11: 0
B12: D103 - Formation initiale et continue de niveau Doctorat (c) | I12: 0 | J12: 0
B13: D105 - Bibliothèques et documentation | I13: 0 | J13: 0
B14: D106 - Recherche universitaire en sciences de la vie, biotechnologie et santé | I14: 0 | J14: 0
B15: D107 - Recherche universitaire en mathématiques, sciences et techniques de l'information et de la communication, micro et nanotechnologies | I15: 0 | J15: 0
B16: D108 - Recherche universitaire en physique, chimie et sciences pour l'ingénieur | I16: 0 | J16: 0
B17: D109 - Recherche universitaire en physique nucléaire et des hautes énergies | I17: 0 | J17: 0
B18: D110 - Recherche universitaire en sciences de la terre, de l'univers et de l'environnement | I18: 0 | J18: 0
B19: D111 - Recherche universitaire en sciences de l'homme et de la société | I19: 0 | J19: 0
B20: D112 - Recherche universitaire interdisciplinaire et transversale | I20: 0 | J20: 0
B21: D113 - Diffusion des savoirs et musées | I21: 0 | J21: 0
B22: D114 - Immobilier | I22: 0 | J22: 0
B23: D115 - Pilotage et support | I23: 0 | J23: 0
B24: Étudiants (h) = (e) + (f) + (g) | C24: =SUM(C25:C27) -> 0 | D24: =SUM(D25:D27) -> 0 | E24: 0 | F24: 0 | G24: 0 | H24: 0 | I24: 0 | J24: 0
B25: D201 - Aides directes aux étudiants (e) | I25: 0 | J25: 0
B26: D202 - Aides indirectes (f) | I26: 0 | J26: 0
B27: D203 - Santé des étudiants et activités associatives, culturelles et sportives (g) | I27: 0 | J27: 0
B28: Total | C28: =SUM(C10:C24) -> 0 | D28: =SUM(D10:D24) -> 0 | E28: 0 | F28: 0 | G28: 0 | H28: 0 | I28: =C28+E28+G28 -> 0 | J28: =D28+F28+H28 -> 0
C30: =IF(SUM(C9:C28)<>SUM(D9:D28),"! Dépenses de personnel AE <> CP","") ->  | H30: SOLDE BUDGETAIRE (excédent) | J30: =IF(K50>J28,K50-J28,0) -> 0 | K30: =IF(ROUND(J30,-1)<>ROUND(#REF!,-1),"Incohérence solde budgétaire avec Tab2 AGR","") -> 
C31: =IF(ROUND(C28,-1)<>ROUND(#REF!+#REF!,-1),"! Incohérence total Personnel AE avec Tab2 AGR","") ->  | D31: =IF(ROUND(D28,-1)<>ROUND(#REF!+#REF!,-1),"! Incohérence total Personnel CP avec Tab2 AGR","") ->  | E31: =IF(ROUND(E28,-1)<>ROUND(#REF!+#REF!,-1),"! Incohérence total Fonctionnement AE avec Tab2 AGR","") ->  | F31: =IF(ROUND(F28,-1)<>ROUND(#REF!+#REF!,-1),"! Incohérence total Fonctionnement CP avec Tab2 AGR","") ->  | G31: =IF(ROUND(G28,-1)<>ROUND(#REF!+#REF!,-1),"! Incohérence total Investissement AE avec Tab2 AGR","") ->  | H31: =IF(ROUND(H28,-1)<>ROUND(#REF!+#REF!,-1),"! Incohérence total Investissement CP avec Tab2 AGR","") ->  | I31: =IF(ROUND(I28,-1)<>ROUND(#REF!,-1),"! Incohérence Total dépenses AE avec Tab2 AGR","") ->  | J31: =IF(ROUND(J28,-1)<>ROUND(#REF!,-1),"! Incohérence Total dépenses CP avec Tab2 AGR","") -> 
B32: Tableau des recettes par origine (obligatoire)
B34: Budget | C34: Recettes de l'organisme
C35: Recettes globalisées | H35: Recettes fléchées | K35: Total
C36: Subvention pour charges de service public | D36: Autres financements de l'Etat | E36: Fiscalité affectée | F36: Autres financements publics | G36: Recettes propres | H36: Financements de l'Etat fléchés | I36: Autres financements publics fléchés | J36: Recettes propres fléchées
B37: Subvention pour charges de service public | K37: =C37 -> 0
B38: Droits d'inscription | K38: =SUM(G38:J38) -> 0
B39: Formation continue, diplômes propres et VAE | K39: =SUM(G39:J39) -> 0
B40: Taxe d'apprentissage | K40: 0
B41: Contrats et prestations de recherche hors ANR | K41: 0
B42: Valorisation | K42: 0
B43: ANR investissements d'avenir | K43: =SUM(F43,H43:J43) -> 0
B44: ANR hors investissements d'avenir | K44: =SUM(F44,H44:J44) -> 0
B45: Subventions d'exploitation et financement des actifs - Région | K45: 0
B46: Subventions d'exploitation et financement des actifs - Union Européenne | K46: 0
B47: Subventions d'exploitation et financement des actifs - Autres | K47: =SUM(D47,F47:J47) -> 0
B48: Fondations - fonds propres, réserves, dons et legs | K48: =SUM(D48,F48:J48) -> 0
B49: Autres recettes | K49: =SUM(F49:J49) -> 0
B50: Total | C50: =C37 -> 0 | D50: =SUM(D47:D48) -> 0 | E50: =SUM(E47:E48) -> 0 | F50: =SUM(F43:F49) -> 0 | G50: =SUM(G38:G42,G47:G49) -> 0 | H50: =SUM(H38:H49) -> 0 | I50: =SUM(I38:I49) -> 0 | J50: 0 | K50: =SUM(K37:K49) -> 0
B52: La liste des destination est susceptible d'être modifiée par le ministre chargé de l'enseignement supérieur | I52: SOLDE BUDGETAIRE (déficit) | K52: =IF(J28>K50,J28-K50,0) -> 0 | L52: =IF(ROUND(K52,-1)<>ROUND(#REF!,-1),"! Incohérence solde budgétaire avec Tab2 AGR","") -> 
C53: =IF(ROUND(C50,-1)<>ROUND(#REF!,-1),"! Incohérence total Subv charges serv public avec Tab2 AGR","") ->  | D53: =IF(ROUND(D50,-1)<>ROUND(#REF!,-1),"! Incohérence total Autres financements Etat avec Tab2 AGR","") ->  | E53: =IF(ROUND(E50,-1)<>ROUND(#REF!,-1),"! Incohérence total Fiscalité affectée avec Tab2 AGR","") ->  | F53: =IF(ROUND(F50,-1)<>ROUND(#REF!,-1),"! Incohérence total Autres financements publics avec Tab2 AGR","") ->  | G53: =IF(ROUND(G50,-1)<>ROUND(#REF!,-1),"! Incohérence total Recettes propres avec Tab2 AGR","") ->  | H53: =IF(ROUND(H50,-1)<>ROUND(#REF!,-1),"! Incohérence total Financements Etat fléchés avec Tab2 AGR","") ->  | I53: =IF(ROUND(I50,-1)<>ROUND(#REF!,-1),"! Incohérence total Autres financements fléchés avec Tab2 AGR","") ->  | J53: =IF(ROUND(J50,-1)<>ROUND(#REF!,-1),"! Incohérence total Recettes propres fléchées avec Tab2 AGR","") ->  | K53: =IF(ROUND(K50,-1)<>ROUND(#REF!,-1),"! Incohérence total avec Tab2 AGR","") -> 
H54: =IF(H50<>'8-tab recettes_fléchées_ETAB'!D13,"! Incohérence Financements Etat fléchés avec Tab8 ETAB","") ->  | I54: =IF(ROUND(I50,-1)<>ROUND('8-tab recettes_fléchées_AGR'!D14,-1),"! Incohérence Autres financements fléchés avec Tab8 AGR","") ->  | J54: =IF(ROUND(J50,-1)<>ROUND('8-tab recettes_fléchées_AGR'!D15,-1),"! Incohérences Recettes propres fléchées avec Tab8 AGR ","") -> 

Sheet 4-tab_financier_ETAB
B1: Tableau 4 - Université de Bretagne Sud (0561718N) : Etablissement principal + Fondation
B2: ="Équilibre financier - Budget consolidé "&Maquette!B4&" "&Maquette!B5&" "&Maquette!B3 -> Équilibre financier - Budget consolidé rectificatif n° 2 2023
B5: POUR VOTE DE L'ORGANE DÉLIBÉRANT
B9: Besoins (utilisation des financements) | I9: Financements (couverture des besoins)
C10: Exécution N-1 | D10: Budget initial (a) | E10: Nouveau BR | F10: Somme des BR (yc nouveau BR) (b) | G10: TOTAL : dernier budget modifié (c) = (a) + (b) | I10: Exécution N-1 | J10: Budget initial (d) | K10: Nouveau BR | L10: Somme des BR (yc nouveau BR) (e) | M10: TOTAL : dernier budget modifié (f) = (d) + (e)
B11: Solde budgétaire (déficit) * (D2) | D11: ='2-tab_aut_budg_ETAB'!O30 -> 4308194.84 | E11: ='2-tab_aut_budg_ETAB'!P30 -> 0 | F11: =E11 -> 0 | G11: =IF(SUM(J11,L11)-SUM(D11,F11)<0,-(SUM(J11,L11)-SUM(D11,F11)),0) -> 2551280.56 | I11: 107904.77 | K11: ='2-tab_aut_budg_ETAB'!H30 -> 2913392.09 | L11: ='2-tab_aut_budg_ETAB'!J30 -> 1756914.28 | M11: =IF(SUM(J11,L11)-SUM(D11,F11)>=0,SUM(J11,L11)-SUM(D11,F11),0) -> 0 | N11: Solde budgétaire (excédent) * (D1) | R11: Opérations ayant un impact sur la trésorerie
B12: dont solde budgétaire budget principal | D12: ='2-tab_aut_budg_PRINC'!O30 -> 4246952.84 | E12: ='2-tab_aut_budg_PRINC'!P30 -> 0 | F12: =E12 -> 0 | G12: =IF(SUM(J12,L12)-SUM(D12,F12)<0,-(SUM(J12,L12)-SUM(D12,F12)),0) -> 2525820.78 | I12: 5003.46 | K12: ='2-tab_aut_budg_PRINC'!H30 -> 2849658.09 | L12: ='2-tab_aut_budg_PRINC'!J30 -> 1721132.06 | M12: =IF(SUM(J12,L12)-SUM(D12,F12)>=0,SUM(J12,L12)-SUM(D12,F12),0) -> 0 | N12: dont solde budgétaire budget principal
B13: dont solde budgétaire budget du SAIC | G13: =IF(SUM(J13,L13)-SUM(D13,F13)<0,-(SUM(J13,L13)-SUM(D13,F13)),0) -> 0 | M13: 0 | N13: dont solde budgétaire budget du SAIC | P13: Opérations budgétaires
B14: dont solde budgétaire FU | D14: ='2-tab_aut_budg_FU'!O30 -> 61242 | E14: ='2-tab_aut_budg_FU'!P30 -> 0 | F14: =E14 -> 0 | G14: =IF(SUM(J14,L14)-SUM(D14,F14)<0,-(SUM(J14,L14)-SUM(D14,F14)),0) -> 25459.78 | I14: 102901.31 | K14: ='2-tab_aut_budg_FU'!H30 -> 63734 | L14: ='2-tab_aut_budg_FU'!J30 -> 35782.22 | M14: 0 | N14: dont solde budgétaire FU
B15: dont solde budgétaire BAI | G15: =D15+F15 -> 0 | M15: 0 | N15: dont solde budgétaire BAI
B16: dont solde budgétaire SIE | G16: 0 | M16: 0 | N16: dont solde budgétaire SIE
G17: 0 | M17: =J17+L17 -> 0
B18: Remboursements d'emprunts (capital) ; Nouveaux prêts (capital) ; Dépôts et cautionnements (b1) | E18: 0 | F18: 1200 | G18: 1200 | K18: 0 | L18: 11198 | M18: 11198 | N18: Nouveaux emprunts (capital) ; Remboursements de prêts (capital) ; Dépôts et cautionnements (b2)
G19: 0 | M19: 0
B20: Opérations au nom et pour le compte de tiers ** (décaissements de l’exercice) (c1) | C20: 2263175.54 | D20: 2364470 | E20: 535179 | F20: =319167+E20 -> 854346 | G20: 3218816 | I20: 2461090.61 | J20: 1988550 | K20: 628044 | L20: =215164+K20 -> 843208 | M20: 2831758 | N20: Opérations au nom et pour le compte de tiers ** (encaissements de l’exercice) (c2) | P20: Opérations non budgétaires
G21: 0 | M21: 0
B22: Autres décaissements sur comptes de tiers (non budgétaires) (e1) | C22: 1024155.44 | D22: 0 | F22: =E22 -> 0 | G22: 0 | I22: 1322007.4 | J22: 0 | L22: =K22 -> 0 | M22: 0 | N22: Autres encaissements sur comptes de tiers (non budgétaires) (e2)
G23: 0 | M23: 0
B24: Sous-total des opérations ayant un impact négatif sur la trésorerie de l'organisme (1= D2+b1+c1+e1) | C24: =C11+C18+C20+C22 -> 3287330.98 | D24: =D11+D18+D20+D22 -> 6672664.84 | E24: =E11+E18+E20+E22 -> 535179 | F24: =F11+F18+F20+F22 -> 855546 | G24: =G11+G18+G20+G22 -> 5771296.56 | H24: et | I24: =I11+I18+I20+I22 -> 3891002.78 | J24: =J11+J18+J20+J22 -> 1988550 | K24: =K11+K18+K20+K22 -> 3541436.09 | L24: =L11+L18+L20+L22 -> 2611320.28 | M24: =M11+M18+M20+M22 -> 2842956 | N24: Sous-total des opérations ayant un impact positif sur la trésorerie de l'organisme (2=D1+b2+c2+e2) | P24: La variation de trésorerie : - se détermine par différence entre (1) et (2), - se décompose en (a) et (d), - s'explique par D, (b), (c), (e).
B25: Variation de trésorerie (I) | C25: =IF(I24-C24>0,I24-C24,) -> 603671.8 | D25: =IF(J24-D24>0,J24-D24,) -> 0 | E25: =IF(K24-E24>0,K24-E24,) -> 3006257.09 | F25: =IF(L24-F24>0,L24-F24,) -> 1755774.28 | G25: =IF(M24-G24>0,M24-G24,) -> 0 | H25: ou | I25: =IF(C24-I24>0,C24-I24,0) -> 0 | J25: =IF(D24-J24>0,D24-J24,0) -> 4684114.84 | K25: =IF(E24-K24>0,E24-K24,0) -> 0 | L25: =IF(F24-L24>0,F24-L24,0) -> 0 | M25: =IF(G24-M24>0,G24-M24,0) -> 2928340.56 | N25: Variation de trésorerie (II)
G26: =D26+F26 -> 0 | M26: =J26+L26 -> 0 | R26: Décomposition de la variation de trésorerie
B27: dont Abondement de la trésorerie fléchée *** (a1) | C27: 2019075.04 | E27: 443743.62 | F27: =E27-89548.04 -> 354195.58 | H27: ou | J27: 774736 | M27: =J27-F27 -> 420540.42 | N27: dont Prélèvement sur la trésorerie fléchée *** (a2)
G28: 0 | M28: 0
B29: dont Abondement sur la trésorerie non fléchée (d1) | E29: =E25-E27 -> 2562513.47 | F29: =E29-1160935-0.3 -> 1401578.17 | H29: ou | I29: =C27-C25 -> 1415403.24 | J29: =J25-J27 -> 3909378.84 | K29: =K25-K27 -> 0 | L29: =K29 -> 0 | M29: =J29-F29 -> 2507800.67 | N29: dont Prélèvement sur la trésorerie non fléchée (d2) | P29: = différence entre variation de trésorerie (I ou II) et (a)
G30: 0 | M30: 0
B31: TOTAL DES BESOINS (1 + I) | C31: =C25+C24 -> 3891002.78 | D31: =D25+D24 -> 6672664.84 | E31: 3541436.09 | F31: =F25+F24 -> 2611320.28 | G31: =G25+G24 -> 5771296.56 | H31: et | I31: =I25+I24 -> 3891002.78 | J31: =J25+J24 -> 6672664.84 | K31: 3541436.09 | L31: 2611320.28 | M31: 5771296.56 | N31: TOTAL DES FINANCEMENTS (2 + II) | P31: =420540.42-M27 -> 0
B33: * solde budgétaire à détailler pour chaque composante du budget de l'établissement
B34: Montant issu du tableau "Autorisations budgétaires" (tableau 2)
B35: ** Montants issus du tableau "Opérations pour compte de tiers" (tableau 5)
B36: *** Montant issu du tableau "Opérations sur recettes fléchées" (tableau 8)
B38: SAIC : service d'activités industrielles et commerciales
B39: FU : fondation universitaire
B40: BAI : budget annexe immobilier
B41: SIE : service inter-établissements

Sheet 5-tab compte de tiers_ETAB
B1: Tableau 5 - Université de Bretagne Sud (0561718N) : Etablissement principal + Fondation
B2: ="Opérations pour le compte de tiers - Budget consolidé "&Maquette!B4&" "&Maquette!B5&" "&Maquette!B3 -> Opérations pour le compte de tiers - Budget consolidé rectificatif n° 2 2023
B5: POUR INFORMATION DE L'ORGANE DÉLIBÉRANT
B9: Opérations ou regroupement d'opérations de même nature | C9: Comptes | D9: Libellé | E9: Prévisions de décaissements | F9: Prévisions d'encaissements
B10: Opération 1 | C10: C 46711 | D10: Bourse Mobilité Internationale | E10: 107000 | F10: 154400
C11: C 4…
B12: Opération 2 | C12: C 44571 et C 44551 | D12: TVA | E12: 865187.43 | F12: 585249.03
C13: C 4...
B14: Opération 3 | C14: C 4731 | D14: Projet Flower (Interreg) | E14: 631568 | F14: 631568
C15: C 4...
B16: Opération 4 | C16: C 4731 | D16: Projet Indigo (Interreg) | E16: 1042257 | F16: 1042257
C17: C 4...
B18: Opération 5 | C18: C 467611 | D18: Projet Cyberus | E18: 154520 | F18: 0
C19: C 4...
B20: Opération 6 | C20: C 467612 | D20: Mobilité apprentissage | E20: 25000 | F20: 25000
C21: C 4...
B22: Opération 7 | C22: C 467613 | D22: Mobilité des doctorants | E22: 10400 | F22: 10400
C23: C 4...
B24: Opération 8 | C24: C 467614 | D24: Projet Tranga | E24: 382884 | F24: 382884
C25: C 4...
B26: TOTAL | E26: =SUM(E10:E25) -> 3218816.43 | F26: =SUM(F10:F25) -> 2831758.03
E27: (c1) | F27: (c2)
D28: (c1) et (c2) étant repris au tableau "Équilibre financier" (tableau 4)
B29: N.B. : Dans l'hypothèse d'un écart entre les crédits et les débits d'un même compte, l'opération concernée devra faire l'objet d'une explication spécifique.

Sheet 6-tab CR_TF_ETAB
A1: Tableau 6 - Université de Bretagne Sud (0561718N) : Etablissement principal + Fondation
A2: ="Situation patrimoniale - Budget consolidé "&Maquette!B4&" "&Maquette!B5&" "&Maquette!B3 -> Situation patrimoniale - Budget consolidé rectificatif n° 2 2023
A4: POUR VOTE DE L'ORGANE DÉLIBÉRANT
A6: Compte de résultat prévisionnel
A8: CHARGES | B8: Exécution N-1 | C8: Budget initial (a) | D8: Nouveau BR | E8: Somme des BR (yc nouveau BR) (b) | F8: TOTAL : dernier budget modifié (c) = (a) + (b) | G8: PRODUITS | H8: Exécution N-1 | I8: Budget initial (d) | J8: Nouveau BR | K8: Somme des BR (yc nouveau BR) (e) | L8: TOTAL : dernier budget modifié (f) = (d) + (e)
A9: Personnel | B9: ='6-tab CR_TF_AGR'!B9+'6-tab CR_TF_SIE'!B9 -> 73619346.53 | C9: ='6-tab CR_TF_PRINC'!C9+'6-tab CR_TF_FU'!C9 -> 79122687 | D9: ='6-tab CR_TF_AGR'!D9+'6-tab CR_TF_SIE'!D9 -> 0 | E9: ='6-tab CR_TF_AGR'!E9+'6-tab CR_TF_SIE'!E9 -> 634143.03 | F9: =C9+E9 -> 79756830.03 | G9: Subventions de l'Etat | H9: ='6-tab CR_TF_AGR'!H9+'6-tab CR_TF_SIE'!H9 -> 71315703.88 | I9: ='6-tab CR_TF_PRINC'!I9+'6-tab CR_TF_FU'!I9 -> 73523261 | J9: ='6-tab CR_TF_AGR'!J9+'6-tab CR_TF_SIE'!J9 -> 148555.46 | K9: ='6-tab CR_TF_AGR'!K9+'6-tab CR_TF_SIE'!K9 -> 568738.01 | L9: =I9+K9 -> 74091999.01
A10: dont charges de pensions civiles* | B10: ='6-tab CR_TF_AGR'!B10+'6-tab CR_TF_SIE'!B10 -> 19889158.25 | C10: ='6-tab CR_TF_PRINC'!C10+'6-tab CR_TF_FU'!C10 -> 20016600 | D10: ='6-tab CR_TF_AGR'!D10+'6-tab CR_TF_SIE'!D10 -> 0 | E10: ='6-tab CR_TF_AGR'!E10+'6-tab CR_TF_SIE'!E10 -> 0 | F10: =C10+E10 -> 20016600 | G10: Fiscalité affectée | H10: ='6-tab CR_TF_AGR'!H10+'6-tab CR_TF_SIE'!H10 -> 473570.35 | I10: ='6-tab CR_TF_PRINC'!I10+'6-tab CR_TF_FU'!I10 -> 626184 | J10: ='6-tab CR_TF_AGR'!J10+'6-tab CR_TF_SIE'!J10 -> 55248.61 | K10: ='6-tab CR_TF_AGR'!K10+'6-tab CR_TF_SIE'!K10 -> 55248.61 | L10: =I10+K10 -> 681432.61
A11: Fonctionnement (autre que les charges de personnel) et intervention | B11: ='6-tab CR_TF_AGR'!B11:B12+'6-tab CR_TF_SIE'!B11:B12 -> 20399917.12 | C11: ='6-tab CR_TF_PRINC'!C11:C12+'6-tab CR_TF_FU'!C11:C12 -> 24003901 | D11: ='6-tab CR_TF_AGR'!D11:D12+'6-tab CR_TF_SIE'!D11:D12 -> -958342.5 | E11: ='6-tab CR_TF_AGR'!E11:E12+'6-tab CR_TF_SIE'!E11:E12 -> 871847.57 | F11: =C11+E11 -> 24875748.57 | G11: Autres subventions | H11: ='6-tab CR_TF_AGR'!H11+'6-tab CR_TF_SIE'!H11 -> 4586564.18 | I11: ='6-tab CR_TF_PRINC'!I11+'6-tab CR_TF_FU'!I11 -> 6699752 | J11: ='6-tab CR_TF_AGR'!J11+'6-tab CR_TF_SIE'!J11 -> -1508797.84 | K11: ='6-tab CR_TF_AGR'!K11+'6-tab CR_TF_SIE'!K11 -> 92591.17 | L11: 6792343.17
G12: Autres produits | H12: ='6-tab CR_TF_AGR'!H12+'6-tab CR_TF_SIE'!H12 -> 20019373.37 | I12: ='6-tab CR_TF_PRINC'!I12+'6-tab CR_TF_FU'!I12 -> 21217304 | J12: ='6-tab CR_TF_AGR'!J12+'6-tab CR_TF_SIE'!J12 -> -270752.63 | K12: ='6-tab CR_TF_AGR'!K12+'6-tab CR_TF_SIE'!K12 -> 472450.84 | L12: 21689754.84
A13: TOTAL DES CHARGES (1) | B13: =B9+B11 -> 94019263.65 | C13: =C9+C11 -> 103126588 | D13: =D9+D11 -> -958342.5 | E13: =E9+E11 -> 1505990.6 | F13: =F9+F11 -> 104632578.6 | G13: TOTAL DES PRODUITS (2) | H13: =SUM(H9:H12) -> 96395211.78 | I13: =SUM(I9:I12) -> 102066501 | J13: -1575746.4 | K13: 1189028.63 | L13: =SUM(L9:L12) -> 103255529.6
A14: Résultat prévisionnel : bénéfice (3) = (2) - (1) | B14: =IF(H13-B13>0,H13-B13,0) -> 2375948.13 | C14: =IF(I13-C13>0,I13-C13,0) -> 0 | D14: =IF(J13-D13>0,J13-D13,0) -> 0 | E14: =IF(K13-E13>0,K13-E13,0) -> 0 | F14: =IF(L13-F13>0,L13-F13,0) -> 0 | G14: Résultat prévisionnel : perte (4) = (1) - (2) | H14: =IF(B13-H13>0,B13-H13,0) -> 0 | I14: =IF(C13-I13>0,C13-I13,0) -> 1060087 | J14: =IF(D13-J13>0,D13-J13,0) -> 617403.9 | K14: =IF(E13-K13>0,E13-K13,0) -> 316961.97 | L14: =IF(F13-L13>0,F13-L13,0) -> 1377048.97
A15: TOTAL EQUILIBRE du compte de résultat prévisionnel (1) + (3) = (2) + (4) | B15: =B13+B14 -> 96395211.78 | C15: =C13+C14 -> 103126588 | D15: =D13+D14 -> -958342.5 | E15: =E13+E14 -> 1505990.6 | F15: =F13+F14 -> 104632578.6 | G15: TOTAL EQUILIBRE du compte de résultat prévisionnel (1) + (3) = (2) + (4) | H15: =H13+H14 -> 96395211.78 | I15: =I13+I14 -> 103126588 | J15: =J13+J14 -> -958342.5 | K15: 1505990.6 | L15: =L13+L14 -> 104632578.6
A16: * Il s'agit des sous catégories de comptes présentant les contributions employeur au CAS Pensions. | D16: ="Nouveau BR : Différence charges de personnel entre tableau 2 et tableau 6 est de : "&(ROUND(D9,0)-ROUND('2-tab_aut_budg_ETAB'!H11+'2-tab_aut_budg_ETAB'!H24,0)) -> Nouveau BR : Différence charges de personnel entre tableau 2 et tableau 6 est de : 0 | E16: ="Somme des BR : Différence charges de personnel entre tableau 2 et tableau 6 est de : "&(ROUND(E9,0)-ROUND('2-tab_aut_budg_ETAB'!J11+'2-tab_aut_budg_ETAB'!J24,0)) -> Somme des BR : Différence charges de personnel entre tableau 2 et tableau 6 est de : 0 | F16: ="Budget BI+BR : Différence charges de personnel entre tableau 2 et tableau 6 est de : "&(ROUND(F9,0)-ROUND('2-tab_aut_budg_ETAB'!L11+'2-tab_aut_budg_ETAB'!L24,0)) -> Budget BI+BR : Différence charges de personnel entre tableau 2 et tableau 6 est de : -839581
A19: Calcul de la capacité d'autofinancement (CAF)
B21: Exécution N-1 | C21: Budget initial (g) | D21: Nouveau BR | E21: Somme des BR (yc nouveau BR) (h) | F21: TOTAL : dernier budget modifié (i) = (g) + (h)
A22: Résultat prévisionnel de l'exercice (bénéfice (3) ou perte (-4) | B22: =IF(B14>0,B14,-H14) -> 2375948.13 | C22: =IF(C14>0,C14,-I14) -> -1060087 | D22: =IF(D14>0,D14,-J14) -> -617403.9 | E22: =IF(E14>0,E14,-K14) -> -316961.97 | F22: =IF(F14>0,F14,-L14) -> -1377048.97
A23: + dotations aux amortissements, dépréciations et provisions | B23: ='6-tab CR_TF_AGR'!B23+'6-tab CR_TF_SIE'!B23 -> 7519105.41 | C23: ='6-tab CR_TF_PRINC'!C23+'6-tab CR_TF_FU'!C23 -> 7711709 | D23: ='6-tab CR_TF_AGR'!D23+'6-tab CR_TF_SIE'!D23 -> -5327 | E23: ='6-tab CR_TF_AGR'!E23+'6-tab CR_TF_SIE'!E23 -> -561471 | F23: =C23+E23 -> 7150238
A24: - reprises sur amortissements, dépréciations et provisions | B24: ='6-tab CR_TF_AGR'!B24+'6-tab CR_TF_SIE'!B24 -> -540769.59 | C24: ='6-tab CR_TF_PRINC'!C24+'6-tab CR_TF_FU'!C24 -> 0 | D24: ='6-tab CR_TF_AGR'!D24+'6-tab CR_TF_SIE'!D24 -> 0 | E24: ='6-tab CR_TF_AGR'!E24+'6-tab CR_TF_SIE'!E24 -> 0 | F24: =C24+E24 -> 0
A25: + valeur nette comptable des éléments d'actifs cédés | B25: ='6-tab CR_TF_AGR'!B25+'6-tab CR_TF_SIE'!B25 -> 0 | C25: ='6-tab CR_TF_PRINC'!C25+'6-tab CR_TF_FU'!C25 -> 0 | D25: ='6-tab CR_TF_AGR'!D25+'6-tab CR_TF_SIE'!D25 -> 0 | E25: ='6-tab CR_TF_AGR'!E25+'6-tab CR_TF_SIE'!E25 -> 0 | F25: =C25+E25 -> 0
A26: - produits de cession d'éléments d'actifs | B26: ='6-tab CR_TF_AGR'!B26+'6-tab CR_TF_SIE'!B26 -> -2090 | C26: ='6-tab CR_TF_PRINC'!C26+'6-tab CR_TF_FU'!C26 -> 0 | D26: ='6-tab CR_TF_AGR'!D26+'6-tab CR_TF_SIE'!D26 -> 0 | E26: ='6-tab CR_TF_AGR'!E26+'6-tab CR_TF_SIE'!E26 -> 0 | F26: =C26+E26 -> 0
A27: - quote-part des subventions d’investissement virée au résultat de l’exercice | B27: ='6-tab CR_TF_AGR'!B27+'6-tab CR_TF_SIE'!B27 -> -4780993.97 | C27: ='6-tab CR_TF_PRINC'!C27+'6-tab CR_TF_FU'!C27 -> -5202367 | D27: ='6-tab CR_TF_AGR'!D27+'6-tab CR_TF_SIE'!D27 -> -4108 | E27: ='6-tab CR_TF_AGR'!E27+'6-tab CR_TF_SIE'!E27 -> 575641 | F27: =C27+E27 -> -4626726
A28: = CAF ou IAF* | B28: =SUM(B22:B27) -> 4571199.98 | C28: =SUM(C22:C27) -> 1449255 | D28: -626838.9 | E28: -302791.97 | F28: =SUM(F22:F27) -> 1146463.03
A29: * capacité d'autofinancement ou insuffisance d'autofinancement
A32: État prévisionnel de l'évolution de la situation patrimoniale en droits constatés
A34: EMPLOIS | B34: Exécution N-1 | C34: Budget initial (j) | D34: Nouveau BR | E34: Somme des BR (yc nouveau BR) (k) | F34: TOTAL : dernier budget modifié (l) = (j) + (k) | G34: RESSOURCES | H34: Exécution N-1 | I34: Budget initial (m) | J34: Nouveau BR | K34: Somme des BR (yc nouveau BR) (n) | L34: TOTAL : dernier budget modifié (o) = (m) + (n)
A35: Insuffisance d'autofinancement* | B35: =IF(B28<0,-B28,0) -> 0 | C35: =IF(C28<0,-C28,0) -> 0 | D35: =IF(D28<0,-D28,0) -> 626838.9 | E35: =IF(E28<0,-E28,0) -> 302791.97 | F35: =IF(F28<0,-F28,0) -> 0 | G35: Capacité d'autofinancement* | H35: =IF(B28>0,B28,0) -> 4571199.98 | I35: =IF(C28>0,C28,0) -> 1449255 | J35: =IF(D28>0,D28,0) -> 0 | K35: =IF(E28>0,E28,0) -> 0 | L35: =IF(F28>0,F28,0) -> 1146463.03
A36: Investissements | B36: ='6-tab CR_TF_AGR'!B36+'6-tab CR_TF_SIE'!B36 -> 6729956.06 | C36: ='6-tab CR_TF_AGR'!C36+'6-tab CR_TF_SIE'!C36 -> 8080912 | D36: ='6-tab CR_TF_AGR'!D36+'6-tab CR_TF_SIE'!D36 -> -1456200.38 | E36: ='6-tab CR_TF_AGR'!E36+'6-tab CR_TF_SIE'!E36 -> 435323.32 | F36: =C36+E36 -> 8516235.32 | G36: Financement de l'actif par l'État | H36: ='6-tab CR_TF_AGR'!H36+'6-tab CR_TF_SIE'!H36 -> 1351960.02 | I36: ='6-tab CR_TF_AGR'!I36+'6-tab CR_TF_SIE'!I36 -> 100000 | J36: ='6-tab CR_TF_AGR'!J36+'6-tab CR_TF_SIE'!J36 -> 0 | K36: ='6-tab CR_TF_AGR'!K36+'6-tab CR_TF_SIE'!K36 -> -24419.97 | L36: =I36+K36 -> 75580.03
B37: ='6-tab CR_TF_AGR'!B37+'6-tab CR_TF_SIE'!B37 -> 0 | C37: ='6-tab CR_TF_AGR'!C37+'6-tab CR_TF_SIE'!C37 -> 0 | D37: ='6-tab CR_TF_AGR'!D37+'6-tab CR_TF_SIE'!D37 -> 0 | E37: ='6-tab CR_TF_AGR'!E37+'6-tab CR_TF_SIE'!E37 -> 0 | G37: Financement de l'actif par des tiers autres que l'Etat | H37: ='6-tab CR_TF_AGR'!H37+'6-tab CR_TF_SIE'!H37 -> 1727861.44 | I37: ='6-tab CR_TF_AGR'!I37+'6-tab CR_TF_SIE'!I37 -> 1047661 | J37: ='6-tab CR_TF_AGR'!J37+'6-tab CR_TF_SIE'!J37 -> -362527 | K37: ='6-tab CR_TF_AGR'!K37+'6-tab CR_TF_SIE'!K37 -> 245563.49 | L37: =I37+K37 -> 1293224.49
B38: ='6-tab CR_TF_AGR'!B38+'6-tab CR_TF_SIE'!B38 -> 0 | C38: ='6-tab CR_TF_AGR'!C38+'6-tab CR_TF_SIE'!C38 -> 0 | D38: ='6-tab CR_TF_AGR'!D38+'6-tab CR_TF_SIE'!D38 -> 0 | E38: ='6-tab CR_TF_AGR'!E38+'6-tab CR_TF_SIE'!E38 -> 0 | G38: Autres ressources | H38: ='6-tab CR_TF_AGR'!H38+'6-tab CR_TF_SIE'!H38 -> -330912.15 | I38: ='6-tab CR_TF_AGR'!I38+'6-tab CR_TF_SIE'!I38 -> 1867859 | J38: ='6-tab CR_TF_AGR'!J38+'6-tab CR_TF_SIE'!J38 -> 0 | K38: ='6-tab CR_TF_AGR'!K38+'6-tab CR_TF_SIE'!K38 -> 0 | L38: 1867859
A39: Remboursement des dettes financières | B39: ='6-tab CR_TF_AGR'!B39+'6-tab CR_TF_SIE'!B39 -> 0 | C39: ='6-tab CR_TF_AGR'!C39+'6-tab CR_TF_SIE'!C39 -> 0 | D39: ='6-tab CR_TF_AGR'!D39+'6-tab CR_TF_SIE'!D39 -> 0 | E39: ='6-tab CR_TF_AGR'!E39+'6-tab CR_TF_SIE'!E39 -> 0 | F39: =C39+E39 -> 0 | G39: Augmentation des dettes financières | H39: ='6-tab CR_TF_AGR'!H39+'6-tab CR_TF_SIE'!H39 -> 0 | I39: ='6-tab CR_TF_AGR'!I39+'6-tab CR_TF_SIE'!I39 -> 0 | J39: ='6-tab CR_TF_AGR'!J39+'6-tab CR_TF_SIE'!J39 -> 0 | K39: ='6-tab CR_TF_AGR'!K39+'6-tab CR_TF_SIE'!K39 -> 0 | L39: 0
A40: TOTAL DES EMPLOIS (5) | B40: =SUM(B35:B39) -> 6729956.06 | C40: 8080912 | D40: -829361.48 | E40: =SUM(E35:E39) -> 738115.29 | F40: =SUM(F35:F39) -> 8516235.32 | G40: TOTAL DES RESSOURCES (6) | H40: =SUM(H35:H39) -> 7320109.29 | I40: 4464775 | J40: -362527 | K40: =SUM(K35:K39) -> 221143.52 | L40: =SUM(L35:L39) -> 4383126.55
A41: APPORT au FONDS DE ROULEMENT (7) = (6)-(5) | B41: =IF(H40-B40>0,H40-B40,0) -> 590153.23 | C41: =IF(I40-C40>0,I40-C40,0) -> 0 | D41: =IF(J40-D40>0,J40-D40,0) -> 466834.48 | E41: =IF(K40-E40>0,K40-E40,0) -> 0 | F41: =IF(L40-F40>0,L40-F40,0) -> 0 | G41: PRELEVEMENT sur FONDS DE ROULEMENT (8) = (5)-(6) | H41: =IF(B40-H40>0,B40-H40,0) -> 0 | I41: =IF(C40-I40>0,C40-I40,0) -> 3616137 | J41: =IF(D40-J40>0,D40-J40,0) -> 0 | K41: =IF(E40-K40>0,E40-K40,0) -> 516971.77 | L41: =IF(F40-L40>0,F40-L40,0) -> 4133108.77
A43: POUR INFORMATION DE L'ORGANE DÉLIBÉRANT
H45: Exécution N-1 | I45: Budget initial (q) | J45: Nouveau BR | K45: Somme des BR (yc nouveau BR) (r) | L45: TOTAL : dernier budget modifié Variation (s) = (q) + (r) Niveau = (p) + (s)
A46: VARIATION DU FONDS DE ROULEMENT : APPORT (7) ou PRELEVEMENT (8) | H46: =IF(B41>0,B41,-H41) -> 590153.23 | I46: =IF(C41>0,C41,-I41) -> -3616137 | J46: =IF(D41>0,D41,-J41) -> 466834.48 | K46: =IF(E41>0,E41,-K41) -> -516971.77 | L46: =I46+K46 -> -4133108.77
A47: Variation du BESOIN en FONDS DE ROULEMENT | H47: ='6-tab CR_TF_AGR'!H47+'6-tab CR_TF_SIE'!H47 -> -13518.57 | I47: ='6-tab CR_TF_AGR'!I47+'6-tab CR_TF_SIE'!I47 -> 1067978.29 | J47: ='6-tab CR_TF_AGR'!J47+'6-tab CR_TF_SIE'!J47 -> -2539422.61 | K47: ='6-tab CR_TF_AGR'!K47+'6-tab CR_TF_SIE'!K47 -> -2272746.27 | L47: =I47+K47 -> -1204767.98
A48: Variation de la TRESORERIE : ABONDEMENT (I) ou PRELEVEMENT (II) * | H48: ='6-tab CR_TF_AGR'!H48+'6-tab CR_TF_SIE'!H48 -> 603671.8 | I48: ='6-tab CR_TF_AGR'!I48+'6-tab CR_TF_SIE'!I48 -> -4684115.29 | J48: ='6-tab CR_TF_AGR'!J48+'6-tab CR_TF_SIE'!J48 -> 3006257.09 | K48: ='6-tab CR_TF_AGR'!K48+'6-tab CR_TF_SIE'!K48 -> 1755774.5 | L48: =I48+K48 -> -2928340.79
A49: Niveau du FONDS DE ROULEMENT | H49: ='6-tab CR_TF_AGR'!H49+'6-tab CR_TF_SIE'!H49 -> 14337031.04 | I49: ='6-tab CR_TF_AGR'!I49+'6-tab CR_TF_SIE'!I49 -> 10720894.04 | J49: ='6-tab CR_TF_AGR'!J49+'6-tab CR_TF_SIE'!J49 -> 0 | K49: ='6-tab CR_TF_AGR'!K49+'6-tab CR_TF_SIE'!K49 -> 0 | L49: =H49+L46 -> 10203922.27
A50: Niveau du BESOIN EN FONDS DE ROULEMENT | H50: ='6-tab CR_TF_AGR'!H50+'6-tab CR_TF_SIE'!H50 -> 148920.04 | I50: ='6-tab CR_TF_AGR'!I50+'6-tab CR_TF_SIE'!I50 -> 1216898.33 | J50: ='6-tab CR_TF_AGR'!J50+'6-tab CR_TF_SIE'!J50 -> 0 | K50: ='6-tab CR_TF_AGR'!K50+'6-tab CR_TF_SIE'!K50 -> 0 | L50: =H50+L47 -> -1055847.94
A51: Niveau de la TRESORERIE | H51: ='6-tab CR_TF_AGR'!H51+'6-tab CR_TF_SIE'!H51 -> 14188111 | I51: ='6-tab CR_TF_AGR'!I51+'6-tab CR_TF_SIE'!I51 -> 9503995.71 | J51: ='6-tab CR_TF_AGR'!J51+'6-tab CR_TF_SIE'!J51 -> 0 | K51: ='6-tab CR_TF_AGR'!K51+'6-tab CR_TF_SIE'!K51 -> 0 | L51: 11259770.21
A53: * : montant issu du tableau "équilibre financier"

Sheet 6-tab CR_TF_PRINC
A1: Tableau 6 - Université de Bretagne Sud (0561718N) : Etablissement principal
A2: ="Situation patrimoniale - Budget "&Maquette!B4&" "&Maquette!B5&" "&Maquette!B3 -> Situation patrimoniale - Budget rectificatif n° 2 2023
A4: POUR VOTE DE L'ORGANE DÉLIBÉRANT
A6: Compte de résultat prévisionnel
A8: CHARGES | B8: Exécution N-1 | C8: Budget initial (a) | D8: Nouveau BR | E8: Somme des BR (yc nouveau BR) (b) | F8: TOTAL : dernier budget modifié (c) = (a) + (b) | G8: PRODUITS | H8: Exécution N-1 | I8: Budget initial (d) | J8: Nouveau BR | K8: Somme des BR (yc nouveau BR) (e) | L8: TOTAL : dernier budget modifié (f) = (d) + (e)
A9: Personnel | B9: 73515767.16 | C9: 78892506 | D9: 63425.46 | E9: =629948.57+D9 -> 693374.03 | F9: =C9+E9 -> 79585880.03 | G9: Subventions de l'Etat | H9: 71266963.22 | I9: 73457261 | J9: =273947-133890 -> 140057 | K9: =420182.55+J9 -> 560239.55 | L9: =I9+K9 -> 74017500.55
A10: dont charges de pensions civiles* | B10: 19889158.25 | C10: 20016600 | F10: =C10+E10 -> 20016600 | G10: Fiscalité affectée | H10: 473570.35 | I10: 626184 | J10: 55248.61 | K10: =J10 -> 55248.61 | L10: =I10+K10 -> 681432.61
A11: Fonctionnement (autre que les charges de personnel) et intervention | B11: 20008135.56 | C11: 23751110 | D11: =-900875.38+639.88-38843 -> -939078.5 | E11: =1825886.07+D11 -> 886807.57 | F11: =C11+E11 -> 24637917.57 | G11: Autres subventions | H11: 4527564.18 | I11: 6640752 | J11: -1450299.38 | K11: =1592890.55+J11 -> 142591.17 | L11: 6783343.17
G12: Autres produits | H12: 19631753.1 | I12: 20832866 | J12: =-225860.63-D27 -> -235352.63 | K12: =743203.47+J12 -> 507850.84 | L12: 21340716.84
A13: TOTAL DES CHARGES (1) | B13: =B9+B11 -> 93523902.72 | C13: =C9+C11 -> 102643616 | D13: =D9+D11 -> -875653.04 | E13: 1580181.6 | F13: =F9+F11 -> 104223797.6 | G13: TOTAL DES PRODUITS (2) | H13: =SUM(H9:H12) -> 95899850.85 | I13: =SUM(I9:I12) -> 101557063 | J13: -1490346.4 | K13: 1265930.17 | L13: =SUM(L9:L12) -> 102822993.2
A14: Résultat prévisionnel : bénéfice (3) = (2) - (1) | B14: =IF(H13-B13>0,H13-B13,0) -> 2375948.13 | C14: =IF(I13-C13>0,I13-C13,0) -> 0 | D14: =IF(J13-D13>0,J13-D13,0) -> 0 | E14: =IF(K13-E13>0,K13-E13,0) -> 0 | F14: =IF(L13-F13>0,L13-F13,0) -> 0 | G14: Résultat prévisionnel : perte (4) = (1) - (2) | H14: =IF(B13-H13>0,B13-H13,0) -> 0 | I14: =IF(C13-I13>0,C13-I13,0) -> 1086553 | J14: =IF(D13-J13>0,D13-J13,0) -> 614693.36 | K14: =IF(E13-K13>0,E13-K13,0) -> 314251.43 | L14: =IF(F13-L13>0,F13-L13,0) -> 1400804.43
A15: TOTAL EQUILIBRE du compte de résultat prévisionnel (1) + (3) = (2) + (4) | B15: =B13+B14 -> 95899850.85 | C15: =C13+C14 -> 102643616 | D15: =D13+D14 -> -875653.04 | E15: 1580181.6 | F15: =F13+F14 -> 104223797.6 | G15: TOTAL EQUILIBRE du compte de résultat prévisionnel (1) + (3) = (2) + (4) | H15: =H13+H14 -> 95899850.85 | I15: =I13+I14 -> 102643616 | J15: -875653.04 | K15: 1580181.6 | L15: =L13+L14 -> 104223797.6
A16: * Il s'agit des sous catégories de comptes présentant les contributions employeur au CAS Pensions. | D16: ="Nouveau BR : Différence charges de personnel entre tableau 2 et tableau 6 est de : "&(ROUND(D9,0)-ROUND('2-tab_aut_budg_PRINC'!H11+'2-tab_aut_budg_PRINC'!H24,0)) -> Nouveau BR : Différence charges de personnel entre tableau 2 et tableau 6 est de : -640 | E16: ="Somme des BR : Différence charges de personnel entre tableau 2 et tableau 6 est de : "&(ROUND(E9,0)-ROUND('2-tab_aut_budg_PRINC'!J11+'2-tab_aut_budg_PRINC'!J24,0)) -> Somme des BR : Différence charges de personnel entre tableau 2 et tableau 6 est de : -640 | F16: ="Budget BI+BR : Différence charges de personnel entre tableau 2 et tableau 6 est de : "&(ROUND(F9,0)-ROUND('2-tab_aut_budg_PRINC'!L11+'2-tab_aut_budg_PRINC'!L24,0)) -> Budget BI+BR : Différence charges de personnel entre tableau 2 et tableau 6 est de : -837802
A19: Calcul de la capacité d'autofinancement (CAF)
B21: Exécution N-1 | C21: Budget initial (g) | D21: Nouveau BR | E21: Somme des BR (yc nouveau BR) (h) | F21: TOTAL : dernier budget modifié (i) = (g) + (h)
A22: Résultat prévisionnel de l'exercice (bénéfice (3) ou perte (-4) | B22: =IF(B14>0,B14,-H14) -> 2375948.13 | C22: =IF(C14>0,C14,-I14) -> -1086553 | D22: =IF(D14>0,D14,-J14) -> -614693.36 | E22: =IF(E14>0,E14,-K14) -> -314251.43 | F22: =IF(F14>0,F14,-L14) -> -1400804.43
A23: + dotations aux amortissements, dépréciations et provisions | B23: 7251091.55 | C23: 7681337 | D23: -38843 | E23: =-556144+D23 -> -594987 | F23: =C23+E23 -> 7086350
A24: - reprises sur amortissements, dépréciations et provisions | B24: -306028.15 | E24: =D24 -> 0 | F24: =C24+E24 -> 0
A25: + valeur nette comptable des éléments d'actifs cédés | E25: 0 | F25: =C25+E25 -> 0
A26: - produits de cession d'éléments d'actifs | B26: -2090 | E26: 0 | F26: =C26+E26 -> 0
A27: - quote-part des subventions d’investissement virée au résultat de l’exercice | B27: -4752465.38 | C27: -5190287 | D27: 9492 | E27: =579749+D27 -> 589241 | F27: =C27+E27 -> -4601046
A28: = CAF ou IAF* | B28: =SUM(B22:B27) -> 4566456.15 | C28: =SUM(C22:C27) -> 1404497 | D28: -644044.36 | E28: -319997.43 | F28: =SUM(F22:F27) -> 1084499.57
A29: * capacité d'autofinancement ou insuffisance d'autofinancement
A32: État prévisionnel de l'évolution de la situation patrimoniale en droits constatés
A34: EMPLOIS | B34: Exécution N-1 | C34: Budget initial (j) | D34: Nouveau BR | E34: Somme des BR (yc nouveau BR) (k) | F34: TOTAL : dernier budget modifié (l) = (j) + (k) | G34: RESSOURCES | H34: Exécution N-1 | I34: Budget initial (m) | J34: Nouveau BR | K34: Somme des BR (yc nouveau BR) (n) | L34: TOTAL : dernier budget modifié (o) = (m) + (n)
A35: Insuffisance d'autofinancement* | B35: =IF(B28<0,-B28,0) -> 0 | C35: =IF(C28<0,-C28,0) -> 0 | D35: =IF(D28<0,-D28,0) -> 644044.36 | E35: =IF(E28<0,-E28,0) -> 319997.43 | F35: =IF(F28<0,-F28,0) -> 0 | G35: Capacité d'autofinancement* | H35: =IF(B28>0,B28,0) -> 4566456.15 | I35: =IF(C28>0,C28,0) -> 1404497 | J35: =IF(D28>0,D28,0) -> 0 | K35: =IF(E28>0,E28,0) -> 0 | L35: =IF(F28>0,F28,0) -> 1084499.57
A36: Investissements | B36: 6728968.4 | C36: 8040912 | D36: -1425201.38 | E36: =1891523.7+D36 -> 466322.32 | F36: =C36+E36 -> 8507234.32 | G36: Financement de l'actif par l'État | H36: 1351960.02 | I36: 100000 | K36: =-24419.97+J36 -> -24419.97 | L36: =I36+K36 -> 75580.03
G37: Financement de l'actif par des tiers autres que l'Etat | H37: 1727861.44 | I37: 1047661 | J37: -362527 | K37: =608090.49+J37 -> 245563.49 | L37: =I37+K37 -> 1293224.49
G38: Autres ressources | H38: -480912.15 | I38: 1891859 | J38: 0 | K38: =J38 -> 0 | L38: 1891859
A39: Remboursement des dettes financières | F39: =C39+E39 -> 0 | G39: Augmentation des dettes financières | J39: 0 | K39: 0 | L39: 0
A40: TOTAL DES EMPLOIS (5) | B40: =SUM(B35:B39) -> 6728968.4 | C40: 8040912 | D40: -781157.02 | E40: =SUM(E35:E39) -> 786319.75 | F40: =SUM(F35:F39) -> 8507234.32 | G40: TOTAL DES RESSOURCES (6) | H40: =SUM(H35:H39) -> 7165365.46 | I40: 4444017 | J40: -362527 | K40: 221143.52 | L40: =SUM(L35:L39) -> 4345163.09
A41: APPORT au FONDS DE ROULEMENT (7) = (6)-(5) | B41: =IF(H40-B40>0,H40-B40,0) -> 436397.06 | C41: =IF(I40-C40>0,I40-C40,0) -> 0 | D41: =IF(J40-D40>0,J40-D40,0) -> 418630.02 | E41: =IF(K40-E40>0,K40-E40,0) -> 0 | F41: =IF(L40-F40>0,L40-F40,0) -> 0 | G41: PRELEVEMENT sur FONDS DE ROULEMENT (8) = (5)-(6) | H41: =IF(B40-H40>0,B40-H40,0) -> 0 | I41: =IF(C40-I40>0,C40-I40,0) -> 3596895 | J41: =IF(D40-J40>0,D40-J40,0) -> 0 | K41: =IF(E40-K40>0,E40-K40,0) -> 565176.23 | L41: =IF(F40-L40>0,F40-L40,0) -> 4162071.23
A43: POUR INFORMATION DE L'ORGANE DÉLIBÉRANT
H45: Exécution N-1 | I45: Budget initial (q) | J45: Nouveau BR | K45: Somme des BR (yc nouveau BR) (r) | L45: TOTAL : dernier budget modifié Variation (s) = (q) + (r) Niveau = (p) + (s)
A46: VARIATION DU FONDS DE ROULEMENT : APPORT (7) ou PRELEVEMENT (8) | H46: =IF(B41>0,B41,-H41) -> 436397.06 | I46: =IF(C41>0,C41,-I41) -> -3596895 | J46: =IF(D41>0,D41,-J41) -> 418630.02 | K46: =IF(E41>0,E41,-K41) -> -565176.23 | L46: =I46+K46 -> -4162071.23
A47: Variation du BESOIN en FONDS DE ROULEMENT | H47: =H46-H48 -> -64232.4 | I47: =I46-I48 -> 1025978.29 | J47: =J46-J48 -> -2523893.07 | K47: =K46-K48 -> -2285168.51 | L47: =I47+K47 -> -1259190.22
A48: Variation de la TRESORERIE : ABONDEMENT (I) ou PRELEVEMENT (II) * | H48: 500629.46 | I48: =-4622873.29 -> -4622873.29 | J48: ='4-tab_financier_ETAB'!E25-63734 -> 2942523.09 | K48: ='4-tab_financier_ETAB'!F25-35782 -> 1719992.28 | L48: =I48+K48 -> -2902881.01
A49: Niveau du FONDS DE ROULEMENT | H49: 14010045.88 | I49: =H49+I46 -> 10413150.88 | L49: =H49+L46 -> 9847974.65
A50: Niveau du BESOIN EN FONDS DE ROULEMENT | H50: =H49-H51 -> 98997.2 | I50: =I49-I51 -> 1124975.49 | J50: 0 | K50: 0 | L50: =H50+L47 -> -1160193.02
A51: Niveau de la TRESORERIE | H51: 13911048.68 | I51: =H51+I48 -> 9288175.39 | L51: 11008167.67
A53: * : montant issu du tableau "équilibre financier"

Sheet 6-tab CR_TF_FU
A1: Tableau 6 - Université de Bretagne Sud (0561718N) : Fondation
A2: ="Situation patrimoniale - Budget "&Maquette!B4&" "&Maquette!B5&" "&Maquette!B3 -> Situation patrimoniale - Budget rectificatif n° 2 2023
A4: POUR VOTE DE L'ORGANE DÉLIBÉRANT
A6: Compte de résultat prévisionnel
A8: CHARGES | B8: Exécution N-1 | C8: Budget initial (a) | D8: Nouveau BR | E8: Somme des BR (yc nouveau BR) (b) | F8: TOTAL : dernier budget modifié (c) = (a) + (b) | G8: PRODUITS | H8: Exécution N-1 | I8: Budget initial (d) | J8: Nouveau BR | K8: Somme des BR (yc nouveau BR) (e) | L8: TOTAL : dernier budget modifié (f) = (d) + (e)
A9: Personnel | B9: 103579.37 | C9: 230181 | D9: -63425.46 | E9: =4194.46+D9 -> -59231 | F9: =C9+E9 -> 170950 | G9: Subventions de l'Etat | H9: 48740.66 | I9: 66000 | J9: 8498.46 | K9: =J9 -> 8498.46 | L9: =I9+K9 -> 74498.46
A10: dont charges de pensions civiles* | F10: =C10+E10 -> 0 | G10: Fiscalité affectée | K10: =J10 -> 0 | L10: =I10+K10 -> 0
A11: Fonctionnement (autre que les charges de personnel) et intervention | B11: 391781.56 | C11: 252791 | D11: -19264 | E11: =4304+D11 -> -14960 | F11: =C11+E11 -> 237831 | G11: Autres subventions | H11: 59000 | I11: 59000 | J11: -58498.46 | K11: =8498.46+J11 -> -50000 | L11: 9000
G12: Autres produits | H12: 387620.27 | I12: 384438 | J12: -35400 | K12: -35400 | L12: 349038
A13: TOTAL DES CHARGES (1) | B13: =B9+B11 -> 495360.93 | C13: =C9+C11 -> 482972 | D13: =D9+D11 -> -82689.46 | E13: -74191 | F13: =F9+F11 -> 408781 | G13: TOTAL DES PRODUITS (2) | H13: =SUM(H9:H12) -> 495360.93 | I13: =SUM(I9:I12) -> 509438 | J13: -85400 | K13: -76901.54 | L13: =SUM(L9:L12) -> 432536.46
A14: Résultat prévisionnel : bénéfice (3) = (2) - (1) | B14: =IF(H13-B13>0,H13-B13,0) -> 5.820766091e-11 | C14: =IF(I13-C13>0,I13-C13,0) -> 26466 | D14: =IF(J13-D13>0,J13-D13,0) -> 0 | E14: =IF(K13-E13>0,K13-E13,0) -> 0 | F14: =IF(L13-F13>0,L13-F13,0) -> 23755.46 | G14: Résultat prévisionnel : perte (4) = (1) - (2) | H14: =IF(B13-H13>0,B13-H13,0) -> 0 | I14: =IF(C13-I13>0,C13-I13,0) -> 0 | J14: =IF(D13-J13>0,D13-J13,0) -> 2710.54 | K14: =IF(E13-K13>0,E13-K13,0) -> 2710.54 | L14: =IF(F13-L13>0,F13-L13,0) -> 0
A15: TOTAL EQUILIBRE du compte de résultat prévisionnel (1) + (3) = (2) + (4) | B15: =B13+B14 -> 495360.93 | C15: =C13+C14 -> 509438 | D15: =D13+D14 -> -82689.46 | E15: -74191 | F15: =F13+F14 -> 432536.46 | G15: TOTAL EQUILIBRE du compte de résultat prévisionnel (1) + (3) = (2) + (4) | H15: =H13+H14 -> 495360.93 | I15: =I13+I14 -> 509438 | J15: -82689.46 | K15: -74191 | L15: =L13+L14 -> 432536.46
A16: * Il s'agit des sous catégories de comptes présentant les contributions employeur au CAS Pensions. | D16: ="Nouveau BR : Différence charges de personnel entre tableau 2 et tableau 6 est de : "&(ROUND(D9,0)-ROUND('2-tab_aut_budg_FU'!H11+'2-tab_aut_budg_FU'!H24,0)) -> Nouveau BR : Différence charges de personnel entre tableau 2 et tableau 6 est de : 640 | E16: ="Somme des BR : Différence charges de personnel entre tableau 2 et tableau 6 est de : "&(ROUND(E9,0)-ROUND('2-tab_aut_budg_FU'!J11+'2-tab_aut_budg_FU'!J24,0)) -> Somme des BR : Différence charges de personnel entre tableau 2 et tableau 6 est de : 640 | F16: ="Budget BI+BR : Différence charges de personnel entre tableau 2 et tableau 6 est de : "&(ROUND(F9,0)-ROUND('2-tab_aut_budg_FU'!L11+'2-tab_aut_budg_FU'!L24,0)) -> Budget BI+BR : Différence charges de personnel entre tableau 2 et tableau 6 est de : -1779
A19: Calcul de la capacité d'autofinancement (CAF)
B21: Exécution N-1 | C21: Budget initial (g) | D21: Nouveau BR | E21: Somme des BR (yc nouveau BR) (h) | F21: TOTAL : dernier budget modifié (i) = (g) + (h)
A22: Résultat prévisionnel de l'exercice (bénéfice (3) ou perte (-4) | B22: =IF(B14>0,B14,-H14) -> 5.820766091e-11 | C22: =IF(C14>0,C14,-I14) -> 26466 | D22: =IF(D14>0,D14,-J14) -> -2710.54 | E22: =IF(E14>0,E14,-K14) -> -2710.54 | F22: =IF(F14>0,F14,-L14) -> 23755.46
A23: + dotations aux amortissements, dépréciations et provisions | B23: 268013.86 | C23: 30372 | D23: 33516 | E23: =D23 -> 33516 | F23: =C23+E23 -> 63888
A24: - reprises sur amortissements, dépréciations et provisions | B24: -234741.44 | E24: =D24 -> 0 | F24: =C24+E24 -> 0
A25: + valeur nette comptable des éléments d'actifs cédés | E25: 0 | F25: =C25+E25 -> 0
A26: - produits de cession d'éléments d'actifs | E26: 0 | F26: =C26+E26 -> 0
A27: - quote-part des subventions d’investissement virée au résultat de l’exercice | B27: -28528.59 | C27: -12080 | D27: -13600 | E27: -13600 | F27: =C27+E27 -> -25680
A28: = CAF ou IAF* | B28: =SUM(B22:B27) -> 4743.83 | C28: =SUM(C22:C27) -> 44758 | D28: 17205.46 | E28: 17205.46 | F28: =SUM(F22:F27) -> 61963.46
A29: * capacité d'autofinancement ou insuffisance d'autofinancement
A32: État prévisionnel de l'évolution de la situation patrimoniale en droits constatés
A34: EMPLOIS | B34: Exécution N-1 | C34: Budget initial (j) | D34: Nouveau BR | E34: Somme des BR (yc nouveau BR) (k) | F34: TOTAL : dernier budget modifié (l) = (j) + (k) | G34: RESSOURCES | H34: Exécution N-1 | I34: Budget initial (m) | J34: Nouveau BR | K34: Somme des BR (yc nouveau BR) (n) | L34: TOTAL : dernier budget modifié (o) = (m) + (n)
A35: Insuffisance d'autofinancement* | B35: =IF(B28<0,-B28,0) -> 0 | C35: =IF(C28<0,-C28,0) -> 0 | D35: =IF(D28<0,-D28,0) -> 0 | E35: =IF(E28<0,-E28,0) -> 0 | F35: =IF(F28<0,-F28,0) -> 0 | G35: Capacité d'autofinancement* | H35: =IF(B28>0,B28,0) -> 4743.83 | I35: =IF(C28>0,C28,0) -> 44758 | J35: =IF(D28>0,D28,0) -> 17205.46 | K35: =IF(E28>0,E28,0) -> 17205.46 | L35: =IF(F28>0,F28,0) -> 61963.46
A36: Investissements | B36: 987.66 | C36: 40000 | D36: -30999 | E36: =D36 -> -30999 | F36: =C36+E36 -> 9001 | G36: Financement de l'actif par l'État | K36: =J36 -> 0 | L36: =I36+K36 -> 0
G37: Financement de l'actif par des tiers autres que l'Etat | K37: =J37 -> 0 | L37: =I37+K37 -> 0
G38: Autres ressources | H38: 150000 | I38: -24000 | K38: 0 | L38: -24000
A39: Remboursement des dettes financières | F39: =C39+E39 -> 0 | G39: Augmentation des dettes financières | K39: 0 | L39: 0
A40: TOTAL DES EMPLOIS (5) | B40: =SUM(B35:B39) -> 987.66 | C40: 40000 | D40: -30999 | E40: =SUM(E35:E39) -> -30999 | F40: =SUM(F35:F39) -> 9001 | G40: TOTAL DES RESSOURCES (6) | H40: =SUM(H35:H39) -> 154743.83 | I40: 20758 | J40: 17205.46 | K40: 17205.46 | L40: =SUM(L35:L39) -> 37963.46
A41: APPORT au FONDS DE ROULEMENT (7) = (6)-(5) | B41: =IF(H40-B40>0,H40-B40,0) -> 153756.17 | C41: =IF(I40-C40>0,I40-C40,0) -> 0 | D41: =IF(J40-D40>0,J40-D40,0) -> 48204.46 | E41: =IF(K40-E40>0,K40-E40,0) -> 48204.46 | F41: =IF(L40-F40>0,L40-F40,0) -> 28962.46 | G41: PRELEVEMENT sur FONDS DE ROULEMENT (8) = (5)-(6) | H41: =IF(B40-H40>0,B40-H40,0) -> 0 | I41: =IF(C40-I40>0,C40-I40,0) -> 19242 | J41: =IF(D40-J40>0,D40-J40,0) -> 0 | K41: =IF(E40-K40>0,E40-K40,0) -> 0 | L41: =IF(F40-L40>0,F40-L40,0) -> 0
A43: POUR INFORMATION DE L'ORGANE DÉLIBÉRANT
H45: Exécution N-1 | I45: Budget initial (q) | J45: Nouveau BR | K45: Somme des BR (yc nouveau BR) (r) | L45: TOTAL : dernier budget modifié Variation (s) = (q) + (r) Niveau = (p) + (s)
A46: VARIATION DU FONDS DE ROULEMENT : APPORT (7) ou PRELEVEMENT (8) | H46: =IF(B41>0,B41,-H41) -> 153756.17 | I46: =IF(C41>0,C41,-I41) -> -19242 | J46: =IF(D41>0,D41,-J41) -> 48204.46 | K46: =IF(E41>0,E41,-K41) -> 48204.46 | L46: =I46+K46 -> 28962.46
A47: Variation du BESOIN en FONDS DE ROULEMENT | H47: =H46-H48 -> 50713.83 | I47: =I46-I48 -> 42000 | J47: =J46-J48 -> -15529.54 | K47: =K46-K48 -> 12422.24 | L47: =I47+K47 -> 54422.24
A48: Variation de la TRESORERIE : ABONDEMENT (I) ou PRELEVEMENT (II) * | H48: 103042.34 | I48: =-'2-tab_aut_budg_FU'!O30 -> -61242 | J48: ='2-tab_aut_budg_FU'!H30 -> 63734 | K48: ='2-tab_aut_budg_FU'!J30 -> 35782.22 | L48: -25459.78
A49: Niveau du FONDS DE ROULEMENT | H49: 326985.16 | I49: =H49+I46 -> 307743.16 | L49: =H49+L46 -> 355947.62
A50: Niveau du BESOIN EN FONDS DE ROULEMENT | H50: =H49-H51 -> 49922.84 | I50: =I49-I51 -> 91922.84 | J50: 0 | K50: 0 | L50: =H50+L47 -> 104345.08
A51: Niveau de la TRESORERIE | H51: 277062.32 | I51: =H51+I48 -> 215820.32 | L51: 251602.54
A53: * : montant issu du tableau "équilibre financier"

Sheet 6-tab CR_TF_AGR (hidden)
A1: Tableau 6 - Université de Bretagne Sud (0561718N) : Etablissement principal + Fondation
A2: ="Situation patrimoniale - Budget agrégé "&Maquette!B4&" "&Maquette!B5&" "&Maquette!B3 -> Situation patrimoniale - Budget agrégé rectificatif n° 2 2023
A4: POUR VOTE DE L'ORGANE DÉLIBÉRANT
A6: Compte de résultat prévisionnel | B6: =IF(ROUND(F13,-1)=ROUND('6-tab CR_TF_PRINC'!F13+'6-tab CR_TF_FU'!F13,-1),"","! Pb agrégat charges") ->  | G6: =IF(ROUND(L13,-1)=ROUND('6-tab CR_TF_PRINC'!L13+'6-tab CR_TF_FU'!L13,-1),"","! Pb agrégat produits") -> 
A8: CHARGES | B8: Exécution N-1 | C8: Budget initial (a) | D8: Nouveau BR | E8: Somme des BR (yc nouveau BR) (b) | F8: TOTAL : dernier budget modifié (c) = (a) + (b) | G8: PRODUITS | H8: Exécution N-1 | I8: Budget initial (d) | J8: Nouveau BR | K8: Somme des BR (yc nouveau BR) (e) | L8: TOTAL : dernier budget modifié (f) = (d) + (e)
A9: Personnel | B9: ='6-tab CR_TF_PRINC'!B9+'6-tab CR_TF_FU'!B9 -> 73619346.53 | C9: ='6-tab CR_TF_PRINC'!C9+'6-tab CR_TF_FU'!C9 -> 79122687 | D9: ='6-tab CR_TF_PRINC'!D9+'6-tab CR_TF_FU'!D9 -> 0 | E9: ='6-tab CR_TF_PRINC'!E9+'6-tab CR_TF_FU'!E9 -> 634143.03 | F9: =C9+E9 -> 79756830.03 | G9: Subventions de l'Etat | H9: ='6-tab CR_TF_PRINC'!H9+'6-tab CR_TF_FU'!H9 -> 71315703.88 | I9: ='6-tab CR_TF_PRINC'!I9+'6-tab CR_TF_FU'!I9 -> 73523261 | J9: ='6-tab CR_TF_PRINC'!J9+'6-tab CR_TF_FU'!J9 -> 148555.46 | K9: ='6-tab CR_TF_PRINC'!K9+'6-tab CR_TF_FU'!K9 -> 568738.01 | L9: =I9+K9 -> 74091999.01
A10: dont charges de pensions civiles* | B10: ='6-tab CR_TF_PRINC'!B10+'6-tab CR_TF_FU'!B10 -> 19889158.25 | C10: ='6-tab CR_TF_PRINC'!C10+'6-tab CR_TF_FU'!C10 -> 20016600 | D10: ='6-tab CR_TF_PRINC'!D10+'6-tab CR_TF_FU'!D10 -> 0 | E10: ='6-tab CR_TF_PRINC'!E10+'6-tab CR_TF_FU'!E10 -> 0 | F10: =C10+E10 -> 20016600 | G10: Fiscalité affectée | H10: ='6-tab CR_TF_PRINC'!H10+'6-tab CR_TF_FU'!H10 -> 473570.35 | I10: ='6-tab CR_TF_PRINC'!I10+'6-tab CR_TF_FU'!I10 -> 626184 | J10: ='6-tab CR_TF_PRINC'!J10+'6-tab CR_TF_FU'!J10 -> 55248.61 | K10: ='6-tab CR_TF_PRINC'!K10+'6-tab CR_TF_FU'!K10 -> 55248.61 | L10: =I10+K10 -> 681432.61
A11: Fonctionnement (autre que les charges de personnel) et intervention | B11: ='6-tab CR_TF_PRINC'!B11+'6-tab CR_TF_FU'!B11 -> 20399917.12 | C11: ='6-tab CR_TF_PRINC'!C11+'6-tab CR_TF_FU'!C11 -> 24003901 | D11: ='6-tab CR_TF_PRINC'!D11+'6-tab CR_TF_FU'!D11 -> -958342.5 | E11: ='6-tab CR_TF_PRINC'!E11+'6-tab CR_TF_FU'!E11 -> 871847.57 | F11: =C11+E11 -> 24875748.57 | G11: Autres subventions | H11: ='6-tab CR_TF_PRINC'!H11+'6-tab CR_TF_FU'!H11 -> 4586564.18 | I11: ='6-tab CR_TF_PRINC'!I11+'6-tab CR_TF_FU'!I11 -> 6699752 | J11: ='6-tab CR_TF_PRINC'!J11+'6-tab CR_TF_FU'!J11 -> -1508797.84 | K11: ='6-tab CR_TF_PRINC'!K11+'6-tab CR_TF_FU'!K11 -> 92591.17 | L11: 6792343.17
B12: ='6-tab CR_TF_PRINC'!B12+'6-tab CR_TF_FU'!B12 -> 0 | C12: ='6-tab CR_TF_PRINC'!C12+'6-tab CR_TF_FU'!C12 -> 0 | D12: ='6-tab CR_TF_PRINC'!D12+'6-tab CR_TF_FU'!D12 -> 0 | E12: ='6-tab CR_TF_PRINC'!E12+'6-tab CR_TF_FU'!E12 -> 0 | G12: Autres produits | H12: ='6-tab CR_TF_PRINC'!H12+'6-tab CR_TF_FU'!H12 -> 20019373.37 | I12: ='6-tab CR_TF_PRINC'!I12+'6-tab CR_TF_FU'!I12 -> 21217304 | J12: ='6-tab CR_TF_PRINC'!J12+'6-tab CR_TF_FU'!J12 -> -270752.63 | K12: ='6-tab CR_TF_PRINC'!K12+'6-tab CR_TF_FU'!K12 -> 472450.84 | L12: 21689754.84
A13: TOTAL DES CHARGES (1) | B13: =B9+B11 -> 94019263.65 | C13: =C9+C11 -> 103126588 | D13: =D9+D11 -> -958342.5 | E13: 1505990.6 | F13: =F9+F11 -> 104632578.6 | G13: TOTAL DES PRODUITS (2) | H13: =SUM(H9:H12) -> 96395211.78 | I13: =SUM(I9:I12) -> 102066501 | J13: -1575746.4 | K13: 1189028.63 | L13: =SUM(L9:L12) -> 103255529.6
A14: Résultat prévisionnel : bénéfice (3) = (2) - (1) | B14: =IF(H13-B13>0,H13-B13,0) -> 2375948.13 | C14: =IF(I13-C13>0,I13-C13,0) -> 0 | D14: =IF(J13-D13>0,J13-D13,0) -> 0 | E14: =IF(K13-E13>0,K13-E13,0) -> 0 | F14: =IF(L13-F13>0,L13-F13,0) -> 0 | G14: Résultat prévisionnel : perte (4) = (1) - (2) | H14: =IF(B13-H13>0,B13-H13,0) -> 0 | I14: =IF(C13-I13>0,C13-I13,0) -> 1060087 | J14: =IF(D13-J13>0,D13-J13,0) -> 617403.9 | K14: =IF(E13-K13>0,E13-K13,0) -> 316961.97 | L14: =IF(F13-L13>0,F13-L13,0) -> 1377048.97
A15: TOTAL EQUILIBRE du compte de résultat prévisionnel (1) + (3) = (2) + (4) | B15: =B13+B14 -> 96395211.78 | C15: =C13+C14 -> 103126588 | D15: =D13+D14 -> -958342.5 | E15: 1505990.6 | F15: =F13+F14 -> 104632578.6 | G15: TOTAL EQUILIBRE du compte de résultat prévisionnel (1) + (3) = (2) + (4) | H15: =H13+H14 -> 96395211.78 | I15: =I13+I14 -> 103126588 | J15: -958342.5 | K15: 1505990.6 | L15: =L13+L14 -> 104632578.6
A16: * Il s'agit des sous catégories de comptes présentant les contributions employeur au CAS Pensions. | B16: ="Exécution N-1 : Différence charges de personnel entre tableau 2 et tableau 6 est de : "&(ROUND(B9,0)-ROUND(#REF!+#REF!,0)) ->  | C16: ="BI : Différence charges de personnel entre tableau 2 et tableau 6 est de : "&(ROUND(C9,0)-ROUND(#REF!+#REF!,0)) ->  | D16: ="Nouveau BR : Différence charges de personnel entre tableau 2 et tableau 6 est de : "&(ROUND(D9,0)-ROUND(#REF!+#REF!,0)) ->  | E16: ="Somme des BR : Différence charges de personnel entre tableau 2 et tableau 6 est de : "&(ROUND(E9,0)-ROUND(#REF!+#REF!,0)) ->  | F16: ="Budget BI+BR : Différence charges de personnel entre tableau 2 et tableau 6 est de : "&(ROUND(F9,0)-ROUND(#REF!+#REF!,0)) -> 
B17: =IF(#REF!="",IF(ROUND(B10,-1)<>ROUND(#REF!,-1),"! Incohérence charges PC Tab2 AGR",""),"") ->  | C17: =IF(#REF!="",IF(ROUND(C10,-1)<>ROUND(#REF!,-1),"! Incohérence charges PC Tab2 AGR",""),"") ->  | D17: =IF(#REF!="",IF(ROUND(D10,-1)<>ROUND(#REF!,-1),"! Incohérence charges PC Tab2 AGR",""),"") ->  | E17: =IF(#REF!="",IF(ROUND(E10,-1)<>ROUND(#REF!,-1),"! Incohérence charges PC Tab2 AGR",""),"") ->  | F17: =IF(#REF!="",IF(ROUND(F10,-1)<>ROUND(#REF!,-1),"! Incohérence charges PCl Tab2 AGR",""),"") -> 
A19: Calcul de la capacité d'autofinancement (CAF) | B19: =IF(ROUND(F28,-1)=ROUND('6-tab CR_TF_PRINC'!F28+'6-tab CR_TF_FU'!F28,-1),"","! Pb agrégat CAF/IAF") -> 
B21: Exécution N-1 | C21: Budget initial (g) | D21: Nouveau BR | E21: Somme des BR (yc nouveau BR) (h) | F21: TOTAL : dernier budget modifié (i) = (g) + (h)
A22: Résultat prévisionnel de l'exercice (bénéfice (3) ou perte (-4) | B22: =IF(B14>0,B14,-H14) -> 2375948.13 | C22: =IF(C14>0,C14,-I14) -> -1060087 | D22: =IF(D14>0,D14,-J14) -> -617403.9 | E22: =IF(E14>0,E14,-K14) -> -316961.97 | F22: =IF(F14>0,F14,-L14) -> -1377048.97
A23: + dotations aux amortissements, dépréciations et provisions | B23: ='6-tab CR_TF_PRINC'!B23+'6-tab CR_TF_FU'!B23 -> 7519105.41 | C23: ='6-tab CR_TF_PRINC'!C23+'6-tab CR_TF_FU'!C23 -> 7711709 | D23: ='6-tab CR_TF_PRINC'!D23+'6-tab CR_TF_FU'!D23 -> -5327 | E23: ='6-tab CR_TF_PRINC'!E23+'6-tab CR_TF_FU'!E23 -> -561471 | F23: =C23+E23 -> 7150238
A24: - reprises sur amortissements, dépréciations et provisions | B24: ='6-tab CR_TF_PRINC'!B24+'6-tab CR_TF_FU'!B24 -> -540769.59 | C24: ='6-tab CR_TF_PRINC'!C24+'6-tab CR_TF_FU'!C24 -> 0 | D24: ='6-tab CR_TF_PRINC'!D24+'6-tab CR_TF_FU'!D24 -> 0 | E24: ='6-tab CR_TF_PRINC'!E24+'6-tab CR_TF_FU'!E24 -> 0 | F24: =C24+E24 -> 0
A25: + valeur nette comptable des éléments d'actifs cédés | B25: ='6-tab CR_TF_PRINC'!B25+'6-tab CR_TF_FU'!B25 -> 0 | C25: ='6-tab CR_TF_PRINC'!C25+'6-tab CR_TF_FU'!C25 -> 0 | D25: ='6-tab CR_TF_PRINC'!D25+'6-tab CR_TF_FU'!D25 -> 0 | E25: ='6-tab CR_TF_PRINC'!E25+'6-tab CR_TF_FU'!E25 -> 0 | F25: =C25+E25 -> 0
A26: - produits de cession d'éléments d'actifs | B26: ='6-tab CR_TF_PRINC'!B26+'6-tab CR_TF_FU'!B26 -> -2090 | C26: ='6-tab CR_TF_PRINC'!C26+'6-tab CR_TF_FU'!C26 -> 0 | D26: ='6-tab CR_TF_PRINC'!D26+'6-tab CR_TF_FU'!D26 -> 0 | E26: ='6-tab CR_TF_PRINC'!E26+'6-tab CR_TF_FU'!E26 -> 0 | F26: =C26+E26 -> 0
A27: - quote-part des subventions d’investissement virée au résultat de l’exercice | B27: ='6-tab CR_TF_PRINC'!B27+'6-tab CR_TF_FU'!B27 -> -4780993.97 | C27: ='6-tab CR_TF_PRINC'!C27+'6-tab CR_TF_FU'!C27 -> -5202367 | D27: ='6-tab CR_TF_PRINC'!D27+'6-tab CR_TF_FU'!D27 -> -4108 | E27: ='6-tab CR_TF_PRINC'!E27+'6-tab CR_TF_FU'!E27 -> 575641 | F27: =C27+E27 -> -4626726
A28: = CAF ou IAF* | B28: =SUM(B22:B27) -> 4571199.98 | C28: =SUM(C22:C27) -> 1449255 | D28: -626838.9 | E28: -302791.97 | F28: =SUM(F22:F27) -> 1146463.03
A29: * capacité d'autofinancement ou insuffisance d'autofinancement
A32: État prévisionnel de l'évolution de la situation patrimoniale en droits constatés | D32: =IF(ROUND(F41,-1)=ROUND('6-tab CR_TF_PRINC'!F41+'6-tab CR_TF_FU'!F41,-1),"","! Pb agrégat apport FDR") -> ! Pb agrégat apport FDR | G32: =IF(ROUND(L41,-1)=ROUND('6-tab CR_TF_PRINC'!L41+'6-tab CR_TF_FU'!L41,-1),"","! Pb agrégat prélèvement FDR") -> ! Pb agrégat prélèvement FDR
A34: EMPLOIS | B34: Exécution N-1 | C34: Budget initial (j) | D34: Nouveau BR | E34: Somme des BR (yc nouveau BR) (k) | F34: TOTAL : dernier budget modifié (l) = (j) + (k) | G34: RESSOURCES | H34: Exécution N-1 | I34: Budget initial (m) | J34: Nouveau BR | K34: Somme des BR (yc nouveau BR) (n) | L34: TOTAL : dernier budget modifié (o) = (m) + (n)
A35: Insuffisance d'autofinancement* | B35: =IF(B28<0,-B28,0) -> 0 | C35: =IF(C28<0,-C28,0) -> 0 | D35: =IF(D28<0,-D28,0) -> 626838.9 | E35: =IF(E28<0,-E28,0) -> 302791.97 | F35: =IF(F28<0,-F28,0) -> 0 | G35: Capacité d'autofinancement* | H35: =IF(B28>0,B28,0) -> 4571199.98 | I35: =IF(C28>0,C28,0) -> 1449255 | J35: =IF(D28>0,D28,0) -> 0 | K35: =IF(E28>0,E28,0) -> 0 | L35: =IF(F28>0,F28,0) -> 1146463.03
A36: Investissements | B36: ='6-tab CR_TF_PRINC'!B36+'6-tab CR_TF_FU'!B36 -> 6729956.06 | C36: ='6-tab CR_TF_PRINC'!C36+'6-tab CR_TF_FU'!C36 -> 8080912 | D36: ='6-tab CR_TF_PRINC'!D36+'6-tab CR_TF_FU'!D36 -> -1456200.38 | E36: ='6-tab CR_TF_PRINC'!E36+'6-tab CR_TF_FU'!E36 -> 435323.32 | F36: =C36+E36 -> 8516235.32 | G36: Financement de l'actif par l'État | H36: ='6-tab CR_TF_PRINC'!H36+'6-tab CR_TF_FU'!H36 -> 1351960.02 | I36: ='6-tab CR_TF_PRINC'!I36+'6-tab CR_TF_FU'!I36 -> 100000 | J36: ='6-tab CR_TF_PRINC'!J36+'6-tab CR_TF_FU'!J36 -> 0 | K36: ='6-tab CR_TF_PRINC'!K36+'6-tab CR_TF_FU'!K36 -> -24419.97 | L36: =I36+K36 -> 75580.03
B37: ='6-tab CR_TF_PRINC'!B37+'6-tab CR_TF_FU'!B37 -> 0 | C37: ='6-tab CR_TF_PRINC'!C37+'6-tab CR_TF_FU'!C37 -> 0 | D37: ='6-tab CR_TF_PRINC'!D37+'6-tab CR_TF_FU'!D37 -> 0 | E37: ='6-tab CR_TF_PRINC'!E37+'6-tab CR_TF_FU'!E37 -> 0 | G37: Financement de l'actif par des tiers autres que l'Etat | H37: ='6-tab CR_TF_PRINC'!H37+'6-tab CR_TF_FU'!H37 -> 1727861.44 | I37: ='6-tab CR_TF_PRINC'!I37+'6-tab CR_TF_FU'!I37 -> 1047661 | J37: ='6-tab CR_TF_PRINC'!J37+'6-tab CR_TF_FU'!J37 -> -362527 | K37: ='6-tab CR_TF_PRINC'!K37+'6-tab CR_TF_FU'!K37 -> 245563.49 | L37: =I37+K37 -> 1293224.49
B38: ='6-tab CR_TF_PRINC'!B38+'6-tab CR_TF_FU'!B38 -> 0 | C38: ='6-tab CR_TF_PRINC'!C38+'6-tab CR_TF_FU'!C38 -> 0 | D38: ='6-tab CR_TF_PRINC'!D38+'6-tab CR_TF_FU'!D38 -> 0 | E38: ='6-tab CR_TF_PRINC'!E38+'6-tab CR_TF_FU'!E38 -> 0 | G38: Autres ressources | H38: ='6-tab CR_TF_PRINC'!H38+'6-tab CR_TF_FU'!H38 -> -330912.15 | I38: ='6-tab CR_TF_PRINC'!I38+'6-tab CR_TF_FU'!I38 -> 1867859 | J38: ='6-tab CR_TF_PRINC'!J38+'6-tab CR_TF_FU'!J38 -> 0 | K38: ='6-tab CR_TF_PRINC'!K38+'6-tab CR_TF_FU'!K38 -> 0 | L38: 1867859
A39: Remboursement des dettes financières | B39: ='6-tab CR_TF_PRINC'!B39+'6-tab CR_TF_FU'!B39 -> 0 | C39: ='6-tab CR_TF_PRINC'!C39+'6-tab CR_TF_FU'!C39 -> 0 | D39: ='6-tab CR_TF_PRINC'!D39+'6-tab CR_TF_FU'!D39 -> 0 | E39: ='6-tab CR_TF_PRINC'!E39+'6-tab CR_TF_FU'!E39 -> 0 | F39: =C39+E39 -> 0 | G39: Augmentation des dettes financières | H39: ='6-tab CR_TF_PRINC'!H39+'6-tab CR_TF_FU'!H39 -> 0 | I39: ='6-tab CR_TF_PRINC'!I39+'6-tab CR_TF_FU'!I39 -> 0 | J39: ='6-tab CR_TF_PRINC'!J39+'6-tab CR_TF_FU'!J39 -> 0 | K39: ='6-tab CR_TF_PRINC'!K39+'6-tab CR_TF_FU'!K39 -> 0 | L39: 0
A40: TOTAL DES EMPLOIS (5) | B40: =SUM(B35:B39) -> 6729956.06 | C40: 8080912 | D40: -829361.48 | E40: =SUM(E35:E39) -> 738115.29 | F40: =SUM(F35:F39) -> 8516235.32 | G40: TOTAL DES RESSOURCES (6) | H40: =SUM(H35:H39) -> 7320109.29 | I40: 4464775 | J40: -362527 | K40: 221143.52 | L40: =SUM(L35:L39) -> 4383126.55
A41: APPORT au FONDS DE ROULEMENT (7) = (6)-(5) | B41: =IF(H40-B40>0,H40-B40,0) -> 590153.23 | C41: =IF(I40-C40>0,I40-C40,0) -> 0 | D41: =IF(J40-D40>0,J40-D40,0) -> 466834.48 | E41: =IF(K40-E40>0,K40-E40,0) -> 0 | F41: =IF(L40-F40>0,L40-F40,0) -> 0 | G41: PRELEVEMENT sur FONDS DE ROULEMENT (8) = (5)-(6) | H41: =IF(B40-H40>0,B40-H40,0) -> 0 | I41: =IF(C40-I40>0,C40-I40,0) -> 3616137 | J41: =IF(D40-J40>0,D40-J40,0) -> 0 | K41: =IF(E40-K40>0,E40-K40,0) -> 516971.77 | L41: =IF(F40-L40>0,F40-L40,0) -> 4133108.77
A43: POUR INFORMATION DE L'ORGANE DÉLIBÉRANT
H45: Exécution N-1 (p) | I45: Budget initial (q) | J45: Nouveau BR | K45: Somme des BR (yc nouveau BR) (r) | L45: TOTAL : dernier budget modifié Variation (s) = (q) + (r) Niveau = (p) + (s)
A46: VARIATION DU FONDS DE ROULEMENT : APPORT (7) ou PRELEVEMENT (8) | H46: =IF(B41>0,B41,-H41) -> 590153.23 | I46: =IF(C41>0,C41,-I41) -> -3616137 | J46: =IF(D41>0,D41,-J41) -> 466834.48 | K46: =IF(E41>0,E41,-K41) -> -516971.77 | L46: =I46+K46 -> -4133108.77 | N46: =IF(L46<0,IF(ROUND(L46,-1)=-ROUND(#REF!,-1),"! Impossibilité Var fonds de roulement = Solde budg Tab2 AGR",""),IF(L46>0,IF(ROUND(L46,-1)=ROUND(#REF!,-1),"! Impossibilité Var fonds de roulement = Solde budg Tab2 AGR",""),"")) -> 
A47: Variation du BESOIN en FONDS DE ROULEMENT | H47: ='6-tab CR_TF_PRINC'!H47+'6-tab CR_TF_FU'!H47 -> -13518.57 | I47: ='6-tab CR_TF_PRINC'!I47+'6-tab CR_TF_FU'!I47 -> 1067978.29 | J47: ='6-tab CR_TF_PRINC'!J47+'6-tab CR_TF_FU'!J47 -> -2539422.61 | K47: ='6-tab CR_TF_PRINC'!K47+'6-tab CR_TF_FU'!K47 -> -2272746.27 | L47: =I47+K47 -> -1204767.98
A48: Variation de la TRESORERIE : ABONDEMENT (I) ou PRELEVEMENT (II) * | H48: ='6-tab CR_TF_PRINC'!H48+'6-tab CR_TF_FU'!H48 -> 603671.8 | I48: ='6-tab CR_TF_PRINC'!I48+'6-tab CR_TF_FU'!I48 -> -4684115.29 | J48: ='6-tab CR_TF_PRINC'!J48+'6-tab CR_TF_FU'!J48 -> 3006257.09 | K48: ='6-tab CR_TF_PRINC'!K48+'6-tab CR_TF_FU'!K48 -> 1755774.5 | L48: -2928340.79 | N48: =IF(ROUND(L48,-1)=ROUND('6-tab CR_TF_PRINC'!L48+'6-tab CR_TF_FU'!L48,-1),"","! Pb agrégat variation trésorerie") -> 
A49: Niveau du FONDS DE ROULEMENT | H49: ='6-tab CR_TF_PRINC'!H49+'6-tab CR_TF_FU'!H49 -> 14337031.04 | I49: ='6-tab CR_TF_PRINC'!I49+'6-tab CR_TF_FU'!I49 -> 10720894.04 | J49: ='6-tab CR_TF_PRINC'!J49+'6-tab CR_TF_FU'!J49 -> 0 | K49: ='6-tab CR_TF_PRINC'!K49+'6-tab CR_TF_FU'!K49 -> 0 | L49: =H49+L46 -> 10203922.27
A50: Niveau du BESOIN EN FONDS DE ROULEMENT | H50: ='6-tab CR_TF_PRINC'!H50+'6-tab CR_TF_FU'!H50 -> 148920.04 | I50: ='6-tab CR_TF_PRINC'!I50+'6-tab CR_TF_FU'!I50 -> 1216898.33 | J50: ='6-tab CR_TF_PRINC'!J50+'6-tab CR_TF_FU'!J50 -> 0 | K50: ='6-tab CR_TF_PRINC'!K50+'6-tab CR_TF_FU'!K50 -> 0 | L50: =H50+L47 -> -1055847.94
A51: Niveau de la TRESORERIE | H51: ='6-tab CR_TF_PRINC'!H51+'6-tab CR_TF_FU'!H51 -> 14188111 | I51: ='6-tab CR_TF_PRINC'!I51+'6-tab CR_TF_FU'!I51 -> 9503995.71 | J51: ='6-tab CR_TF_PRINC'!J51+'6-tab CR_TF_FU'!J51 -> 0 | K51: ='6-tab CR_TF_PRINC'!K51+'6-tab CR_TF_FU'!K51 -> 0 | L51: 11259770.21 | N51: =IF(ROUND(L51,-1)=ROUND('6-tab CR_TF_PRINC'!L51+'6-tab CR_TF_FU'!L51,-1),"","! Pb agrégat niveau trésorerie") -> 
A53: * : montant issu du tableau "équilibre financier"

Sheet 6-tab CR_TF_SIE (hidden)
A1: Tableau 6 - Université de Bretagne Sud (0561718N) : CFA
A2: ="Situation patrimoniale - Budget "&Maquette!B4&" "&Maquette!B5&" "&Maquette!B3 -> Situation patrimoniale - Budget rectificatif n° 2 2023
A4: POUR VOTE DE L'ORGANE DÉLIBÉRANT
A6: Compte de résultat prévisionnel
A8: CHARGES | B8: Exécution N-1 | C8: Budget initial (a) | D8: Nouveau BR | E8: Somme des BR (yc nouveau BR) (b) | F8: TOTAL : dernier budget modifié (c) = (a) + (b) | G8: PRODUITS | H8: Exécution N-1 | I8: Budget initial (d) | J8: Nouveau BR | K8: Somme des BR (yc nouveau BR) (e) | L8: TOTAL : dernier budget modifié (f) = (d) + (e)
A9: Personnel | F9: =C9+E9 -> 0 | G9: Subventions de l'Etat | L9: =I9+K9 -> 0
A10: dont charges de pensions civiles* | F10: =C10+E10 -> 0 | G10: Fiscalité affectée | L10: =I10+K10 -> 0
A11: Fonctionnement (autre que les charges de personnel) et intervention | F11: =C11+E11 -> 0 | G11: Autres subventions | L11: 0
G12: Autres produits | L12: 0
A13: TOTAL DES CHARGES (1) | B13: =B9+B11 -> 0 | C13: =C9+C11 -> 0 | D13: =D9+D11 -> 0 | E13: 0 | F13: =F9+F11 -> 0 | G13: TOTAL DES PRODUITS (2) | H13: =SUM(H9:H12) -> 0 | I13: =SUM(I9:I12) -> 0 | J13: 0 | K13: 0 | L13: =SUM(L9:L12) -> 0
A14: Résultat prévisionnel : bénéfice (3) = (2) - (1) | B14: =IF(H13-B13>0,H13-B13,0) -> 0 | C14: =IF(I13-C13>0,I13-C13,0) -> 0 | D14: =IF(J13-D13>0,J13-D13,0) -> 0 | E14: =IF(K13-E13>0,K13-E13,0) -> 0 | F14: =IF(L13-F13>0,L13-F13,0) -> 0 | G14: Résultat prévisionnel : perte (4) = (1) - (2) | H14: =IF(B13-H13>0,B13-H13,0) -> 0 | I14: =IF(C13-I13>0,C13-I13,0) -> 0 | J14: =IF(D13-J13>0,D13-J13,0) -> 0 | K14: =IF(E13-K13>0,E13-K13,0) -> 0 | L14: =IF(F13-L13>0,F13-L13,0) -> 0
A15: TOTAL EQUILIBRE du compte de résultat prévisionnel (1) + (3) = (2) + (4) | B15: =B13+B14 -> 0 | C15: =C13+C14 -> 0 | D15: =D13+D14 -> 0 | E15: 0 | F15: =F13+F14 -> 0 | G15: TOTAL EQUILIBRE du compte de résultat prévisionnel (1) + (3) = (2) + (4) | H15: =H13+H14 -> 0 | I15: =I13+I14 -> 0 | J15: 0 | K15: 0 | L15: =L13+L14 -> 0
A16: * Il s'agit des sous catégories de comptes présentant les contributions employeur au CAS Pensions. | B16: ="Exécution N-1 : Différence charges de personnel entre tableau 2 et tableau 6 est de : "&(ROUND(B9,0)-ROUND(#REF!+#REF!,0)) ->  | C16: ="BI : Différence charges de personnel entre tableau 2 et tableau 6 est de : "&(ROUND(C9,0)-ROUND(#REF!+#REF!,0)) ->  | D16: ="Nouveau BR : Différence charges de personnel entre tableau 2 et tableau 6 est de : "&(ROUND(D9,0)-ROUND(#REF!+#REF!,0)) ->  | E16: ="Somme des BR : Différence charges de personnel entre tableau 2 et tableau 6 est de : "&(ROUND(E9,0)-ROUND(#REF!+#REF!,0)) ->  | F16: ="Budget BI+BR : Différence charges de personnel entre tableau 2 et tableau 6 est de : "&(ROUND(F9,0)-ROUND(#REF!+#REF!,0)) -> 
B17: =IF(#REF!="",IF(ROUND(B10,-1)<>ROUND(#REF!,-1),"! Incohérence charges PC Tab2 SIE",""),"") ->  | C17: =IF(#REF!="",IF(ROUND(C10,-1)<>ROUND(#REF!,-1),"! Incohérence charges PC Tab2 SIE",""),"") ->  | D17: =IF(#REF!="",IF(ROUND(D10,-1)<>ROUND(#REF!,-1),"! Incohérence charges PC Tab2 SIE",""),"") ->  | E17: =IF(#REF!="",IF(ROUND(E10,-1)<>ROUND(#REF!,-1),"! Incohérence charges PC Tab2 SIE",""),"") ->  | F17: =IF(#REF!="",IF(ROUND(F10,-1)<>ROUND(#REF!,-1),"! Incohérence charges PCl Tab2 SIE",""),"") -> 
A19: Calcul de la capacité d'autofinancement (CAF)
B21: Exécution N-1 | C21: Budget initial (g) | D21: Nouveau BR | E21: Somme des BR (yc nouveau BR) (h) | F21: TOTAL : dernier budget modifié (i) = (g) + (h)
A22: Résultat prévisionnel de l'exercice (bénéfice (3) ou perte (-4) | B22: =IF(B14>0,B14,-H14) -> 0 | C22: =IF(C14>0,C14,-I14) -> 0 | D22: =IF(D14>0,D14,-J14) -> 0 | E22: =IF(E14>0,E14,-K14) -> 0 | F22: =IF(F14>0,F14,-L14) -> 0
A23: + dotations aux amortissements, dépréciations et provisions | F23: =C23+E23 -> 0
A24: - reprises sur amortissements, dépréciations et provisions | F24: =C24+E24 -> 0
A25: + valeur nette comptable des éléments d'actifs cédés | F25: =C25+E25 -> 0
A26: - produits de cession d'éléments d'actifs | F26: =C26+E26 -> 0
A27: - quote-part des subventions d’investissement virée au résultat de l’exercice | F27: =C27+E27 -> 0
A28: = CAF ou IAF* | B28: =SUM(B22:B27) -> 0 | C28: =SUM(C22:C27) -> 0 | D28: 0 | E28: 0 | F28: =SUM(F22:F27) -> 0
A29: * capacité d'autofinancement ou insuffisance d'autofinancement
A32: État prévisionnel de l'évolution de la situation patrimoniale en droits constatés
A34: EMPLOIS | B34: Exécution N-1 | C34: Budget initial (j) | D34: Nouveau BR | E34: Somme des BR (yc nouveau BR) (k) | F34: TOTAL : dernier budget modifié (l) = (j) + (k) | G34: RESSOURCES | H34: Exécution N-1 | I34: Budget initial (m) | J34: Nouveau BR | K34: Somme des BR (yc nouveau BR) (n) | L34: TOTAL : dernier budget modifié (o) = (m) + (n)
A35: Insuffisance d'autofinancement* | B35: =IF(B28<0,-B28,0) -> 0 | C35: =IF(C28<0,-C28,0) -> 0 | D35: =IF(D28<0,-D28,0) -> 0 | E35: =IF(E28<0,-E28,0) -> 0 | F35: =IF(F28<0,-F28,0) -> 0 | G35: Capacité d'autofinancement* | H35: =IF(B28>0,B28,0) -> 0 | I35: =IF(C28>0,C28,0) -> 0 | J35: =IF(D28>0,D28,0) -> 0 | K35: =IF(E28>0,E28,0) -> 0 | L35: =IF(F28>0,F28,0) -> 0
A36: Investissements | F36: =C36+E36 -> 0 | G36: Financement de l'actif par l'État | L36: =I36+K36 -> 0
G37: Financement de l'actif par des tiers autres que l'Etat | L37: =I37+K37 -> 0
G38: Autres ressources | L38: 0
A39: Remboursement des dettes financières | F39: =C39+E39 -> 0 | G39: Augmentation des dettes financières | L39: 0
A40: TOTAL DES EMPLOIS (5) | B40: =SUM(B35:B39) -> 0 | C40: 0 | D40: 0 | E40: =SUM(E35:E39) -> 0 | F40: =SUM(F35:F39) -> 0 | G40: TOTAL DES RESSOURCES (6) | H40: =SUM(H35:H39) -> 0 | I40: 0 | J40: 0 | K40: 0 | L40: =SUM(L35:L39) -> 0
A41: APPORT au FONDS DE ROULEMENT (7) = (6)-(5) | B41: =IF(H40-B40>0,H40-B40,0) -> 0 | C41: =IF(I40-C40>0,I40-C40,0) -> 0 | D41: =IF(J40-D40>0,J40-D40,0) -> 0 | E41: =IF(K40-E40>0,K40-E40,0) -> 0 | F41: =IF(L40-F40>0,L40-F40,0) -> 0 | G41: PRELEVEMENT sur FONDS DE ROULEMENT (8) = (5)-(6) | H41: =IF(B40-H40>0,B40-H40,0) -> 0 | I41: =IF(C40-I40>0,C40-I40,0) -> 0 | J41: =IF(D40-J40>0,D40-J40,0) -> 0 | K41: =IF(E40-K40>0,E40-K40,0) -> 0 | L41: =IF(F40-L40>0,F40-L40,0) -> 0
A43: POUR INFORMATION DE L'ORGANE DÉLIBÉRANT
H45: Exécution N-1 (p) | I45: Budget initial (q) | J45: Nouveau BR | K45: Somme des BR (yc nouveau BR) (r) | L45: TOTAL : dernier budget modifié Variation (s) = (q) + (r) Niveau = (p) + (s)
A46: VARIATION DU FONDS DE ROULEMENT : APPORT (7) ou PRELEVEMENT (8) | H46: =IF(B41>0,B41,-H41) -> 0 | I46: =IF(C41>0,C41,-I41) -> 0 | J46: =IF(D41>0,D41,-J41) -> 0 | K46: =IF(E41>0,E41,-K41) -> 0 | L46: =I46+K46 -> 0 | N46: =IF(L46<0,IF(ROUND(L46,-1)=-ROUND(#REF!,-1),"! Impossibilité Var fonds de roulement = Solde budg Tab2 SIE",""),IF(L46>0,IF(ROUND(L46,-1)=ROUND(#REF!,-1),"! Impossibilité Var fonds de roulement = Solde budg Tab2 SIE",""),"")) -> 
A47: Variation du BESOIN en FONDS DE ROULEMENT | L47: =I47+K47 -> 0
A48: Variation de la TRESORERIE : ABONDEMENT (I) ou PRELEVEMENT (II) * | L48: 0
A49: Niveau du FONDS DE ROULEMENT | L49: =H49+L46 -> 0
A50: Niveau du BESOIN EN FONDS DE ROULEMENT | H50: =H49-H51 -> 0 | I50: =I49-I51 -> 0 | J50: 0 | K50: 0 | L50: =H50+L47 -> 0
A51: Niveau de la TRESORERIE | L51: 0
A53: * : montant issu du tableau "équilibre financier"

Sheet 7-tab Plan_tréso_ETAB
B1: Tableau 7- Université de Bretagne Sud (0561718N) : Etablissement principal + Fondation
B2: ="Plan de trésorerie - Budget consolidé "&Maquette!B4&" "&Maquette!B5&" "&Maquette!B3 -> Plan de trésorerie - Budget consolidé rectificatif n° 2 2023
B4: POUR INFORMATION DE L'ORGANE DÉLIBÉRANT
B6: ( K€ ) | C6: janvier | D6: février | E6: mars | F6: avril | G6: mai | H6: juin | I6: juillet | J6: août | K6: septembre | L6: octobre | M6: novembre | N6: décembre | O6: TOTAL Variation de la trésorerie annuelle
B7: (1) SOLDE INITIAL (début de mois) | C7: 14188111 | D7: =C49 -> 26929988.25 | E7: =D49 -> 26221437.47 | F7: 13463062.64 | G7: 23439184.53 | H7: 16828216.91 | I7: 9629982.27 | J7: 28243555.54 | K7: 21243028.34 | L7: 16464068.33 | M7: 23412058.02 | N7: 19022058.02 | O7: =SUM(C7:N7) -> 239084751.3
B8: ENCAISSEMENTS
B9: Recettes budgétaires globalisées | C9: =SUM(C10:C14) -> 18788259.76 | D9: =SUM(D10:D14) -> 2228329.06 | E9: 1712215.64 | F9: 1462378.34 | G9: 18704322.34 | H9: 2375208.06 | I9: 909405.94 | J9: 26007884.07 | K9: 2327194.64 | L9: 15536874 | M9: 5150000 | N9: 6541858.69 | O9: 101743930.5
B10: Subvention pour charges de service public | C10: 17311509 | D10: 0 | E10: 0 | F10: 0 | G10: 17298562 | H10: 257136 | I10: 0 | J10: 24917098 | K10: 0 | L10: 10386874 | M10: 0 | N10: 0 | O10: =SUM(C10:N10) -> 70171179
B11: Autres financements de l'Etat | C11: 301227 | D11: 24502.76 | E11: 11322 | F11: 341807.64 | G11: 4624.5 | H11: 173093.41 | I11: 95338.87 | J11: 11500 | K11: 410500 | L11: 650000 | M11: 650000 | N11: 654930.75 | O11: =SUM(C11:N11) -> 3328846.93
B12: Fiscalité affectée | C12: 366532 | D12: 0 | E12: 0 | F12: 0 | G12: 0 | H12: 0 | I12: 0 | J12: 314820.61 | K12: 0 | L12: 0 | M12: 0 | N12: 0 | O12: 681352.61
B13: Autres financements publics | C13: 550842.75 | D13: 300304.14 | E13: 336151.37 | F13: 241171.42 | G13: 450264.45 | H13: 487924.66 | I13: 144311.53 | J13: 435688.23 | K13: 740990.61 | L13: 1500000 | M13: 1500000 | N13: 2846890.58 | O13: 9534539.74
B14: Recettes propres | C14: 258149.01 | D14: 1903522.16 | E14: 1364742.27 | F14: 879399.28 | G14: 950871.39 | H14: 1457053.99 | I14: 669755.54 | J14: 328777.23 | K14: 1175704.03 | L14: 3000000 | M14: 3000000 | N14: 3040037.36 | O14: 18028012.26
B15: Recettes budgétaires fléchées | C15: =SUM(C16:C18) -> 0 | D15: =SUM(D16:D18) -> 0 | E15: 0 | F15: 0 | G15: 0 | H15: 0 | I15: 0 | J15: 0 | K15: 0 | L15: 437115.69 | M15: 0 | N15: 0 | O15: =SUM(C15:N15) -> 437115.69
B16: Financements de l'Etat fléchés | C16: 0 | D16: 0 | E16: 0 | F16: 0 | G16: 0 | H16: 0 | I16: 0 | J16: 0 | K16: 0 | L16: 0 | M16: 0 | N16: 0 | O16: 0
B17: Autres financements publics fléchés | C17: 0 | D17: 0 | E17: 0 | F17: 0 | G17: 0 | H17: 0 | I17: 0 | J17: 0 | K17: 0 | L17: 437115.69 | M17: 0 | N17: 0 | O17: 437115.69
B18: Recettes propres fléchées | C18: 0 | D18: 0 | E18: 0 | F18: 0 | G18: 0 | H18: 0 | I18: 0 | J18: 0 | K18: 0 | L18: 0 | M18: 0 | N18: 0 | O18: 0
B19: Opérations non budgétaires | C19: =SUM(C20:C22) -> 0 | D19: =SUM(D20:D22) -> 0 | E19: 11198.4 | F19: 0 | G19: 0 | H19: 0 | I19: 0 | J19: 0 | K19: 0 | L19: 0 | M19: 0 | N19: 0 | O19: 11198.4
B20: Emprunts : encaissements en capital | C20: 0 | D20: 0 | E20: 0 | F20: 0 | G20: 0 | H20: 0 | I20: 0 | J20: 0 | K20: 0 | L20: 0 | M20: 0 | N20: 0 | O20: 0
B21: Prêts : encaissements en capital | C21: 0 | D21: 0 | E21: 0 | F21: 0 | G21: 0 | H21: 0 | I21: 0 | J21: 0 | K21: 0 | L21: 0 | M21: 0 | N21: 0 | O21: 0
B22: Dépôts et cautionnements | C22: 0 | D22: 0 | E22: 11198.4 | F22: 0 | G22: 0 | H22: 0 | I22: 0 | J22: 0 | K22: 0 | L22: 0 | M22: 0 | N22: 0 | O22: 11198.4
B23: Opérations gérées en comptes de tiers : | C23: =SUM(C24:C26) -> 1399901.63 | D23: =SUM(D24:D26) -> -1257369.6 | E23: 297255.86 | F23: 17866514.7 | G23: -16299217.02 | H23: -879944.96 | I23: 26579187.36 | J23: -25019244.32 | K23: 2083807.29 | L23: 967264 | M23: 411340 | N23: -3317736.6 | O23: 2831758.34
B24: TVA encaissée | C24: 39569.05 | D24: 25729.34 | E24: 37934.89 | F24: 58174.15 | G24: 24934.49 | H24: 29591.75 | I24: 36749.05 | J24: 21059.76 | K24: 11506.55 | L24: 100000 | M24: 100000 | N24: 100000 | O24: 585249.03
B25: Dispositifs d'intervention pour compte de tiers : encaissements | C25: 2500 | D25: 46320 | E25: 5200 | F25: 0 | G25: 793485.31 | H25: 0 | I25: 5000 | J25: 0 | K25: 0 | L25: 867264 | M25: 311340 | N25: 215400 | O25: 2246509.31
B26: Autres encaissements d'opérations gérées en comptes de tiers | C26: 1357832.58 | D26: -1329418.94 | E26: 254120.97 | F26: 17808340.55 | G26: -17117636.82 | H26: -909536.71 | I26: 26537438.31 | J26: -25040304.08 | K26: 2072300.74 | L26: 0 | M26: 0 | N26: -3633136.6 | O26: 0
B27: A. TOTAL | C27: =C23+C19+C15+C9 -> 20188161.39 | D27: =D23+D19+D15+D9 -> 970959.46 | E27: 2020669.9 | F27: 19328893.04 | G27: 2405105.32 | H27: 1495263.1 | I27: 27488593.3 | J27: 988639.75 | K27: 4411001.93 | L27: 16941253.69 | M27: 5561340 | N27: 3224122.09 | O27: 105024003
B28: DECAISSEMENTS
B29: Dépenses liées à des recettes globalisées | C29: =SUM(C30:C33) -> 7396763.33 | D29: =SUM(D30:D33) -> 8067516.44 | E29: 8073178.61 | F29: 9161429.69 | G29: 8226295.31 | H29: 8366400.94 | I29: 8701244.21 | J29: 7943302.61 | K29: 9058832.97 | L29: 8900000 | M29: 9400000 | N29: 10579707.49 | O29: =SUM(C29:N29) -> 103874671.6
B30: Personnel | C30: 6527541.19 | D30: 6533419.68 | E30: 6560886.02 | F30: 6320323.47 | G30: 6434810.2 | H30: 6336062.87 | I30: 6937465.66 | J30: 7261011.08 | K30: 6838552.99 | L30: 6700000 | M30: 7200000 | N30: 6725063.58 | O30: =SUM(C30:N30) -> 80375136.74
B31: Fonctionnement | C31: 473272.24 | D31: 1125561.66 | E31: 1118745.18 | F31: 1421098.92 | G31: 1215619.14 | H31: 1244467.77 | I31: 1017656.03 | J31: 410737.43 | K31: 1040873.58 | L31: 1700000 | M31: 1700000 | N31: 2577260.99 | O31: 15045292.94
B32: Intervention | O32: 0
B33: Investissement | C33: 395949.9 | D33: 408535.1 | E33: 393547.41 | F33: 1420007.3 | G33: 575865.97 | H33: 785870.3 | I33: 746122.52 | J33: 271554.1 | K33: 1179406.4 | L33: 500000 | M33: 500000 | N33: 1277382.92 | O33: 8454241.92
B34: Dépenses liées à des recettes fléchées | C34: =SUM(C35:C38) -> 14136.54 | D34: =SUM(D35:D38) -> 44378.83 | E34: 90643.57 | F34: 41136.08 | G34: 41683.31 | H34: 42097.27 | I34: 80516.47 | J34: 45656.42 | K34: 18685.23 | L34: 135000 | M34: 135000 | N34: 168722.39 | O34: 857656.11
B35: Personnel | C35: 12244.82 | D35: 12716.19 | E35: 6930.75 | F35: 10095.6 | G35: 8968.06 | H35: 7388.17 | I35: 15785.28 | J35: 14097.52 | K35: 8921.8 | L35: 40000 | M35: 40000 | N35: 44126.57 | O35: 221274.76
B36: Fonctionnement | C36: 1891.72 | D36: 31662.64 | E36: 83712.82 | F36: 31040.48 | G36: 32715.25 | H36: 34709.1 | I36: 64731.19 | J36: 31558.9 | K36: 9763.43 | L36: 95000 | M36: 95000 | N36: 124595.82 | O36: 636381.35
B37: Intervention | C37: 0 | D37: 0 | E37: 0 | F37: 0 | G37: 0 | H37: 0 | I37: 0 | J37: 0 | K37: 0 | L37: 0 | M37: 0 | N37: 0 | O37: 0
B38: Investissement | C38: 0 | D38: 0 | E38: 0 | F38: 0 | G38: 0 | H38: 0 | I38: 0 | J38: 0 | K38: 0 | L38: 0 | M38: 0 | N38: 0 | O38: 0
B39: Opérations non budgétaires | C39: =SUM(C40:C42) -> 0 | D39: =SUM(D40:D42) -> 1200 | E39: 0 | F39: 0 | G39: 0 | H39: 0 | I39: 0 | J39: 0 | K39: 0 | L39: 0 | M39: 0 | N39: 0 | O39: 1200
B40: Emprunts : remboursements en capital | C40: 0 | D40: 0 | E40: 0 | F40: 0 | G40: 0 | H40: 0 | I40: 0 | J40: 0 | K40: 0 | L40: 0 | M40: 0 | N40: 0 | O40: 0
B41: Prêts : décaissements en capital | C41: 0 | D41: 0 | E41: 0 | F41: 0 | G41: 0 | H41: 0 | I41: 0 | J41: 0 | K41: 0 | L41: 0 | M41: 0 | N41: 0 | O41: 0
B42: Dépôts et cautionnements | C42: 0 | D42: 1200 | E42: 0 | F42: 0 | G42: 0 | H42: 0 | I42: 0 | J42: 0 | K42: 0 | L42: 0 | M42: 0 | N42: 0 | O42: 1200
B43: Opérations gérées en compte de tiers : | C43: =SUM(C44:C46) -> 35384.27 | D43: =SUM(D44:D46) -> -6433585.03 | E43: 6615222.55 | F43: 150205.38 | G43: 748094.32 | H43: 284999.53 | I43: 93259.35 | J43: 207.92 | K43: 112443.74 | L43: 958264 | M43: 416340 | N43: 237980.71 | O43: 3218816.74
B44: TVA décaissée | C44: 16722.12 | D44: 60752.86 | E44: 45122.2 | F44: 154297.43 | G44: 45476.98 | H44: 125576.64 | I44: 80598 | J44: 16506.11 | K44: 70135.09 | L44: 80000 | M44: 80000 | N44: 90000 | O44: 865187.43
B45: Dispositifs d'intervention pour compte de tiers : décaissements | C45: 8500 | D45: 3600 | E45: 36800 | F45: 2400 | G45: 693245.31 | H45: 160680 | I45: 9800 | J45: 2000 | K45: 2800 | L45: 878264 | M45: 336340 | N45: 219200 | O45: 2353629.31
B46: Autres décaissements d'opérations gérées en comptes de tiers | C46: 10162.15 | D46: -6497937.89 | E46: 6533300.35 | F46: -6492.05 | G46: 9372.03 | H46: -1257.11 | I46: 2861.35 | J46: -18298.19 | K46: 39508.65 | L46: 0 | M46: 0 | N46: -71219.29 | O46: -2.182787284e-10
B47: B. TOTAL | C47: =C43+C39+C34+C29 -> 7446284.14 | D47: =D43+D39+D34+D29 -> 1679510.24 | E47: 14779044.73 | F47: 9352771.15 | G47: 9016072.94 | H47: 8693497.74 | I47: 8875020.03 | J47: 7989166.95 | K47: 9189961.94 | L47: 9993264 | M47: 9951340 | N47: 10986410.59 | O47: 107952344.5
B48: (2) SOLDE DU MOIS = A - B | C48: =C27-C47 -> 12741877.25 | D48: =D27-D47 -> -708550.78 | E48: -12758374.83 | F48: 9976121.89 | G48: -6610967.62 | H48: -7198234.64 | I48: 18613573.27 | J48: -7000527.2 | K48: -4778960.01 | L48: 6947989.69 | M48: -4390000 | N48: -7762288.5 | O48: =SUM(C48:N48) -> -2928341.48
B49: SOLDE CUMULE (1) + (2) | C49: =C48+C7 -> 26929988.25 | D49: =D48+D7 -> 26221437.47 | E49: 13463062.64 | F49: 23439184.53 | G49: 16828216.91 | H49: 9629982.27 | I49: 28243555.54 | J49: 21243028.34 | K49: 16464068.33 | L49: 23412058.02 | M49: 19022058.02 | N49: 11259769.52
O50: Variation de trésorerie correspondant à celle du tableau d'équilibre financier (I) ou (II)

Sheet 8-tab recettes_fléchées_ETAB
B1: Tableau 8 - Université de Bretagne Sud (0561718N) : Etablissement principal + Fondation
B2: ="Opérations liées aux recettes fléchées - Budget consolidé "&Maquette!B4&" "&Maquette!B5&" "&Maquette!B3 -> Opérations liées aux recettes fléchées - Budget consolidé rectificatif n° 2 2023
B5: POUR INFORMATION DE L'ORGANE DÉLIBÉRANT
C8: Antérieures à N non dénouées | D8: N | E8: N+1 | F8: N+2 | G8: N+3
B9: Position de financement des opérations fléchées en début d'exercice (a)
B11: Recettes fléchées (b) | C11: =SUM(C13:C15) -> 2221464 | D11: =SUM(D13:D15) -> 437115.69 | E11: 880075.98 | F11: 234549.88 | G11: 1905107.3
B13: Financements de l'État fléchés | C13: 0 | D13: 0 | E13: 0 | F13: 0 | G13: 0 | J13: =IF(ROUND(D13,-1)<>ROUND('7-tab Plan_tréso_ETAB'!O16,-1),"! Incohérence Financ. Etat fléchés avec Tab7","") -> 
B14: Autres financements publics fléchés | C14: 2221464 | D14: 437115.69 | E14: 880075.98 | F14: 234549.88 | G14: 1905107.3 | J14: =IF(ROUND(D14,-1)<>ROUND('7-tab Plan_tréso_ETAB'!O17,-1),"! Incohérence Autres financ. fléchés avec Tab7","") -> 
B15: Recettes propres fléchées | C15: 0 | D15: 0 | E15: 0 | F15: 0 | G15: 0 | J15: =IF(ROUND(D15,-1)<>ROUND('7-tab Plan_tréso_ETAB'!O18,-1),"! Incohérence Recettes propres fléchées avec Tab7","") -> 
B17: Dépenses sur recettes fléchées (c) | C17: =C19+C21+C24 -> 202388.96 | D17: =D19+D21+D24 -> 857655.64 | E17: 1827971.4 | F17: 1525383 | G17: 1089462
B19: Personnel | C19: =C20 -> 21933.71 | D19: =D20 -> 221274.29 | E19: 607000 | F19: 229000 | G19: 219492
B20: AE=CP | C20: 21933.71 | D20: 221274.29 | E20: 607000 | F20: 229000 | G20: 219492
B21: Fonctionnement et intervention | C21: =C23 -> 172291.65 | D21: =D23 -> 636381.35 | E21: 1207971.4 | F21: 1283383 | G21: 866970
B22: AE | C22: 780474.84 | D22: 774998.16 | E22: 1207971.4 | F22: 1249783 | G22: 388970
B23: CP | C23: 172291.65 | D23: 636381.35 | E23: 1207971.4 | F23: 1283383 | G23: 866970
B24: Investissement | C24: =C26 -> 8163.6 | D24: =D26 -> 0 | E24: 13000 | F24: 13000 | G24: 3000
B25: AE | C25: 8163.6 | D25: 0 | E25: 13000 | F25: 13000 | G25: 3000
B26: CP | C26: 8163.6 | D26: 0 | E26: 13000 | F26: 13000 | G26: 3000
B28: Solde budgétaire de l'exercice résultant des opérations fléchées (b) - (c) | C28: =C11-C17 -> 2019075.04 | D28: =D11-D17 -> -420539.95 | E28: =E11-E17 -> -947895.42 | F28: -1290833.12 | G28: 815645.3
D29: (1)
D30: (1) repris au tableau "Équilibre financier" en (a) (tableau 4)

Sheet 8-tab recettes_fléchées_PRINC
B1: Tableau 8 - Université de Bretagne Sud (0561718N) : Etablissement principal
B2: ="Opérations liées aux recettes fléchées - Budget "&Maquette!B4&" "&Maquette!B5&" "&Maquette!B3 -> Opérations liées aux recettes fléchées - Budget rectificatif n° 2 2023
B5: POUR INFORMATION DE L'ORGANE DÉLIBÉRANT
C8: Antérieures à N non dénouées | D8: N | E8: N+1 | F8: N+2 | G8: N+3
B9: Position de financement des opérations fléchées en début d'exercice (a)
B11: Recettes fléchées (b) | C11: =SUM(C13:C15) -> 2221464 | D11: =SUM(D13:D15) -> 437115.69 | E11: 880075.98 | F11: 234549.88 | G11: 1905107.3
B13: Financements de l'État fléchés | C13: 0 | D13: 0 | E13: 0 | F13: 0 | G13: 0
B14: Autres financements publics fléchés | C14: 2221464 | D14: 437115.69 | E14: 880075.98 | F14: 234549.88 | G14: 1905107.3
B15: Recettes propres fléchées | C15: 0 | D15: 0 | E15: 0 | F15: 0 | G15: 0
B17: Dépenses sur recettes fléchées (c) | C17: =C19+C21+C24 -> 202388.96 | D17: =D19+D21+D24 -> 857655.64 | E17: 1827971.4 | F17: 1525383 | G17: 1089462
B19: Personnel | C19: =C20 -> 21933.71 | D19: =D20 -> 221274.29 | E19: 607000 | F19: 229000 | G19: 219492
B20: AE=CP | C20: 21933.71 | D20: 221274.29 | E20: 607000 | F20: 229000 | G20: 219492
B21: Fonctionnement et intervention | C21: =C23 -> 172291.65 | D21: =D23 -> 636381.35 | E21: 1207971.4 | F21: 1283383 | G21: 866970
B22: AE | C22: 780474.84 | D22: 774998.16 | E22: 1207971.4 | F22: 1249783 | G22: 388970
B23: CP | C23: 172291.65 | D23: 636381.35 | E23: 1207971.4 | F23: 1283383 | G23: 866970
B24: Investissement | C24: =C26 -> 8163.6 | D24: =D26 -> 0 | E24: 13000 | F24: 13000 | G24: 3000
B25: AE | C25: 8163.6 | D25: 0 | E25: 13000 | F25: 13000 | G25: 3000
B26: CP | C26: 8163.6 | D26: 0 | E26: 13000 | F26: 13000 | G26: 3000
B28: Solde budgétaire de l'exercice résultant des opérations fléchées (b) - (c) | C28: =C11-C17 -> 2019075.04 | D28: =D11-D17 -> -420539.95 | E28: =E11-E17 -> -947895.42 | F28: -1290833.12 | G28: 815645.3
D29: (1)
D30: (1) repris au tableau "Équilibre financier" en (a) (tableau 4)

Sheet 8-tab recettes_fléchées_AGR (hidden)
B1: Tableau 8 - Université de Bretagne Sud (0561718N) : Etablissement principal + Fondation
B2: ="Opérations liées aux recettes fléchées - Budget agrégé "&Maquette!B4&" "&Maquette!B5&" "&Maquette!B3 -> Opérations liées aux recettes fléchées - Budget agrégé rectificatif n° 2 2023
B5: POUR INFORMATION DE L'ORGANE DÉLIBÉRANT
C8: Antérieures à N non dénouées | D8: N | E8: N+1 | F8: N+2 | G8: N+3
B9: Position de financement des opérations fléchées en début d'exercice (a)
B11: Recettes fléchées (b) | C11: =SUM(C13:C15) -> 0 | D11: =SUM(D13:D15) -> 0 | E11: 0 | F11: 0 | G11: 0
B13: Financements de l'État fléchés | H13: =IF(ROUND(D13,-1)<>ROUND(#REF!,-1),"! Incohérence Financ. Etat fléchés avec Tab2 AGR","") ->  | I13: =IF(ROUND(D13,-1)<>ROUND('3-tab_destination_origine_AGR'!H50,-1),"! Incohérence Financ. Etat fléchés avec Tab3 AGR","") -> 
B14: Autres financements publics fléchés | H14: =IF(ROUND(D14,-1)<>ROUND(#REF!,-1),"! Incohérence Autres financ. fléchés avec Tab2 AGR","") ->  | I14: =IF(ROUND(D14,-1)<>ROUND('3-tab_destination_origine_AGR'!I50,-1),"! Incohérence Autres financ. fléchés avec Tab3 AGR","") -> 
B15: Recettes propres fléchées | H15: =IF(ROUND(D15,-1)<>ROUND(#REF!,-1),"! Incohérence Recettes propres fléchées avec Tab2 AGR","") ->  | I15: =IF(ROUND(D15,-1)<>ROUND('3-tab_destination_origine_AGR'!J50,-1),"! Incohérence Recettes propres fléchées avec Tab3 AGR","") -> 
B17: Dépenses sur recettes fléchées (c) | C17: =C19+C21+C24 -> 0 | D17: =D19+D21+D24 -> 0 | E17: 0 | F17: 0 | G17: 0
B19: Personnel | C19: =C20 -> 0 | D19: =D20 -> 0 | E19: 0 | F19: 0 | G19: 0
B20: AE=CP
B21: Fonctionnement et intervention | C21: =C23 -> 0 | D21: =D23 -> 0 | E21: 0 | F21: 0 | G21: 0
B22: AE
B23: CP
B24: Investissement | C24: =C26 -> 0 | D24: =D26 -> 0 | E24: 0 | F24: 0 | G24: 0
B25: AE
B26: CP
B28: Solde budgétaire de l'exercice résultant des opérations fléchées (b) - (c) | C28: =C11-C17 -> 0 | D28: =D11-D17 -> 0 | E28: =E11-E17 -> 0 | F28: 0 | G28: 0
D29: (1)
D30: (1) repris au tableau "Équilibre financier" en (a) (tableau 4)

Sheet 9-tab op_pluriannuelles_ETAB
B1: Tableau 9 - Université de Bretagne Sud (0561718N) : Etablissement principal + Fondation
B2: ="Tableau des opérations pluriannuelles - Budget consolidé "&Maquette!B4&" "&Maquette!B5&" "&Maquette!B3 -> Tableau des opérations pluriannuelles - Budget consolidé rectificatif n° 2 2023
B3: POUR VOTE DE L'ORGANE DÉLIBÉRANT
B6: A - Dépenses
B8: Opérations | E8: Montant de l'opération | F8: Autorisations d'engagement | K8: Crédits de paiement | P8: Restes
F9: AE ouvertes < N | G9: Conso AE < N | H9: Reports ou Reprogrammations N | I9: AE nouvelles ouvertes N | J9: Total AE N | K9: CP ouverts < N | L9: Conso CP < N | M9: Reports ou Reprogrammations N | N9: CP nouveaux ouverts N | O9: Total CP N | P9: Restes à engager > N (AE) | Q9: Restes à payer > N sur AE consommées <= N (CP)
B10: PFIRECHARE | C10: RECH ALLOCATION DE RECHERCHE DOCTORALE | E10: 3434386.28 | F10: 1732751.67 | G10: 1688737.51 | H10: 259697.54 | I10: 591171.61 | J10: =H10+I10 -> 850869.15 | K10: 1732352.26 | L10: 1688278.65 | M10: 260096.95 | N10: 591171.61 | O10: =M10+N10 -> 851268.56 | P10: =E10-G10-J10 -> 894779.62 | Q10: =G10+J10-L10-O10 -> 59.45
B11: PFIRECHCCR | C11: RECH CONTRATS DE COLLABORATION | E11: 2607476.46 | F11: 1531348.42 | G11: 1523064.6 | H11: 230596.43 | I11: 686627.16 | J11: =H11+I11 -> 917223.59 | K11: 1516780.51 | L11: 1497925.23 | M11: 245164.34 | N11: 686627.16 | O11: =M11+N11 -> 931791.5 | P11: =E11-G11-J11 -> 167188.27 | Q11: =G11+J11-L11-O11 -> 10571.46
B12: PFIRECHSSC | C12: RECH SUBVENTIONS SANS CONDITIONS | E12: 88879.31 | F12: 4610.38 | G12: 4610.38 | H12: 3941.35 | I12: 25775.86 | J12: =H12+I12 -> 29717.21 | K12: 4281.84 | L12: 4281.84 | M12: 4269.89 | N12: 25775.86 | O12: =M12+N12 -> 30045.75 | P12: =E12-G12-J12 -> 54551.72 | Q12: =G12+J12-L12-O12 -> 0
B13: PFIRECHAUT | C13: RECH CONTRATS AUTRES | E13: 643705.33 | F13: 292376.2 | G13: 269940.77 | H13: 250767.3 | I13: 85606.66 | J13: =H13+I13 -> 336373.96 | K13: 278450.09 | L13: 242544.42 | M13: 264693.41 | N13: 85606.66 | O13: =M13+N13 -> 350300.07 | P13: =E13-G13-J13 -> 37390.6 | Q13: =G13+J13-L13-O13 -> 13470.24
B14: PFIRECHCIF | C14: RECH CONTRATS CIFRE | E14: 748385.42 | F14: 281806.27 | G14: 254050.07 | H14: -2460.72 | I14: 128743.79 | J14: 126283.07 | K14: 273338.44 | L14: 239053.19 | M14: 6007.11 | N14: 128743.79 | O14: 134750.9 | P14: 368052.28 | Q14: 6529.05
B15: PFIRECHSAC | C15: RECH SUBVENTIONS AVEC CONDITIONS | E15: 22110196.15 | F15: 11329692.2 | G15: 11212124.89 | H15: 899879.24 | I15: 5105888 | J15: 6005767.24 | K15: 11093837.88 | L15: 10957643.23 | M15: 1096282.12 | N15: 5105888 | O15: 6202170.12 | P15: 4892304.02 | Q15: 58078.78
B16: PFIPIAHITR | C16: PIA HIT VOLET RECHERCHE | E16: 864000 | F16: 117454.38 | G16: 117454.38 | H16: -96746.95 | I16: 322131.57 | J16: 225384.62 | K16: 107034.02 | L16: 107034.02 | M16: -86326.59 | N16: 322131.57 | O16: 235804.98 | P16: 521161 | Q16: 0
B17: Total Contrats de recherche | E17: =SUM(E10:E16) -> 30497028.95 | F17: 15290039.52 | G17: 15069982.6 | H17: 1545674.19 | I17: 6945944.65 | J17: 8491618.84 | K17: 15006075.04 | L17: 14736760.58 | M17: =SUM(M10:M16) -> 1790187.23 | N17: =SUM(N10:N16) -> 6945944.65 | O17: =SUM(O10:O16) -> 8736131.88 | P17: =SUM(P10:P16) -> 6935427.51 | Q17: =SUM(Q10:Q16) -> 88708.98
B18: PFIANRFORM | C18: ANR PROJET FORMAFLEX | E18: 273880 | F18: 93236.97 | G18: 93236.97 | H18: -58080.97 | I18: 172224 | J18: =H18+I18 -> 114143.03 | K18: 93236.97 | L18: 93236.97 | M18: -58080.97 | N18: 172224 | O18: =M18+N18 -> 114143.03 | P18: =E18-G18-J18 -> 66500 | Q18: =G18+J18-L18-O18 -> 0
B19: PFIANRSKIL | C19: ANR PROJET CYBERSKILLS4ALL | E19: 464283 | F19: 0 | G19: 0 | H19: 53500 | I19: 0 | J19: 53500 | K19: 0 | L19: 0 | M19: 53500 | N19: 0 | O19: 53500 | P19: 410783 | Q19: 0
B20: PFIANRTRAN | C20: ANR AAP PEA2 PROJET TRANGA | E20: 1279363 | F20: 0 | G20: 0 | H20: 40000 | I20: 0 | J20: 40000 | K20: 0 | L20: 0 | M20: 40000 | N20: 0 | O20: 40000 | P20: 1239363 | Q20: 0
B21: PFIPIABRIO | C21: PIA BRIO | E21: 860500 | F21: 116857.88 | G21: 116857.88 | H21: -36157.88 | I21: 146200 | J21: 110042.12 | K21: 113528.79 | L21: 113528.79 | M21: -32828.79 | N21: 146200 | O21: 113371.21 | P21: 633600 | Q21: 0
B22: PFIERASDIV | C22: PROJETS UE ERASMUS + | E22: 1837420.38 | F22: 523944.31 | G22: 523772.11 | H22: 51884.09 | I22: 631911 | J22: 683795.09 | K22: 503068.19 | L22: 503068.19 | M22: 72760.21 | N22: 631911 | O22: 704671.21 | P22: 629853.18 | Q22: -172.2
B23: PFIENSDIV | C23: CONTRATS ENSEIGNEMENT DIVERS | E23: 72165.1 | F23: 52000 | G23: 52000 | H23: 2165.1 | I23: 0 | J23: =H23+I23 -> 2165.1 | K23: 41491.69 | L23: 41491.69 | M23: 12673.41 | N23: 0 | O23: =M23+N23 -> 12673.41 | P23: =E23-G23-J23 -> 18000 | Q23: =G23+J23-L23-O23 -> 0
B24: PFIERASCYB | C24: PROJET UE ERASMUS+ CYBERUS | E24: 4442928 | F24: 810572.15 | G24: 810572.15 | H24: -107163.55 | I24: 1009936 | J24: 902772.45 | K24: 202388.96 | L24: 202388.96 | M24: -10580.36 | N24: 774736 | O24: 764155.64 | P24: 2729583.4 | Q24: 746800
B25: PFIPIACOHY | C25: PR CO-HY-B PLAN DE RELANCE ETAT | E25: 300000 | F25: 211570.38 | G25: 211570.38 | H25: 80524.62 | I25: 7905 | J25: 88429.62 | K25: 162372.27 | L25: 162372.27 | M25: 129722.73 | N25: 7905 | O25: 137627.73 | P25: 0 | Q25: 0
B26: Total Contrats d'enseignement | E26: =SUM(E18:E25) -> 9530539.48 | F26: 1808181.69 | G26: 1808009.49 | H26: 26671.41 | I26: 1968176 | J26: 1994847.41 | K26: 1116086.87 | L26: 1116086.87 | M26: =SUM(M18:M25) -> 207166.23 | N26: =SUM(N18:N25) -> 1732976 | O26: =SUM(O18:O25) -> 1940142.23 | P26: =SUM(P18:P25) -> 5727682.58 | Q26: =SUM(Q18:Q25) -> 746627.8
B27: CPERBBB | C27: CPER 2021-2027 BREST BAY BASE / LBCM | E27: 140200 | F27: 0 | G27: 0 | H27: -64800 | I27: 140000 | J27: =H27+I27 -> 75200 | K27: 0 | L27: 0 | M27: -64800 | N27: 140000 | O27: =M27+N27 -> 75200 | P27: =E27-G27-J27 -> 65000 | Q27: =G27+J27-L27-O27 -> 0
B28: CPERBIA | C28: CPER 2021-2027 BIOALTERNATIVES | E28: 248000 | F28: 0 | G28: 0 | H28: 0 | I28: 248000 | J28: 248000 | K28: 0 | L28: 0 | M28: 0 | N28: 248000 | O28: 248000 | P28: 0 | Q28: 0
B29: CPERGLAZ | C29: CPER 2021-2027 GLAZ | E29: 120000 | F29: 0 | G29: 0 | H29: -60000 | I29: 60000 | J29: 0 | K29: 0 | L29: 0 | M29: -60000 | N29: 60000 | O29: 0 | P29: 120000 | Q29: 0
B30: CPERIDF | C30: CPER 2021-2027 INDUSTRIE DU FUTUR | E30: 585000 | F30: 22939 | G30: 22939 | H30: 173671.14 | I30: 160000 | J30: 333671.14 | K30: 2045 | L30: 2045 | M30: -12536.86 | N30: 215000 | O30: 202463.14 | P30: 228389.86 | Q30: 152102
B31: CPERIFSYS | C31: CPER 2021-2027 IF-SYS-MER / IRDL | E31: 1146010 | F31: 144010 | G31: 144100 | H31: -363817.79 | I31: 1002000 | J31: 638182.21 | K31: 144010 | L31: 144010 | M31: -193817.79 | N31: 832000 | O31: 638182.21 | P31: 363727.79 | Q31: 90
B32: CPERMSHB | C32: CPER 2021-2027 MSHB | E32: 107000 | F32: 0 | G32: 0 | H32: -69800 | I32: 81000 | J32: 11200 | K32: 0 | L32: 0 | M32: -69800 | N32: 81000 | O32: 11200 | P32: 95800 | Q32: 0
B33: PPICVEC | C33: PPI CVEC | E33: 2400000 | F33: 279140.18 | G33: 279140.18 | H33: -1421886.18 | I33: 2018000 | J33: =H33+I33 -> 596113.82 | K33: 133983.9 | L33: 133983.9 | M33: -490315.9 | N33: 1000000 | O33: =M33+N33 -> 509684.1 | P33: =E33-G33-J33 -> 1524746 | Q33: =G33+J33-L33-O33 -> 231586
B34: PREKERJU | C34: PLAN DE RELANCE ETAT LED KERJULAUDE | E34: 110000 | F34: 110000 | G34: 109999.99 | H34: 0 | I34: 0 | J34: 0 | K34: 110000 | L34: 109999.99 | M34: 0 | N34: 0 | O34: 0 | P34: 0.009999999995 | Q34: 0
B35: PRECERYC | C35: PLAN DE RELANCE ETAT REHAB CERYC | E35: 3606600.01 | F35: 3599523.54 | G35: 3599522.96 | H35: 7076.47 | I35: 0 | J35: 7076.47 | K35: 3349777.97 | L35: 3349777.97 | M35: 256822.04 | N35: 0 | O35: 256822.04 | P35: 0.5799999998 | Q35: -0.58
B36: SACUEHYDRO | C36: FEDER HYDROGENE STOCKAGE | E36: 350000 | F36: 0 | G36: 0 | H36: 350000 | I36: 0 | J36: 350000 | K36: 0 | L36: 0 | M36: 105000 | N36: 245000 | O36: 350000 | P36: 0 | Q36: 0
B37: SACUEREACT | C37: FEDER REHAB ENERGETIQ PAQUEBOT | E37: 1949260 | F37: 1949255.15 | G37: 1949255.15 | H37: 4.85 | I37: 0 | J37: 4.85 | K37: 1229766.51 | L37: 1229766.51 | M37: 429493.49 | N37: 290000 | O37: 719493.49 | P37: 9.313261273e-11 | Q37: 0
B38: Total Programme pluriannuels d'inv | E38: =SUM(E27:E37) -> 10762070.01 | F38: 6104867.87 | G38: 6104957.28 | H38: -1449551.51 | I38: 3709000 | J38: 2259448.49 | K38: 4969583.38 | L38: 4969583.37 | M38: -99955.02 | N38: 3111000 | O38: 3011044.98 | P38: 2397664.24 | Q38: 383777.42
B39: Total | E39: =E17+E26+E38 -> 50789638.44 | F39: =F17+F26+F38 -> 23203089.08 | G39: =G17+G26+G38 -> 22982949.37 | H39: =+H17+H26+H38 -> 122794.09 | I39: =+I17+I26+I38 -> 12623120.65 | J39: =J17+J26+J38 -> 12745914.74 | K39: 21091745.29 | L39: 20822430.82 | M39: 1897398.44 | N39: 11789920.65 | O39: 13687319.09 | P39: 15060774.33 | Q39: 1219114.2
B40: Ss total personnel | E40: 23360400.49 | F40: 11315771.9 | G40: 11230937.15 | H40: 1069803.92 | I40: 4572677.11 | J40: =H40+I40 -> 5642481.03 | K40: 11315771.9 | L40: 11230758.75 | M40: 1069803.92 | N40: 4572677.11 | O40: =M40+N40 -> 5642481.03 | P40: =E40-G40-J40 -> 6486982.31 | Q40: =G40+J40-L40-O40 -> 178.4
B41: Ss total fonctionnement | E41: 15356028.98 | F41: 5051739.14 | G41: 4926221.72 | H41: 467014.42 | I41: 4077502.74 | J41: 4544517.16 | K41: 4162648.01 | L41: 3989172.47 | M41: 805054.11 | N41: 3842302.74 | O41: 4647356.85 | P41: 5885290.1 | Q41: 834209.56
B42: Ss total investissement | E42: 12073208.97 | F42: 6835578.04 | G42: 6825790.5 | H42: -1414024.25 | I42: 3972940.8 | J42: 2558916.55 | K42: 5613325.38 | L42: 5602499.6 | M42: 22540.41 | N42: 3374940.8 | O42: 3397481.21 | P42: 2688501.92 | Q42: 384726.24
B45: B - Recettes
B46: Opérations | E46: Montant de l'opération | F46: Prélèvement sur la trésorerie | G46: Financements extérieurs
G47: Montant | H47: Encaissements < N | I47: Encaissements prévus N | J47: Restes à encaisser > N
B48: PFIRECHARE | C48: RECH ALLOCATION DE RECHERCHE DOCTORALE | E48: 3434386.28 | F48: =E48-G48 -> 77514.65 | G48: 3356871.63 | H48: 1304311.07 | I48: 975431.56 | J48: 1077129
B49: PFIRECHCCR | C49: RECH CONTRATS DE COLLABORATION | E49: 2607476.46 | F49: =E49-G49 -> -427641.37 | G49: 3035117.83 | H49: 1744834.85 | I49: 1224221.74 | J49: 66061.24
B50: PFIRECHSSC | C50: RECH SUBVENTIONS SANS CONDITIONS | E50: 88879.31 | F50: =E50-G50 -> -8620.69 | G50: 97500 | H50: 25000 | I50: 47500 | J50: 25000
B51: PFIRECHAUT | C51: RECH CONTRATS AUTRES | E51: 643705.33 | F51: =E51-G51 -> -65878.72 | G51: 709584.05 | H51: 229563.56 | I51: 464172.49 | J51: 15848
B52: PFIRECHCIF | C52: RECH CONTRATS CIFRE | E52: 748385.42 | F52: -165384.16 | G52: 913769.58 | H52: 451414.37 | I52: 231725.56 | J52: 230629.65
B53: PFIRECHSAC | C53: RECH SUBVENTIONS AVEC CONDITIONS | E53: 22110196.15 | F53: -348342.76 | G53: 22458538.91 | H53: 10516226.81 | I53: 6510267.75 | J53: 5432044.35
B54: PFIPIAHITR | C54: PIA HIT VOLET RECHERCHE | E54: 864000 | F54: 0 | G54: 864000 | H54: 208700 | I54: 16100 | J54: 639200
B55: Total Contrats de recherche | E55: =SUM(E48:E54) -> 30497028.95 | F55: =SUM(F48:F54) -> -938353.05 | G55: =SUM(G48:G54) -> 31435382 | H55: =SUM(H48:H54) -> 14480050.66 | I55: 9469419.1 | J55: 7485912.24
B56: PFIANRFORM | C56: ANR PROJET FORMAFLEX | E56: 273880 | F56: =E56-G56 -> 0 | G56: 273880 | H56: 82164 | I56: 164328 | J56: 27388
B57: PFIANRSKIL | C57: ANR PROJET CYBERSKILLS4ALL | E57: 464283 | F57: =E57-G57 -> 0 | G57: 464283 | H57: 0 | I57: 0 | J57: 464283
B58: PFIANRTRAN | C58: ANR AAP PEA2 PROJET TRANGA | E58: 1279363 | F58: 0 | G58: 1279363 | H58: 0 | I58: 437115.69 | J58: 842247.31
B59: PFIPIABRIO | C59: PIA BRIO | E59: 860500 | F59: -1500 | G59: 862000 | H59: 258867.12 | I59: 85932.88 | J59: 517200
B60: PFIERASDIV | C60: PROJETS UE ERASMUS + | E60: 1837420.38 | F60: =E60-G60 -> -15018.12 | G60: 1852438.5 | H60: 1177837.61 | I60: 551069.89 | J60: 123531
B61: PFIENSDIV | C61: CONTRATS ENSEIGNEMENT DIVERS | E61: 72165.1 | F61: =E61-G61 -> 165.1 | G61: 72000 | H61: 41600 | I61: 30400 | J61: 0
B62: PFIERASCYB | C62: PROJET UE ERASMUS+ CYBERUS | E62: 4442928 | F62: 0 | G62: 4442928 | H62: 2221464 | I62: 0 | J62: 2221464
B63: PFIPIACOHY | C63: PR CO-HY-B PLAN DE RELANCE ETAT | E63: 300000 | F63: 0 | G63: 300000 | H63: 300000 | I63: 0 | J63: 0
B64: Total Contrats d'enseignement | E64: =SUM(E56:E63) -> 9530539.48 | F64: =SUM(F56:F63) -> -16353.02 | G64: =SUM(G56:G63) -> 9546892.5 | H64: =SUM(H56:H63) -> 4081932.73 | I64: 1268846.46 | J64: 4196113.31
B65: CPERBBB | C65: CPER 2021-2027 BREST BAY BASE / LBCM | E65: 140200 | F65: =E65-G65 -> 200 | G65: 140000 | H65: 54700 | I65: 20300 | J65: 65000
B66: CPERBIA | C66: CPER 2021-2027 BIOALTERNATIVES | E66: 248000 | F66: 0 | G66: 248000 | H66: 103200 | I66: 144800 | J66: 0
B67: CPERGLAZ | C67: CPER 2021-2027 GLAZ | E67: 120000 | F67: 0 | G67: 120000 | H67: 0 | I67: 66200 | J67: 53800
B68: CPERIDF | C68: CPER 2021-2027 INDUSTRIE DU FUTUR | E68: 585000 | F68: 56000 | G68: 529000 | H68: 109900 | I68: 223100 | J68: 196000
B69: CPERIFSYS | C69: CPER 2021-2027 IF-SYS-MER / IRDL | E69: 1146010 | F69: =E69-G69 -> 0 | G69: 1146010 | H69: 303500 | I69: 544510 | J69: 298000
B70: CPERMSHB | C70: CPER 2021-2027 MSHB | E70: 107000 | F70: 0 | G70: 107000 | H70: 0 | I70: 36000 | J70: 71000
B71: PPICVEC | C71: PPI CVEC | E71: 2400000 | F71: 1061604.54 | G71: 1338395.46 | H71: 960642.85 | I71: 201352.61 | J71: 176400
B72: PREKERJU | C72: PLAN DE RELANCE ETAT LED KERJULAUDE | E72: 110000 | F72: 0 | G72: 110000 | H72: 110000 | I72: 0 | J72: 0
B73: PRECERYC | C73: PLAN DE RELANCE ETAT REHAB CERYC | E73: 3606600.01 | F73: 6600.01 | G73: 3600000 | H73: 3600000 | I73: 0 | J73: 0
B74: SACUEHYDRO | C74: FEDER HYDROGENE STOCKAGE | E74: 350000 | F74: 70000 | G74: 280000 | H74: 0 | I74: 280000 | J74: 0
B75: SACUEREACT | C75: FEDER REHAB ENERGETIQ PAQUEBOT | E75: 1949260 | F75: 178787 | G75: 1770473 | H75: 644678.79 | I75: 1125794.21 | J75: 0
B76: Total Programme pluriannuels d'inv | E76: =SUM(E65:E75) -> 10762070.01 | F76: =SUM(F65:F75) -> 1373191.55 | G76: =SUM(G65:G75) -> 9388878.46 | H76: =SUM(H65:H75) -> 5886621.64 | I76: 2642056.82 | J76: 860200
B77: Total | E77: =+E55+E64+E76 -> 50789638.44 | F77: =+F55+F64+F76 -> 418485.48 | G77: =+G55+G64+G76 -> 50371152.96 | H77: =+H55+H64+H76 -> 24448605.03 | I77: =I55+I64+I76 -> 13380322.38 | J77: =J55+J64+J76 -> 12542225.55
B90: Différence Dépenses - Recettes | C90: =E39-E77 -> 0
B93: COMMENTAIRES SUR LES TABLEAUX DE SUIVI DES OPÉRATIONS PLURIANNUELLES
B95: 1 | C95: Les opérations sont identifiées par un nom et un millésime ; elles peuvent ne pas être toutes individualisées et faire l'objet de regroupements, un niveau de détail suffisant au regard des caractéristiques de l'établissements devant néanmoins être maintenu ;
B97: 2 | C97: Le degré d'exigence quant à la précision de l'évaluation, au budget initial, des reports prévisibles devra être fonction des contraintes qui pèsent sur les établissements pour établir ce chiffrage, notamment pour les contrats de recherche ;
B99: 3 | C99: En recettes, une ligne sera maintenue, même après la fin d'une opération tant que la totalité des financements extérieurs n'a pas été recouvrée ;
B101: 4 | C101: Pour les contrats de recherche, ne devra être indiquée au titre de l'autofinancement que, le cas échéant, la participation de l'établissement qui doit donner lieu à justification en application du contrat.

Sheet 10-tab_op_pluri_détail_ETAB
C1: Tableau 10 - Université de Bretagne Sud (0561718N) : Etablissement principal + Fondation
C2: ="Tableau détaillé des opérations pluriannuelles et programmation - Budget consolidé "&Maquette!B4&" "&Maquette!B5&" "&Maquette!B3 -> Tableau détaillé des opérations pluriannuelles et programmation - Budget consolidé rectificatif n° 2 2023
C4: POUR INFORMATION DE L'ORGANE DÉLIBÉRANT
C5: Suivi par opération (ou par regroupement d'opérations) des autorisations d'engagement, des crédits de paiement et des recettes
C7: A - Prévision d'autorisations d'engagement et de crédits de paiement
C8: Prévisions d'AE et de CP | G8: Prévisions | I8: Prévisions N (BI + BR) | W8: Prévisions N+1 et suivantes
C9: Opération | F9: Nature | G9: Coût total de l'opération | I9: AE ouvertes < N | J9: Conso AE < N | K9: Reports ou Reprogrammations N | M9: AE nouvelles ouvertes N | N9: Total AE N | O9: CP ouverts < N | P9: Conso CP < N | R9: Reports ou Reprogrammations N | T9: CP nouveaux ouverts N | U9: Total CP N | W9: AE prévues en N+1 | X9: CP prévus en N+1 | Y9: AE prévues en N+2 | Z9: CP prévus en N+2 | AA9: AE prévues > N+2 | AB9: CP prévus > N+2
C10: Contrats de recherche | F10: Personnel | G10: 20410928.46 | I10: 10904621.29 | J10: 10819786.54 | K10: 1067751.5 | M10: 4099960.11 | N10: 5167711.61 | O10: 10904621.29 | P10: 10819608.14 | R10: 1067751.5 | T10: 4099960.11 | U10: 5167711.61 | W10: 3055027.55 | X10: 3055027.55 | Y10: 1072945.58 | Z10: 1072945.58 | AA10: 210622.43 | AB10: 210622.43
F11: Fonctionnement | G11: 8829942.13 | I11: 3717061.75 | J11: 3591716.53 | K11: 487596.36 | M11: 2554043.74 | N11: 3041640.1 | O11: 3476104.14 | P11: 3302628.6 | R11: 689102.53 | T11: 2554043.74 | U11: 3243146.27 | W11: 1538426.88 | X11: 1562182.32 | Y11: 385754.02 | Z11: 401450.02 | AA11: 147059.38 | AB11: 147059.38
F12: Investissement | G12: 1256158.36 | I12: 668356.48 | J12: 658479.53 | K12: -9673.67 | M12: 291940.8 | N12: 282267.13 | O12: 625349.61 | P12: 614523.84 | R12: 33333.2 | T12: 291940.8 | U12: 325274 | W12: 293799.75 | X12: 293799.75 | Y12: 11735 | Z12: 11735 | AA12: 0 | AB12: 0
C13: Total Contrats de recherche | G13: =SUM(G10:G12) -> 30497028.95 | I13: =SUM(I10:I12) -> 15290039.52 | J13: =SUM(J10:J12) -> 15069982.6 | K13: =SUM(K10:L12) -> 1545674.19 | M13: =SUM(M10:M12) -> 6945944.65 | N13: =SUM(N10:N12) -> 8491618.84 | O13: =SUM(O10:O12) -> 15006075.04 | P13: =SUM(P10:Q12) -> 14736760.58 | R13: =SUM(R10:S12) -> 1790187.23 | T13: =SUM(T10:T12) -> 6945944.65 | U13: =SUM(U10:U12) -> 8736131.88 | W13: =SUM(W10:W12) -> 4887254.18 | X13: 4911009.62 | Y13: 1470434.6 | Z13: 1486130.6 | AA13: 357681.81 | AB13: 357681.81
C14: Contrats d'enseignement | F14: Personnel | G14: 2882472.03 | I14: 411150.61 | J14: 411150.61 | K14: -9147.58 | M14: 472717 | N14: 463569.42 | O14: 411150.61 | P14: 411150.61 | R14: -9147.58 | T14: 472717 | U14: 463569.42 | W14: 851300 | X14: 851300 | Y14: 342000 | Z14: 342000 | AA14: 814452 | AB14: 814452
F15: Fonctionnement | G15: 6526086.85 | I15: 1334677.39 | J15: 1334505.19 | K15: 20418.06 | M15: 1482459 | N15: 1502877.06 | O15: 686543.87 | P15: 686543.87 | R15: 156951.58 | T15: 1247259 | U15: 1404210.58 | W15: 1670401.4 | X15: 1620401.4 | Y15: 1364008 | Z15: 1447608 | AA15: 654123 | AB15: 1367323
F16: Investissement | G16: 121980.6 | I16: 62353.69 | J16: 62353.69 | K16: 15400.93 | M16: 13000 | N16: 28400.93 | O16: 18392.39 | P16: 18392.39 | R16: 59362.23 | T16: 13000 | U16: 72362.23 | W16: 15225.98 | X16: 15225.98 | Y16: 13000 | Z16: 13000 | AA16: 3000 | AB16: 3000
C17: Total Contrats d'enseignement | G17: =SUM(G14:G16) -> 9530539.48 | I17: =SUM(I14:I16) -> 1808181.69 | J17: =SUM(J14:J16) -> 1808009.49 | K17: =SUM(K14:L16) -> 26671.41 | M17: =SUM(M14:M16) -> 1968176 | N17: =SUM(N14:N16) -> 1994847.41 | O17: =SUM(O14:O16) -> 1116086.87 | P17: =SUM(P14:Q16) -> 1116086.87 | R17: =SUM(R14:S16) -> 207166.23 | T17: =SUM(T14:T16) -> 1732976 | U17: =SUM(U14:U16) -> 1940142.23 | W17: =SUM(W14:W16) -> 2536927.38 | X17: =SUM(X14:X16) -> 2486927.38 | Y17: 1719008 | Z17: 1802608 | AA17: 1471575 | AB17: 2184775
C18: Programme pluriannuels d'inv | F18: Personnel | G18: 67000 | I18: 0 | J18: 0 | K18: 11200 | M18: 0 | N18: 11200 | O18: 0 | P18: 0 | R18: 11200 | T18: 0 | U18: 11200 | W18: 55800 | X18: 55800 | Y18: 0 | Z18: 0 | AA18: 0 | AB18: 0
F19: Fonctionnement | G19: 0 | I19: 0 | J19: 0 | K19: -41000 | M19: 41000 | N19: 0 | O19: 0 | P19: 0 | R19: -41000 | T19: 41000 | U19: 0 | W19: 0 | X19: 0 | Y19: 0 | Z19: 0 | AA19: 0 | AB19: 0
F20: Investissement | G20: 10695070.01 | I20: 6104867.87 | J20: 6104957.28 | K20: -1419751.51 | M20: 3668000 | N20: 2248248.49 | O20: 4969583.38 | P20: 4969583.37 | R20: -70155.02 | T20: 3070000 | U20: 2999844.98 | W20: 2341953.65 | X20: 2725641.65 | Y20: 0 | Z20: 0 | AA20: 0 | AB20: 0
C21: Total Programme pluriannuels d'inv | G21: =SUM(G18:G20) -> 10762070.01 | I21: =SUM(I18:I20) -> 6104867.87 | J21: =SUM(J18:J20) -> 6104957.28 | K21: =SUM(K18:L20) -> -1449551.51 | M21: =SUM(M18:M20) -> 3709000 | N21: =SUM(N18:N20) -> 2259448.49 | O21: =SUM(O18:O20) -> 4969583.38 | P21: =SUM(P18:Q20) -> 4969583.37 | R21: =SUM(R18:S20) -> -99955.02 | T21: =SUM(T18:T20) -> 3111000 | U21: =SUM(U18:U20) -> 3011044.98 | W21: =SUM(W18:W20) -> 2397753.65 | X21: =SUM(X18:X20) -> 2781441.65 | Y21: 0 | Z21: 0 | AA21: 0 | AB21: 0
F22: Ss total Personnel | G22: =+G10+G14+G18 -> 23360400.49 | I22: =+I10+I14+I18 -> 11315771.9 | J22: 11230937.15 | K22: =K10+K14+K18 -> 1069803.92 | M22: =M10+M14+M18 -> 4572677.11 | N22: 5642481.03 | O22: =O10+O14+O18 -> 11315771.9 | P22: 11230758.75 | R22: =R10+R14+R18 -> 1069803.92 | T22: =T10+T14+T18 -> 4572677.11 | U22: 5642481.03 | W22: =W10+W14+W18 -> 3962127.55 | X22: 3962127.55 | Y22: =Y10+Y14+Y18 -> 1414945.58 | Z22: 1414945.58 | AA22: =AA10+AA14+AA18 -> 1025074.43 | AB22: 1025074.43
F23: Ss total Fonctionnement | G23: =+G11+G15+G19 -> 15356028.98 | I23: =+I11+I15+I19 -> 5051739.14 | J23: 4926221.72 | K23: =K11+K15+K19 -> 467014.42 | M23: 4077502.74 | N23: 4544517.16 | O23: 4162648.01 | P23: 3989172.47 | R23: =R11+R15+R19 -> 805054.11 | T23: 3842302.74 | U23: 4647356.85 | W23: 3208828.28 | X23: 3182583.72 | Y23: 1749762.02 | Z23: 1849058.02 | AA23: 801182.38 | AB23: 1514382.38
F24: Ss total Investissement | G24: =+G12+G16+G20 -> 12073208.97 | I24: =+I12+I16+I20 -> 6835578.04 | J24: 6825790.5 | K24: =K12+K16+K20 -> -1414024.25 | M24: 3972940.8 | N24: 2558916.55 | O24: 5613325.38 | P24: 5602499.6 | R24: =R12+R16+R20 -> 22540.41 | T24: 3374940.8 | U24: 3397481.21 | W24: 2650979.38 | X24: 3034667.38 | Y24: 24735 | Z24: 24735 | AA24: 3000 | AB24: 3000
C25: TOTAL | G25: =SUM(G22:G24) -> 50789638.44 | I25: =SUM(I22:I24) -> 23203089.08 | J25: =SUM(J22:J24) -> 22982949.37 | K25: =SUM(K22:L24) -> 122794.09 | M25: =SUM(M22:M24) -> 12623120.65 | N25: =SUM(N22:N24) -> 12745914.74 | O25: =SUM(O22:O24) -> 21091745.29 | P25: =SUM(P22:Q24) -> 20822430.82 | R25: =SUM(R22:S24) -> 1897398.44 | T25: =SUM(T22:T24) -> 11789920.65 | U25: =SUM(U22:U24) -> 13687319.09 | W25: =SUM(W22:W24) -> 9821935.21 | X25: =SUM(X22:X24) -> 10179378.65 | Y25: 3189442.6 | Z25: 3288738.6 | AA25: 1829256.81 | AB25: 2542456.81
C27: B - Prévisions de recettes
C29: Prévisions de recettes | G29: Prévisions | I29: Prévisions N | L29: Prévisions en N+1 et suivantes
C30: Opération | F30: Nature | G30: Financement de l'opération | I30: Encaissements < N | J30: Encaissements prévus N | L30: Encaissements prévus en N+1 | M30: Encaissements prévus en N+2 | N30: Encaissements prévus > N+2
C31: Contrats de recherche | F31: Financement de l'Etat | G31: 5801057.6 | I31: 1901972.96 | J31: 2021804.51 | L31: 962170.15 | M31: 553755.18 | N31: 361354.8
F32: Autres financements publics | G32: 20446205.53 | I32: 9979978 | J32: 5170971.31 | L32: 3095561.11 | M32: 1366656.62 | N32: 833038.49
F33: Autres financements | G33: 5188118.87 | I33: 2598099.7 | J33: 2276643.28 | L33: 226381.86 | M33: 80494.03 | N33: 6500
C34: Total Contrats de recherche | G34: =SUM(G31:G33) -> 31435382 | I34: =SUM(I31:I33) -> 14480050.66 | J34: =SUM(J31:J33) -> 9469419.1 | L34: =SUM(L31:L33) -> 4284113.12 | M34: =SUM(M31:M33) -> 2000905.83 | N34: =SUM(N31:N33) -> 1200893.29
C35: Contrats d'enseignement | F35: Financement de l'Etat | G35: 1075800 | I35: 558600 | J35: 86200 | L35: 86200 | M35: 344800 | N35: 0
F36: Autres financements publics | G36: 8451092.5 | I36: 3513514.24 | J36: 1172464.95 | L36: 969749.98 | M36: 37194.88 | N36: 2758168.45
F37: Autres financements | G37: 20000 | I37: 9818.49 | J37: 10181.51 | L37: 0 | M37: 0 | N37: 0
C38: Total Contrats d'enseignement | G38: =SUM(G35:G37) -> 9546892.5 | I38: =SUM(I35:I37) -> 4081932.73 | J38: =SUM(J35:J37) -> 1268846.46 | L38: =SUM(L35:L37) -> 1055949.98 | M38: =SUM(M35:M37) -> 381994.88 | N38: =SUM(N35:N37) -> 2758168.45
C39: Programme pluriannuels d'inv | F39: Financement de l'Etat | G39: 5662405.46 | I39: 5108942.85 | J39: 363762.61 | L39: 189700 | M39: 0 | N39: 0
F40: Autres financements publics | G40: 3726473 | I40: 777678.79 | J40: 2278294.21 | L40: 407500 | M40: 263000 | N40: 0
F41: Autres financements | G41: 0 | I41: 0 | J41: 0 | L41: 0 | M41: 0 | N41: 0
C42: Total Programme pluriannuels d'inv | G42: =SUM(G39:G41) -> 9388878.46 | I42: =SUM(I39:I41) -> 5886621.64 | J42: =SUM(J39:J41) -> 2642056.82 | L42: =SUM(L39:L41) -> 597200 | M42: =SUM(M39:M41) -> 263000 | N42: =SUM(N39:N41) -> 0
F43: Ss total Financement de l'Etat | G43: =G31+G35+G39 -> 12539263.06 | I43: =I31+I35+I39 -> 7569515.81 | J43: 2471767.12 | L43: =L31+L35+L39 -> 1238070.15 | M43: 898555.18 | N43: 361354.8
F44: Ss total Autres financements publics | G44: =G32+G36+G40 -> 32623771.03 | I44: 14271171.03 | J44: 8621730.47 | L44: =L32+L36+L40 -> 4472811.09 | M44: 1666851.5 | N44: 3591206.94
F45: Ss total Autres financements | G45: =G33+G37+G41 -> 5208118.87 | I45: 2607918.19 | J45: 2286824.79 | L45: =L33+L37+L41 -> 226381.86 | M45: 80494.03 | N45: 6500
C46: TOTAL | G46: =SUM(G43:G45) -> 50371152.96 | I46: =SUM(I43:I45) -> 24448605.03 | J46: =SUM(J43:J45) -> 13380322.38 | L46: =SUM(L43:L45) -> 5937263.1 | M46: 2645900.71 | N46: 3959061.74

Sheet 11-tab_UMR_ETAB
A1: TABLEAU 11 - Université de Bretagne Sud (0561718N) : Etablissement principal + Fondation
A2: ="TABLEAU RETRAÇANT LES MOYENS DES UNITÉS MIXTES DE RECHERCHE - Budget consolidé "&Maquette!B4&" "&Maquette!B5&" "&Maquette!B3 -> TABLEAU RETRAÇANT LES MOYENS DES UNITÉS MIXTES DE RECHERCHE - Budget consolidé rectificatif n° 2 2023
A5: POUR INFORMATION DE L'ORGANE DÉLIBÉRANT
C9: Moyens de l’établissement | E9: Moyens hors budget de l’établissement _2021
E10: CNRS | G10: ENTSA Bretagne | I10: ENIB | K10: ubo
A11: IRDL UMR 6027 | B11: Personnel | C11: 105 | D11: Emplois | E11: 1 | F11: Emplois | G11: 46 | H11: Emplois | I11: 10 | J11: Emplois | K11: 20 | L11: Emplois | N11: Emplois | P11: Emplois | R11: Emplois
B12: Fonctionnement (dotation sur SCSP) | C12: 116500 | E12: 107000 | G12: 102000 | I12: Statut Partenaire pas de dotation affichée | K12: 22000
B13: Investissement (PPI recherche)
C16: Moyens de l’établissement | E16: Moyens hors budget de l’établissement
E17: CNRS | G17: UNIV Rennes 1 | I17: INSA | K17: INRIA
A18: IRISA UMR 6074 | B18: Personnel | C18: 40.5 | D18: Emplois | E18: 54.6 | F18: Emplois | G18: 239.75 | H18: Emplois | I18: 37 | J18: Emplois | K18: 255.4 | L18: Emplois | N18: Emplois | P18: Emplois | R18: Emplois
B19: Fonctionnement (dotation sur SCSP) | C19: 41500 | E19: 230000 | G19: 293191 | I19: 15277 | K19: 342000
B20: Investissement (PPI recherche) | I20: 23223
C23: Moyens de l’établissement | E23: Moyens hors budget de l’établissement
E24: CNRS | G24: ENIB | I24: ENSTA Bretagne | K24: IMT Atlantique | M24: UBO
A25: Lab-STICC UMR 6285 | B25: Personnel | C25: 38.2 | D25: Emplois | E25: 7.9 | F25: Emplois | G25: 26.05 | H25: Emplois | I25: 40 | J25: Emplois | K25: 113.5 | L25: Emplois | M25: 76.45 | N25: Emplois | P25: Emplois | R25: Emplois
B26: Fonctionnement (dotation sur SCSP) | C26: 50500 | E26: 70000 | G26: 52200 | I26: 56000 | K26: 83625 | M26: 91280
B27: Investissement (PPI recherche) | C27: 30000
C30: Moyens de l’établissement | E30: Moyens hors budget de l’établissement
A32: LGO UMR 6538 | B32: Personnel | D32: Emplois | F32: Emplois | H32: Emplois | J32: Emplois | L32: Emplois | N32: Emplois | P32: Emplois | R32: Emplois
B33: Fonctionnement (dotation sur SCSP)
B34: Investissement (PPI recherche)
C37: Moyens de l’établissement | E37: Moyens hors budget de l’établissement
E38: CNRS
A39: LMBA UMR 6205 | B39: Personnel | C39: 2 | D39: Emplois | E39: 0 | F39: Emplois | H39: Emplois | J39: Emplois | L39: Emplois | N39: Emplois | P39: Emplois | R39: Emplois
B40: Fonctionnement (dotation sur SCSP) | C40: 33000 | E40: 12000
B41: Investissement (PPI recherche)
C44: Moyens de l’établissement | E44: Moyens hors budget de l’établissement
E45: Université d'Angers | G45: Le Mans Université | I45: CNRS-INSHS
A46: TEMOS UMR 9016 | B46: Personnel | D46: Emplois | E46: 1.5 | F46: Emplois | G46: 0.5 | H46: Emplois | I46: 2 | J46: Emplois | L46: Emplois | N46: Emplois | P46: Emplois | R46: Emplois
B47: Fonctionnement (dotation sur SCSP) | E47: 33500 | G47: 22200 | I47: 30000
B48: Investissement (PPI recherche)

Sheet Annexe Synthèse_ETAB
A1: ANNEXE 5 - Université de Bretagne Sud (0561718N) : Etablissement principal + Fondation
A2: ="Synthèse budgétaire et comptable - Budget consolidé "&Maquette!B4&" "&Maquette!B5&" "&Maquette!B3 -> Synthèse budgétaire et comptable - Budget consolidé rectificatif n° 2 2023
B4: POUR INFORMATION DE L'ORGANE DÉLIBÉRANT
H6: =IF(Maquette!B4="initial","BI "&Maquette!B5,IF(Maquette!B4="rectificatif","BR "&Maquette!B5,"")) -> BR n° 2
B7: Stocks initiaux | D7: 1 | F7: Niveau initial de restes à payer | H7: 5987257.19
D9: 2 | F9: Niveau initial du fonds de roulement | H9: 14337031.04
D10: 3 | F10: Niveau initial du besoin en fonds de roulement | H10: =H9-H11+0.06 -> 148920.1
D11: 4 | F11: Niveau initial de la trésorerie | H11: 14188111
E12: 4.a | F12: dont niveau initial de la trésorerie fléchée | H12: 2019075.04
E13: 4.b | F13: dont niveau initial de la trésorerie non fléchée | H13: 12169035.96
B15: Flux de l'année | D15: 5 | F15: Autorisations d'engagement | H15: ='2-tab_aut_budg_ETAB'!K28 -> 105290375.8
D17: 6 | F17: Résultat patrimonial | H17: =IF('6-tab CR_TF_ETAB'!F14>0,'6-tab CR_TF_ETAB'!F14,-'6-tab CR_TF_ETAB'!L14) -> -1377048.97
D18: 7 | F18: Capacité d'autofinancement (CAF) | H18: ='6-tab CR_TF_ETAB'!F28 -> 1146463.03
D19: 8 | F19: Variation du fonds de roulement | H19: ='6-tab CR_TF_ETAB'!L46 -> -4133108.77
D21: 9 | E21: 9.a | F21: Opérations bilancielles non budgétaires | G21: SENS | H21: =SUM(H22:H24) -> 9998.4
F22: Nouvel emprunt / remboursement de prêt | G22: + / -
F23: Remboursement d'emprunt / prêt accordé | G23: +
F24: Cautionnements et dépôts | G24: - | H24: ='7-tab Plan_tréso_ETAB'!O22-'7-tab Plan_tréso_ETAB'!O42 -> 9998.4
D26: 10 | E26: 9.a | F26: Opérations comptables non retraitées par la CAF, non budgétaires | G26: SENS | H26: =SUM(H27:H30) -> 0
F27: Variation des stocks | G27: + / -
F28: Production immobilisée | G28: +
F29: Charges sur créances irrécouvrables | G29: -
F30: Produits divers de gestion courante | G30: +
D32: 11 | E32: 9.b | F32: Décalages de flux de trésorerie liés aux opérations budgétaires | G32: SENS | H32: =H34-H36 -> -1581828.21
F33: Ecart entre les produits / ressources et les encaissements relatifs à des opérations sur exercices antérieurs | G33: + / -
F34: Ecart entre les produits / ressources et les encaissements relatifs à des opérations de l'exercice en cours | G34: + / - | H34: -315579.08
F35: Ecart entre les charges / immobilisations et les décaissements relatifs à des opérations sur exercices antérieurs | G35: + / -
F36: Ecart entre les charges / immobilisations et les décaissements relatifs à des opérations de l'exercice en cours | G36: + / - | H36: 1266249.13
D38: 12 | F38: Solde budgétaire = 8 - 9 - 10 - 11 | H38: =H19-H26-H32 -> -2551280.56
E39: 12.a | F39: Recettes budgétaires | H39: ='2-tab_aut_budg_ETAB'!R28 -> 102181046.2
E40: 12.b | F40: Crédits de paiement ouverts | H40: ='2-tab_aut_budg_ETAB'!L28 -> 104732326.8
D42: 13 | E42: 9.c | F42: Flux de trésorerie liés aux opérations au nom et pour le compte de tiers | H42: ='4-tab_financier_ETAB'!M20-'4-tab_financier_ETAB'!G20 -> -387058
D44: 14 | E44: 9.c | F44: Flux de trésorerie liés aux autres encaissements / décaissements sur comptes de tiers (non budgétaires) | H44: ='4-tab_financier_ETAB'!M18-'4-tab_financier_ETAB'!G18 -> 9998
D46: 15 | F46: Variation de la trésorerie = 12 +13 + 14 | H46: =H38+H42+H44 -> -2928340.56
E47: 15.a | F47: dont variation de la trésorerie fléchée | H47: ='4-tab_financier_ETAB'!G27-'4-tab_financier_ETAB'!M27 -> -420540.42
E48: 15.b | F48: dont variation de la trésorerie non fléchée | H48: ='4-tab_financier_ETAB'!G29-'4-tab_financier_ETAB'!M29 -> -2507800.67
D50: 16 | F50: Variation du besoin en fonds de roulement = 9 + 10 + 11 - 13 + 14 | H50: =H26+H32-H42-H44 -> -1204768.21
D52: 17 | F52: Restes à payer | H52: =H15-H40 -> 558048.96
B54: Stocks finaux | D54: 18 | F54: Niveau final de restes à payer | H54: =H7+H52 -> 6545306.15
D56: 19 | F56: Niveau final du fonds de roulement | H56: =H9+H19 -> 10203922.27
D57: 20 | F57: Niveau final du besoin en fonds de roulement | H57: =H56-H58 -> -1055848.17
D58: 21 | F58: Niveau final de la trésorerie | H58: =H11+H46 -> 11259770.44
E59: 21.a | F59: dont niveau final de la trésorerie fléchée | H59: =H12+H47 -> 1598534.62
E60: 21.b | F60: dont niveau final de la trésorerie non fléchée | H60: =H13+H48 -> 9661235.29
F62: Comptabilité budgétaire
F63: Comptabilité générale

Sheet Annexe PAA_ETAB
B1: ANNEXE 14 - Université de Bretagne Sud (0561718N) : Etablissement principal + Fondation
B2: Plan d'actions achat - Prévisionnel
B4: Identité du projet | K4: Mutualisation du besoin | P4: Objectif de gain achat | T4: Autres objectifs de politique publique | Y4: Suivi du marché
B5: Code CPV à 2 positions | C5: Niveau le plus fin de votre nomenclature achat | D5: Objet du marché, du marché subséquent ou de l'action de progrès | E5: Type de leviers utilisés indiquer maximum 2 leviers | G5: Date de notification prévisionnelle | H5: Durée du contrat en mois (reconductions comprises) | I5: Volume des achats prévisionnel en euros HT | J5: Renouvellement (R) ou nouveau marché (N) | K5: Marché subséquent d'un accord-cadre (O/N) | L5: Accord-cadre avec des entités extérieures (O/N) voir ci-dessous | M5: Groupement de commande (O/N) voir ci-dessous | N5: Recours à un marché du SAE (O/N) | O5: Recours à une centrale d'achats UGAP/AMUE (O/N) | P5: Performance de l'acheteur en prévisionnel sur la durée totale du marché (en euros HT) | Q5: Pourcentage | R5: Chiffre d'affaires attendu base 12 mois en euros HT | S5: Performance de l'acheteur base 12 mois | T5: Rédaction du contrat adaptée à une PME (O/N) | U5: Projet ouvert à des achats innovants (O/N) | W5: Intégration de clauses environnementales (O/N) voir ci-dessous | X5: Intégration de clauses sociales (O/N) voir ci-dessous | Y5: Points d'attention
U6: oui ou non | V6: si oui indiquer les coordonnées de l'acheteur (nom, prénom, adresse électronique)
B7: 55520000 | C7: CB 21 | D7: Prestations de services ; cocktails Lorient | E7: juste besoin | F7: suivi fournisseur | G7: 2023-02-01 | H7: 48 | J7: R | K7: N | L7: N | M7: N | N7: N | O7: N | T7: N | U7: Non | W7: O | X7: N
B8: 55520000 | C8: CB 21 | D8: Prestations de services ; cocktails Vannes | E8: juste besoin | F8: suivi fournisseur | G8: 2023-02-01 | H8: 48 | J8: R | K8: N | L8: N | M8: N | N8: N | O8: N | T8: N | U8: Non | W8: O | X8: N
B9: 55520000 | C9: CB 21 | D9: Prestations de services ; plateaux repas Lorient | E9: juste besoin | F9: suivi fournisseur | G9: 2023-02-01 | H9: 48 | J9: R | K9: N | L9: N | M9: N | N9: N | O9: N | T9: N | U9: Non | W9: O | X9: N
B10: 55520000 | C10: CB 21 | D10: Prestations de services ; plateaux repas Vannes | E10: juste besoin | F10: suivi fournisseur | G10: 2023-02-01 | H10: 48 | J10: R | K10: N | L10: N | M10: N | N10: N | O10: N | T10: N | U10: Non | W10: O | X10: N
B11: 32232000 | C11: IE 02 | D11: Système de Visioconférences | E11: juste besoin | F11: suivi fournisseur | G11: 2023-03-01 | H11: 48 | J11: R | K11: N | L11: N | M11: N | N11: N | O11: N | T11: N | U11: Non | W11: N | X11: N
B12: 30121100 | C12: AC 21 AC 22 | D12: Location/maintenance photocopieurs | E12: juste besoin | F12: suivi fournisseur | G12: 2023-03-01 | H12: 48 | J12: R | K12: O | L12: O | M12: N | N12: N | O12: N | T12: N | U12: Non | W12: N | X12: N
B13: 30100000 | C13: IA 21 | D13: Location/maintenance imprimantes | E13: juste besoin | F13: suivi fournisseur | G13: 2023-03-01 | H13: 48 | J13: R | K13: O | L13: O | M13: N | N13: N | O13: N | T13: N | U13: Non | W13: N | X13: N
B14: 64210000 | C14: II 01 | D14: Abonnements et communications téléphoniques | E14: juste besoin | F14: suivi fournisseur | G14: 2023-03-26 | H14: 48 | J14: R | K14: N | L14: N | M14: N | N14: N | O14: N | T14: N | U14: Non | W14: N | X14: N
B15: 45259000 | C15: BE 15 | D15: Maintenance Chauffage, ventilation, traitement d'eau | E15: juste besoin | F15: suivi fournisseur | G15: 2023-05-01 | H15: 48 | J15: R | K15: N | L15: N | M15: N | N15: N | O15: N | T15: N | U15: Non | W15: O | X15: N
B16: 45259000 | C16: BE 15 | D16: Maintenance Clim de confort et locaux sensibles | E16: juste besoin | F16: suivi fournisseur | G16: 2023-05-01 | H16: 48 | J16: R | K16: N | L16: N | M16: N | N16: N | O16: N | T16: N | U16: Non | W16: O | X16: N
B17: 45259000 | C17: BE 15 | D17: Maintenance des systèmes de sécurité incendie, désenfumage | E17: juste besoin | F17: suivi fournisseur | G17: 2023-05-01 | H17: 48 | J17: R | K17: N | L17: N | M17: N | N17: N | O17: N | T17: N | U17: Non | W17: O | X17: N
B18: 90911200 | C18: BB 11 | D18: Nettoyage locaux Bâtiment Yves Coppens Campus Tohannic | E18: juste besoin | F18: suivi fournisseur | G18: 2023-12-01 | H18: 48 | J18: R | K18: N | L18: N | M18: N | N18: N | O18: N | T18: N | U18: Non | W18: O | X18: N
B19: 22113000 | C19: CE 01 | D19: Fournitures d'ouvrages en langue française | E19: juste besoin | F19: suivi fournisseur | G19: 45261 | H19: 48 | J19: R | K19: N | L19: N | M19: N | N19: N | O19: N | T19: N | U19: Non | W19: N | X19: N
B20: 22113000 | C20: CE 01 | D20: Fournitures d'ouvrages en langue étrangère | E20: juste besoin | F20: suivi fournisseur | G20: 45261 | H20: 48 | J20: R | K20: N | L20: N | M20: N | N20: N | O20: N | T20: N | U20: Non | W20: O | X20: N
B21: 30190000 | C21: AB 01 | D21: Fournitures de bureaux | E21: juste besoin | F21: suivi fournisseur | G21: 45261 | H21: 48 | J21: R | K21: N | L21: N | M21: N | N21: N | O21: N | T21: N | U21: Non | W21: O | X21: N
B22: 79713000 | C22: BC 01 | D22: Gradiennage des locaux | E22: juste besoin | F22: suivi fournisseur | G22: 45261 | H22: 48 | J22: R | K22: N | L22: N | M22: N | N22: N | O22: N | T22: N | U22: Non | W22: N | X22: N
R23: Total :
B24: Pour les procédures portées par l'établissement, accords-cadres comme groupements de commande, merci d'indiquer ici | S24: Objectif : X %
B25: (si porteur de plusieurs accords-cadres ou groupement de commande, remettre l'objet avec le noms des autres parties prenantes) :
C26: noms des établissements parties prenantes à la procédure : | S26: du montant annuel des achats (HT)
B29: Commentaires sur les clauses sociales (freins et accélérateurs à l'intégration de clauses, recrutement de personnel handicapé…) :
B33: Commentaires sur les clauses environnementales (freins et accélérateurs à l'intégration de clauses…) :
B37: Actions de structuration de la fonction achat lancées en N-1 (recrutement d'un référent "développement durable", d'acheteurs experts…)

Sheet Annexe immo_ETAB
B2: ANNEXE 15 - Université de Bretagne Sud (0561718N) : Etablissement principal + Fondation
B3: Annexe immobilière
B5: POUR INFORMATION DE L'ORGANE DÉLIBÉRANT
B8: Opérateur : Université Bretagne Sud | D8: Réunion de l'organe délibérant du 14 décembre 2021 | I8: Commentaires portant sur la stratégie immobilière de l'établissement : (notamment sur l'avancement des opérations prévues dans le SPSI, la levée des réserves de France Domaine ou du CIE, les économies réalisées ou programmées,...)
I9: L'Université a libéré de manière définitive, à l'été 2018, les dernières surfaces qu'elle occupait au sein du bâtiment Pôle de Formations Sanitaires et Sociales (PFSS) à Lorient. L'usage de ce bâtiment de 6135m2 de SHON se répartit désormais exclusivement entre deux utilisateurs tiers (l'IFPS de Lorient et l'organisme de formations Askoria). Pour autant, ce bâtiment propriété de l'État est confié en gestion à l'UBS via les conventions d'utilisation passées avec France-Domaine. N'ayant plus d'intérêt à conserver ce bâtiment, le CA de l'Université a pris une délibération, le 14 décembre 2018, approuvant l'inutilité de ce bien pour l'Établissement. Le Centre Hospitalier Bretagne Sud, dont dépend l'IPFS de Lorient, avait marqué son souhait d'acquérir ce bâtiment. Les services des domaines sont mobilisés en vue de la réalisation de cette cession, mais la situation sanitaire 2020 a ralenti le processus, qui n'est pas encore abouti. Par ailleurs, et dans un contexte de doublement des groupes accueillis sur la filière cyber-défense de l'ENSIBS, des espaces au sein de la délégation de Vannes de la CCI du Morbihan lui sont mises à disposition dans le cadre d'une Convention d'Occupation Temporaire. Ce site est limitrophe du campus de Tohannic. La surface occupée sur l'année universitaire 2020/2021 était de 560m2 pour un coût de 56k€ par an (afin d''y positionner la troisième année de la filière cyber-défense), A la rentrée 2021/2022, une surface complémentaire de 326m2 est occupée pour accueillir les étudiants de seconde année de cette même filière. Le coût global de cette occupation passe ainsi à hauteur de 90k€. Il est à souligner que le site de la délégation vannetaise de la CCI a été racheté par Golfe du Morbihan - Vannes Agglomération, en novembre 2021, dans le cadre de la réalisation du projet de pôle numérique de Vannes prévu au CPER 2021-2027. Les conditions d'utilisation de ces espaces sont à redéfinir en lien avec la Collectivité, une fois cette cession opérée. En termes de travaux structurants, l'opération de réhabilitation de l'IUT de Lorient inscrite au CPER2015-2020 avait débuté en 2018 par la réfection complète de l'étanchéité et de l'isolation des toitures-terrasses du bâtiment HSE. Elle s'est poursuivie et achevée sur l'année universitaire 2019/2020 par la réhabilitation énergétique et gros-entretien de ce même bâtiment, ainsi que la rénovation des toitures-terrasses du bâtiment GIM. De même, ont été terminés sur l'exercice 2020 les travaux de réhabilitation du bâtiment ENSIBS de Vannes, eux-aussi inscrits au CPER 2015-2020. Ainsi, à fin 2020, l'ensemble des opérations bâtimentaires du CPER 2015-2020 confiées en maîtrise d'ouvrage à l'UBS était achevé. L'année 2021 est, pour sa part, fortement structurée autour de la réalisation des opérations d'amélioration de la performance énergétique lauréates du plan de relance de l'économie déployé par l'Etat. Dans ce cadre, l'UBS a obtenu une dotation globale de 3,860 M€ se répartissant entre : - la réhabilitation énergétique du bâtiment Coppens à Vannes, pour un montant de 3,750M€. Les travaux, qui seront pour plus de la moitié terminés fin 2021, portent sur l'isolation thermique par l'extérieur des façades, le remplacement des menuiseries extérieures, le reprise de l'isolation des toitures, le remplacement des chaudières, la mise en place d'une installation de production d'électricité photovoltaïque en toiture, ainsi que la migration Led des éclairages. - la migration Led des éclairages des bâtiments Sciences 2 et Kerjulaude à Lorient, accomplie au premier semestre 2021, pour un montant total de 110 k€. L'année 2021 est également marquée par le lancement des études de réhabilitation énergétique du bâtiment Paquebot à Lorient, qui bénéficie de financements européens du programme React-EU à hauteur de 1,8M€. Les travaux sont prévus sur 2022. Après études de faisabilité orientant le projet d'aménagement d'espaces de sport, vie étudiante et culturelle vers l'ancien gymnase de Kerjulaude, ce projet sera mené sur 2022, intégrant un transfert de propriété de ce site appartenant à Lorient-Agglomération vers l'UBS. Cette opération mobilise pour partie des crédits CVEC. Enfin, le projet de SPSI portant sur la période 2021/2025 a été adressé aux entités ayant à formuler un avis avant approbation de ce Schéma Directeur, D'un point de vue des dépenses de fonctionnement, 2021 connait des niveaux normalement t rencontrés les années antérieures, après un exercice 2020 en décrue du fait de la pandémie Covid. Une vigilance particulière concernera le budget de fonctionnement 2022 à l'aune de la forte hausse actuelle des prix de l'électricité et du gaz (ce poste représentant, avant les actuelles augmentation conjoncturelles, une charge de l'ordre de 1M€ par an).
E10: exécution (année 2021) | F10: dernier BR (année 2022)
B11: Données physiques
B12: Nombre de bâtiments occupés | D12: X | E12: 22 | F12: 22
B13: dont biens propres | D13: X | E13: 1 | F13: 1
B14: dont biens domaniaux | D14: X | E14: 21 | F14: 21
B15: dont prises à bail | D15: X | E15: 0 | F15: 0
B16: dont autres mises à disposition (ex. : collectivités territoriales) | D16: X | E16: 0 | F16: 0
B17: Surface totale occupée (m² - SUB) | D17: X | E17: 96151 | F17: 95591
B18: dont biens propres | D18: X | E18: 934 | F18: 934
B19: dont biens domaniaux | D19: X | E19: 94657 | F19: 94657
B20: dont prises à bail | D20: X
B21: dont autres mises à disposition (ex. : collectivités territoriales) | D21: X | E21: 560
B22: Ratio m² SUN / poste de travail (*) | D22: X
D25: classe de compte (n°) | E25: exécution (N-1) | F25: dernier BR (N)
B26: Dépenses de fonctionnement à l'€ près
B27: Redevances de crédit-bail immobilier (*) | D27: 6125 | E27: 0 | F27: 0
B28: Locations immobilières (*) | D28: 6132 | E28: 110548.46 | F28: 152582.04
B29: Entretien et réparations sur biens immobiliers (*) | D29: 6152 | E29: 380739.38 | F29: 394619.8
B31: Dépenses d'acquisition à l'€ près
B32: Acquisition de biens propres ou de biens domaniaux | D32: X | E32: 0 | F32: 50000
B34: Dépenses d'investissement à l'€ près
B35: Réalisation de travaux structurants sur les biens propres ou domaniaux | D35: X | E35: 4375169 | F35: 2615865
B37: Produits de cession d'immobilisations corporelles à l'€ près
B38: dont biens propres | D38: 7752 | E38: 0 | F38: 0
B39: dont biens domaniaux | D39: 7752 | E39: 0 | F39: 0
B40: (*) Les données sont disponibles à la saisie dans le système d'informations des opérateurs de l'Etat (SI OPE)
